PublisherLabel,PublisherURI,"Body name","Body","Service area","Service division","Responsible unit","Expenses type","Date","Transaction","Amount","Supplier name"
"Bracknell Forest Council","http://opendatacommunities.org/id/unitary-authority/bracknell-forest","Bracknell Forest Council","00MA","Recreation, Sports and Leisure","Indoor Sports & Recreation Facilities","Coral Reef - Catering & Bar","Cost of Goods Sold",28/02/2011 00:00:00,"6440644",2887.59,"3663"
"Bracknell Forest Council","http://opendatacommunities.org/id/unitary-authority/bracknell-forest","Bracknell Forest Council","00MA","Recreation, Sports and Leisure","Indoor Sports & Recreation Facilities","Leisure Centre - Catering General","Cost of Goods Sold",28/02/2011 00:00:00,"6440843",2729.29,"3663"
"Bracknell Forest Council","http://opendatacommunities.org/id/unitary-authority/bracknell-forest","Bracknell Forest Council","00MA","Recreation, Sports and Leisure","Indoor Sports & Recreation Facilities","Edgbarrow/Sandhurst - Catering General","Cost of Goods Sold",28/02/2011 00:00:00,"6440844",661.92,"3663"
"Bracknell Forest Council","http://opendatacommunities.org/id/unitary-authority/bracknell-forest","Bracknell Forest Council","00MA","Recreation, Sports and Leisure","Golf Courses","Leisure DSO - Downshire Catering","Cost of Goods Sold",28/02/2011 00:00:00,"6440870",1844.18,"3663"
"Bracknell Forest Council","http://opendatacommunities.org/id/unitary-authority/bracknell-forest","Bracknell Forest Council","00MA","Recreation, Sports and Leisure","Retail Services, Catering & Licenced","Easthampstead Park Centre - Catering","Cost of Goods Sold",28/02/2011 00:00:00,"6441025",634.87,"3663"
"Bracknell Forest Council","http://opendatacommunities.org/id/unitary-authority/bracknell-forest","Bracknell Forest Council","00MA","Recreation, Sports and Leisure","Retail Services, Catering & Licenced","Easthampstead Park Centre - Catering","Cost of Goods Sold",28/02/2011 00:00:00,"6441025",4606.8,"3663"
"Bracknell Forest Council","http://opendatacommunities.org/id/unitary-authority/bracknell-forest","Bracknell Forest Council","00MA","Mental Health Needs (Under 65)","Residential Care Home Placements","Residential Placements-Mental Illness","Contracted Services",15/03/2011 00:00:00,"30169687",2346.08,"2 CARE"
"Bracknell Forest Council","http://opendatacommunities.org/id/unitary-authority/bracknell-forest","Bracknell Forest Council","00MA","Mental Health Needs (Under 65)","Residential Care Home Placements","Residential Placements-Mental Illness","Contracted Services",15/03/2011 00:00:00,"30169687",2995.69,"2 CARE"
"Bracknell Forest Council","http://opendatacommunities.org/id/unitary-authority/bracknell-forest","Bracknell Forest Council","00MA","Youth Justice","Youth Offender Teams","YJB Core Funding","Materials",01/03/2011 00:00:00,"6440434",4500,"3 CRAWS LTD"
"Bracknell Forest Council","http://opendatacommunities.org/id/unitary-authority/bracknell-forest","Bracknell Forest Council","00MA","Youth Justice","Youth Offender Teams","YJB Core Funding","Training Costs",01/03/2011 00:00:00,"6440434",1500,"3 CRAWS LTD"
"Bracknell Forest Council","http://opendatacommunities.org/id/unitary-authority/bracknell-forest","Bracknell Forest Council","00MA","","","Disabled Facilities Grant","Grants Paid",15/03/2011 00:00:00,"6441145",5000,"A & B BUILDERS"
"Bracknell Forest Council","http://opendatacommunities.org/id/unitary-authority/bracknell-forest","Bracknell Forest Council","00MA","","","Disabled Facilities Grant","Grants Paid",17/03/2011 00:00:00,"6441663",4991.62,"A & B BUILDERS"
"Bracknell Forest Council","http://opendatacommunities.org/id/unitary-authority/bracknell-forest","Bracknell Forest Council","00MA","Waste Disposal","Disposal of Waste","London Road Tip","Contracted Services",22/02/2011 00:00:00,"6439386",1200,"A BETTER SERVICE LTD"
"Bracknell Forest Council","http://opendatacommunities.org/id/unitary-authority/bracknell-forest","Bracknell Forest Council","00MA","Culture and Heritage","Heritage Museums & Galleries","The Look Out","R&M - Service Contracts",22/03/2011 00:00:00,"6442652",2067.5,"ABA (CONSTRUCTION) LTD T/A ARD PLAYGROUNDS"
"Bracknell Forest Council","http://opendatacommunities.org/id/unitary-authority/bracknell-forest","Bracknell Forest Council","00MA","Supporting People","Supporting People","Supporting People Payments","Transfer Payments - Supporting People",07/03/2011 00:00:00,"6440069",3671.2,"ABILITY HOUSING ASSOCIATION"
"Bracknell Forest Council","http://opendatacommunities.org/id/unitary-authority/bracknell-forest","Bracknell Forest Council","00MA","Supporting People","Supporting People","Supporting People Payments","Transfer Payments - Supporting People",08/03/2011 00:00:00,"6440147",3671.2,"ABILITY HOUSING ASSOCIATION"
"Bracknell Forest Council","http://opendatacommunities.org/id/unitary-authority/bracknell-forest","Bracknell Forest Council","00MA","Service Management & Support Services","Service Management & Support Services","Departmental IT","Computer Software Maintenance",14/02/2011 00:00:00,"6439052",1035,"ABRITAS LTD"
"Bracknell Forest Council","http://opendatacommunities.org/id/unitary-authority/bracknell-forest","Bracknell Forest Council","00MA","Central Support Services - COF","Finance","Procurement","Subscriptions",03/03/2011 00:00:00,"6440340",550,"ACHILLES INFORMATION LIMITED"
"Bracknell Forest Council","http://opendatacommunities.org/id/unitary-authority/bracknell-forest","Bracknell Forest Council","00MA","Central Support Services - COF","Finance","Procurement","Seminar Costs",14/03/2011 00:00:00,"6441525",1800,"ACHILLES INFORMATION LIMITED"
"Bracknell Forest Council","http://opendatacommunities.org/id/unitary-authority/bracknell-forest","Bracknell Forest Council","00MA","Older People (Aged 65 or Over)","Nursing Home Placements","Nursing Home Placements-Elderly","Contracted Services",15/03/2011 00:00:00,"30169687",2203.88,"ACORN HEALTHCARE LTD T/A ACORN LODGE NURSING CARE"
"Bracknell Forest Council","http://opendatacommunities.org/id/unitary-authority/bracknell-forest","Bracknell Forest Council","00MA","Children Looked After (CLA)","Children's Homes","Children's Home Placements","Contracted Services",01/03/2011 00:00:00,"6440444",11957.01,"ACTIVE8 CARE LTD"
"Bracknell Forest Council","http://opendatacommunities.org/id/unitary-authority/bracknell-forest","Bracknell Forest Council","00MA","Education Management & Support Service","Performance & Resources","SIMS and other licences","Training Costs",11/02/2011 00:00:00,"6440625",1295,"ACTIVIA LTD"
"Bracknell Forest Council","http://opendatacommunities.org/id/unitary-authority/bracknell-forest","Bracknell Forest Council","00MA","Recreation, Sports and Leisure","Golf Courses","Leisure DSO - Downshire Golf Shop","Cost of Goods Sold",13/12/2010 00:00:00,"6440122",-590.85,"ACUSHNET LIMITED"
"Bracknell Forest Council","http://opendatacommunities.org/id/unitary-authority/bracknell-forest","Bracknell Forest Council","00MA","Recreation, Sports and Leisure","Golf Courses","Leisure DSO - Downshire Golf Shop","Cost of Goods Sold",01/02/2011 00:00:00,"6440132",1510.81,"ACUSHNET LIMITED"
"Bracknell Forest Council","http://opendatacommunities.org/id/unitary-authority/bracknell-forest","Bracknell Forest Council","00MA","Learning Disability (under 65)","Direct Payments - LD","Direct Payments - LD","Direct Payments to Clients",29/03/2011 00:00:00,"30170467",1001.2,"REDACTED PERSONAL DATA"
"Bracknell Forest Council","http://opendatacommunities.org/id/unitary-authority/bracknell-forest","Bracknell Forest Council","00MA","Children Looked After (CLA)","Fostering Services","BFBC Fostering Allowances","Other Fees for Bought-in Services",01/02/2011 00:00:00,"6441148",1097,"ADOPTION UK"
"Bracknell Forest Council","http://opendatacommunities.org/id/unitary-authority/bracknell-forest","Bracknell Forest Council","00MA","Central Support Services - COF","Construction and Property","Time Square Office","R&M - Reactive",31/01/2011 00:00:00,"6439176",954.85,"ADSM PLC"
"Bracknell Forest Council","http://opendatacommunities.org/id/unitary-authority/bracknell-forest","Bracknell Forest Council","00MA","Open Spaces","Community Parks & Open Spaces","Pitches/Courts/Pavilion","Contracted Services",01/03/2011 00:00:00,"6441065",886.75,"ADT FIRE AND SECURITY"
"Bracknell Forest Council","http://opendatacommunities.org/id/unitary-authority/bracknell-forest","Bracknell Forest Council","00MA","Learning Disability (under 65)","Residential Care Home Placements","Residential Placements-Lrng Disab","Contracted Services",15/03/2011 00:00:00,"30169687",4760,"AFFINITY TRUST"
"Bracknell Forest Council","http://opendatacommunities.org/id/unitary-authority/bracknell-forest","Bracknell Forest Council","00MA","Special Schools","Other Special Related Expenditure","Supporting Special Educational Needs","Voluntary Sector Service Providers",04/01/2011 00:00:00,"6440965",23520,"LIVABILITY"
"Bracknell Forest Council","http://opendatacommunities.org/id/unitary-authority/bracknell-forest","Bracknell Forest Council","00MA","Special Schools","Other Special Related Expenditure","Recoupment","Other Local Authorities",14/03/2011 00:00:00,"6442211",76983.79,"LONDON BOROUGH OF TOWER HAMLETS"
"Bracknell Forest Council","http://opendatacommunities.org/id/unitary-authority/bracknell-forest","Bracknell Forest Council","00MA","Older People (Aged 65 or Over)","Assessment & Care Management","Short Term Services - Therapy","Agency",13/03/2011 00:00:00,"6442244",1186.2,"LONDON TEACHING POOL"
"Bracknell Forest Council","http://opendatacommunities.org/id/unitary-authority/bracknell-forest","Bracknell Forest Council","00MA","Older People (Aged 65 or Over)","Assessment & Care Management","Short Term Services - Therapy","Agency",20/03/2011 00:00:00,"6442738",988.5,"LONDON TEACHING POOL"
"Bracknell Forest Council","http://opendatacommunities.org/id/unitary-authority/bracknell-forest","Bracknell Forest Council","00MA","Non-School Funding","Pre-School Education","The Alders Children's Centre","Fixtures & Fittings - Purchase",22/02/2011 00:00:00,"6439643",826.22,"LONGACRES NURSERY"
"Bracknell Forest Council","http://opendatacommunities.org/id/unitary-authority/bracknell-forest","Bracknell Forest Council","00MA","Children Looked After (CLA)","Other Children Looked After Services","LAC- Over 11s Expenditure","Contracted Services",01/01/2011 00:00:00,"6439483",640.95,"LOOK AHEAD HOUSING AND CARE LTD"
"Bracknell Forest Council","http://opendatacommunities.org/id/unitary-authority/bracknell-forest","Bracknell Forest Council","00MA","Children Looked After (CLA)","Other Children Looked After Services","LAC- Over 11s Expenditure","Contracted Services",01/01/2011 00:00:00,"6439484",571.15,"LOOK AHEAD HOUSING AND CARE LTD"
"Bracknell Forest Council","http://opendatacommunities.org/id/unitary-authority/bracknell-forest","Bracknell Forest Council","00MA","Supporting People","Supporting People","Supporting People Payments","Transfer Payments - Supporting People",07/03/2011 00:00:00,"6440071",38702.32,"LOOK AHEAD HOUSING AND CARE LTD"
"Bracknell Forest Council","http://opendatacommunities.org/id/unitary-authority/bracknell-forest","Bracknell Forest Council","00MA","Supporting People","Supporting People","Supporting People Payments","Transfer Payments - Supporting People",08/03/2011 00:00:00,"6440139",38702.32,"LOOK AHEAD HOUSING AND CARE LTD"
"Bracknell Forest Council","http://opendatacommunities.org/id/unitary-authority/bracknell-forest","Bracknell Forest Council","00MA","Traffic Management & Road Safety","Road Safety Education","Road Safety","Publicity & Marketing",17/02/2011 00:00:00,"6439669",1000,"LOUIS TAYLOR'S ROAD SAFETY SHOW"
"Bracknell Forest Council","http://opendatacommunities.org/id/unitary-authority/bracknell-forest","Bracknell Forest Council","00MA","Special Schools","Other Special Related Expenditure","Supporting Special Educational Needs","Voluntary Sector Service Providers",25/01/2011 00:00:00,"6440984",7500,"LVS - HASSOCKS"
"Bracknell Forest Council","http://opendatacommunities.org/id/unitary-authority/bracknell-forest","Bracknell Forest Council","00MA","Special Schools","Other Special Related Expenditure","Supporting Special Educational Needs","Voluntary Sector Service Providers",25/01/2011 00:00:00,"6440986",7650,"LVS - HASSOCKS"
"Bracknell Forest Council","http://opendatacommunities.org/id/unitary-authority/bracknell-forest","Bracknell Forest Council","00MA","Older People (Aged 65 or Over)","Nursing Home Placements","Nursing Home Placements-Elderly","Contracted Services",15/03/2011 00:00:00,"30169687",2105.79,"LYNWOOD"
"Bracknell Forest Council","http://opendatacommunities.org/id/unitary-authority/bracknell-forest","Bracknell Forest Council","00MA","Recreation, Sports and Leisure","Indoor Sports & Recreation Facilities","Leisure DSO - Leisure Centre Maintenance","Swimming Pool Chemicals",27/02/2011 00:00:00,"6440960",2098.95,"AIR PRODUCTS PLC"
"Bracknell Forest Council","http://opendatacommunities.org/id/unitary-authority/bracknell-forest","Bracknell Forest Council","00MA","Learning Disability (under 65)","Residential Care Home Placements","Residential Placements-Lrng Disab","Contracted Services",15/03/2011 00:00:00,"30169687",8380,"AITCH CARE HOMES (LONDON) LTD"
"Bracknell Forest Council","http://opendatacommunities.org/id/unitary-authority/bracknell-forest","Bracknell Forest Council","00MA","Mental Health Needs (Under 65)","Residential Care Home Placements","Residential Placements-Mental Illness","Contracted Services",15/03/2011 00:00:00,"30169687",1253.56,"ALDWICK RESIDENTIAL CARE HOME"
"Bracknell Forest Council","http://opendatacommunities.org/id/unitary-authority/bracknell-forest","Bracknell Forest Council","00MA","Childrens services-Commissioning & SW","Commissioning & Social Work","LSCB Business Manager","Consultants Fees",14/03/2011 00:00:00,"6441322",2000,"ALEX WALTERS"
"Bracknell Forest Council","http://opendatacommunities.org/id/unitary-authority/bracknell-forest","Bracknell Forest Council","00MA","Older People (Aged 65 or Over)","Residential Care Home Placements","Bridgewell Unit","Agency",20/02/2011 00:00:00,"6439116",1200,"ALEXANDER LEIGH CONSULTING"
"Bracknell Forest Council","http://opendatacommunities.org/id/unitary-authority/bracknell-forest","Bracknell Forest Council","00MA","Education Management & Support Service","Performance & Resources","Children's Workforce Strategy","Consultants Fees",03/03/2011 00:00:00,"6441306",1668,"ALL ABOUT THE PEOPLE LTD"
"Bracknell Forest Council","http://opendatacommunities.org/id/unitary-authority/bracknell-forest","Bracknell Forest Council","00MA","Education Management & Support Service","Performance & Resources","Children's Workforce Strategy","Consultants Fees",31/01/2011 00:00:00,"6441307",2820.4,"ALL ABOUT THE PEOPLE LTD"
"Bracknell Forest Council","http://opendatacommunities.org/id/unitary-authority/bracknell-forest","Bracknell Forest Council","00MA","Recreation, Sports and Leisure","Retail Services, Catering & Licenced","Easthampstead Park Conference Centre","Cleaning materials",01/02/2011 00:00:00,"6439429",1564.37,"ALLIANCE DISPOSABLES LTD"
"Bracknell Forest Council","http://opendatacommunities.org/id/unitary-authority/bracknell-forest","Bracknell Forest Council","00MA","Recreation, Sports and Leisure","Retail Services, Catering & Licenced","Easthampstead Park Conference Centre","Cleaning materials",21/02/2011 00:00:00,"6440571",972.02,"ALLIANCE DISPOSABLES LTD"
"Bracknell Forest Council","http://opendatacommunities.org/id/unitary-authority/bracknell-forest","Bracknell Forest Council","00MA","Physical Disability/Sensory Impairment","Assessment & Care Management","Older People & Long Term Conditions Team","Agency",02/03/2011 00:00:00,"6440462",1608.6,"ALLIED GLOBAL LTD"
"Bracknell Forest Council","http://opendatacommunities.org/id/unitary-authority/bracknell-forest","Bracknell Forest Council","00MA","Childrens services-Commissioning & SW","Commissioning & Social Work","Children Aged Under 11","Agency",21/03/2011 00:00:00,"6443267",1258,"ALLIED HEALTH PROFESSIONALS"
"Bracknell Forest Council","http://opendatacommunities.org/id/unitary-authority/bracknell-forest","Bracknell Forest Council","00MA","Childrens services-Commissioning & SW","Commissioning & Social Work","Children Aged Under 11","Agency",14/03/2011 00:00:00,"6443268",1258,"ALLIED HEALTH PROFESSIONALS"
"Bracknell Forest Council","http://opendatacommunities.org/id/unitary-authority/bracknell-forest","Bracknell Forest Council","00MA","Older People (Aged 65 or Over)","Home Care","LD Live-In Carers","Contracted Services",22/03/2011 00:00:00,"30169981",3186.47,"ALLIED HEALTHCARE GROUP LTD"
"Bracknell Forest Council","http://opendatacommunities.org/id/unitary-authority/bracknell-forest","Bracknell Forest Council","00MA","Older People (Aged 65 or Over)","Nursing Home Placements","Nursing Home Placements-Elderly","Contracted Services",15/03/2011 00:00:00,"30169687",2358.48,"LYNWOOD"
"Bracknell Forest Council","http://opendatacommunities.org/id/unitary-authority/bracknell-forest","Bracknell Forest Council","00MA","Older People (Aged 65 or Over)","Residential Care Home Placements","Residential Placements-Elderly","Contracted Services",15/03/2011 00:00:00,"30169687",1819.12,"LYNWOOD"
"Bracknell Forest Council","http://opendatacommunities.org/id/unitary-authority/bracknell-forest","Bracknell Forest Council","00MA","Older People (Aged 65 or Over)","Residential Care Home Placements","Residential Placements-Elderly","Contracted Services",15/03/2011 00:00:00,"30169687",1777.32,"LYNWOOD"
"Bracknell Forest Council","http://opendatacommunities.org/id/unitary-authority/bracknell-forest","Bracknell Forest Council","00MA","Older People (Aged 65 or Over)","Nursing Home Placements","Nursing Home Placements-Elderly","Contracted Services",15/03/2011 00:00:00,"30169687",2190.02,"LYNWOOD"
"Bracknell Forest Council","http://opendatacommunities.org/id/unitary-authority/bracknell-forest","Bracknell Forest Council","00MA","Older People (Aged 65 or Over)","Nursing Home Placements","Nursing Home Placements-Elderly","Contracted Services",15/03/2011 00:00:00,"30169687",2358.48,"LYNWOOD"
"Bracknell Forest Council","http://opendatacommunities.org/id/unitary-authority/bracknell-forest","Bracknell Forest Council","00MA","Non-School Funding","Pre-School Education","SSEYCG - DCATCH","Grants and Donations",16/03/2011 00:00:00,"6441385",850,"LYNX CHILDCARE"
"Bracknell Forest Council","http://opendatacommunities.org/id/unitary-authority/bracknell-forest","Bracknell Forest Council","00MA","Non-School Funding","Pre-School Education","SSEYCG Sufficiency & Access","Grants and Donations",18/03/2011 00:00:00,"6441824",3062,"LYNX CHILDCARE"
"Bracknell Forest Council","http://opendatacommunities.org/id/unitary-authority/bracknell-forest","Bracknell Forest Council","00MA","Physical Disability/Sensory Impairment","Other Services to Adults with a PD or SI","Other Care & Support-Phys Disab","Other Support to Clients",22/03/2011 00:00:00,"30169981",900,"M A GHAFUR"
"Bracknell Forest Council","http://opendatacommunities.org/id/unitary-authority/bracknell-forest","Bracknell Forest Council","00MA","Physical Disability/Sensory Impairment","Other Services to Adults with a PD or SI","Other Care & Support-Phys Disab","Other Support to Clients",24/03/2011 00:00:00,"30170204",900,"M A GHAFUR"
"Bracknell Forest Council","http://opendatacommunities.org/id/unitary-authority/bracknell-forest","Bracknell Forest Council","00MA","Family Support Services","Home Care","Children's Disabilities Care Needs","Voluntary Sector Service Providers",22/12/2010 00:00:00,"6438372",2900.38,"MAC CARING AGENCY LIMITED"
"Bracknell Forest Council","http://opendatacommunities.org/id/unitary-authority/bracknell-forest","Bracknell Forest Council","00MA","Family Support Services","Home Care","Children's Disabilities Care Needs","Voluntary Sector Service Providers",14/02/2011 00:00:00,"6441962",2968.32,"MAC CARING AGENCY LIMITED"
"Bracknell Forest Council","http://opendatacommunities.org/id/unitary-authority/bracknell-forest","Bracknell Forest Council","00MA","Older People (Aged 65 or Over)","Home Care","LD Live-In Carers","Contracted Services",22/03/2011 00:00:00,"30169981",4069.8,"MAC CARING AGENCY LIMITED"
"Bracknell Forest Council","http://opendatacommunities.org/id/unitary-authority/bracknell-forest","Bracknell Forest Council","00MA","","","Garth Hill BSF - Construction (Mace Plus)","Construction - Contract Payments",21/03/2011 00:00:00,"6442671",58761,"MACE PLUS LTD"
"Bracknell Forest Council","http://opendatacommunities.org/id/unitary-authority/bracknell-forest","Bracknell Forest Council","00MA","Central Support Services - COF","Finance","Payroll","Computer Software",02/03/2011 00:00:00,"6439760",4176,"MACRO 4"
"Bracknell Forest Council","http://opendatacommunities.org/id/unitary-authority/bracknell-forest","Bracknell Forest Council","00MA","Physical Disability/Sensory Impairment","Equipment & Adaptations","Aids & Adaptations Physical Disability","Equipment - Purchase",16/03/2011 00:00:00,"6442290",815.71,"MANGAR INTERNATIONAL LTD"
"Bracknell Forest Council","http://opendatacommunities.org/id/unitary-authority/bracknell-forest","Bracknell Forest Council","00MA","Learning Disability (under 65)","Supported and Other Accommodation","Supported living-Supported & Other AccomodationLD","Other Support to Clients",02/03/2011 00:00:00,"30169072",807.68,"MANOHAR GOPAL"
"Bracknell Forest Council","http://opendatacommunities.org/id/unitary-authority/bracknell-forest","Bracknell Forest Council","00MA","Learning Disability (under 65)","Supported and Other Accommodation","Supported living-Supported & Other AccomodationLD","Other Support to Clients",29/03/2011 00:00:00,"30170466",807.68,"MANOHAR GOPAL"
"Bracknell Forest Council","http://opendatacommunities.org/id/unitary-authority/bracknell-forest","Bracknell Forest Council","00MA","Children Looked After (CLA)","Children's Homes","Children's Home Placements","Contracted Services",10/03/2011 00:00:00,"6441497",2055.71,"MARLOWE CHILD & FAMILY SERVICES LTD"
"Bracknell Forest Council","http://opendatacommunities.org/id/unitary-authority/bracknell-forest","Bracknell Forest Council","00MA","Service Management & Support Services","Service Management & Support Services","Departmental Personnel","Training Costs",17/03/2011 00:00:00,"6441698",900,"MARY FRANCES"
"Bracknell Forest Council","http://opendatacommunities.org/id/unitary-authority/bracknell-forest","Bracknell Forest Council","00MA","Service Management & Support Services","Service Management & Support Services","Training - Environment & Public Protection","Training Costs",28/02/2011 00:00:00,"6439365",1440,"MAS ENVIRONMENTAL"
"Bracknell Forest Council","http://opendatacommunities.org/id/unitary-authority/bracknell-forest","Bracknell Forest Council","00MA","Support Services & Management Costs","Training","Social Care Training - Adults","Training Costs",14/03/2011 00:00:00,"6441508",1530,"MATRIX TRAINING ASSOCIATES"
"Bracknell Forest Council","http://opendatacommunities.org/id/unitary-authority/bracknell-forest","Bracknell Forest Council","00MA","","","Balance Sheet","Flexible Benefits Control Account",25/03/2011 00:00:00,"6442946",6282,"MBFS UK LTD"
"Bracknell Forest Council","http://opendatacommunities.org/id/unitary-authority/bracknell-forest","Bracknell Forest Council","00MA","","","Garth Hill - Client Fees","Consultant Fees",23/02/2011 00:00:00,"6440277",8500,"MCBAINS COOPER CONSULTING LIMITED"
"Bracknell Forest Council","http://opendatacommunities.org/id/unitary-authority/bracknell-forest","Bracknell Forest Council","00MA","Special Schools","Other Special Related Expenditure","Targeted Mental Health in Schools","Training Costs",16/03/2011 00:00:00,"6442222",15040,"MCC MEDIA LTD"
"Bracknell Forest Council","http://opendatacommunities.org/id/unitary-authority/bracknell-forest","Bracknell Forest Council","00MA","Special Schools","Other Special Related Expenditure","Targeted Mental Health in Schools","Consultants Fees",28/02/2011 00:00:00,"6440003",3600,"MDH CONSULTANCY"
"Bracknell Forest Council","http://opendatacommunities.org/id/unitary-authority/bracknell-forest","Bracknell Forest Council","00MA","Non-School Funding","Pre-School Education","SSEYCG Outcomes, Quality & Inclusion","Other Fees for Bought-in Services",28/02/2011 00:00:00,"6441338",1600,"MDH CONSULTANCY"
"Bracknell Forest Council","http://opendatacommunities.org/id/unitary-authority/bracknell-forest","Bracknell Forest Council","00MA","Recreation, Sports and Leisure","Indoor Sports & Recreation Facilities","Leisure DSO - Leisure Centre","Equipment - Purchase",22/02/2011 00:00:00,"6440931",1700,"MDS LEISURE"
"Bracknell Forest Council","http://opendatacommunities.org/id/unitary-authority/bracknell-forest","Bracknell Forest Council","00MA","Non-School Funding","Pre-School Education","The Alders Children's Centre","Fixtures & Fittings - Purchase",23/02/2011 00:00:00,"6439301",2264.91,"MDW INSTALLATIONS"
"Bracknell Forest Council","http://opendatacommunities.org/id/unitary-authority/bracknell-forest","Bracknell Forest Council","00MA","Special Schools","Other Special Related Expenditure","Supporting Special Educational Needs","Voluntary Sector Service Providers",19/01/2011 00:00:00,"6440968",1151.28,"MEADOWBROOK  MONTESSORI SCHOOL"
"Bracknell Forest Council","http://opendatacommunities.org/id/unitary-authority/bracknell-forest","Bracknell Forest Council","00MA","Special Schools","Other Special Related Expenditure","Supporting Special Educational Needs","Voluntary Sector Service Providers",19/01/2011 00:00:00,"6440969",1300,"MEADOWBROOK  MONTESSORI SCHOOL"
"Bracknell Forest Council","http://opendatacommunities.org/id/unitary-authority/bracknell-forest","Bracknell Forest Council","00MA","Non-School Funding","Pre-School Education","Early Years and Childcare","Grants and Donations",23/03/2011 00:00:00,"6442401",1161,"MEADOWBROOK  MONTESSORI SCHOOL"
"Bracknell Forest Council","http://opendatacommunities.org/id/unitary-authority/bracknell-forest","Bracknell Forest Council","00MA","Transport Planning, Policy & Strategy","Transport Policy, Planning & Strategy","NRSWA S74 Overruns","Consultants Fees",24/03/2011 00:00:00,"6442786",7500,"MEASURE 2 IMPROVE"
"Bracknell Forest Council","http://opendatacommunities.org/id/unitary-authority/bracknell-forest","Bracknell Forest Council","00MA","Education Management & Support Service","Education Department - Other","South East Grid for Learning","Approved Conference Fees & Expenses",02/03/2011 00:00:00,"6440924",5760,"MEDWAY COUNCIL"
"Bracknell Forest Council","http://opendatacommunities.org/id/unitary-authority/bracknell-forest","Bracknell Forest Council","00MA","","","Housing Tfer - New South Bracknell Youth Centre","Vehicles",10/02/2011 00:00:00,"6442566",31241,"MELLOR COACHCRAFT"
"Bracknell Forest Council","http://opendatacommunities.org/id/unitary-authority/bracknell-forest","Bracknell Forest Council","00MA","Non-School Funding","Pre-School Education","Children's Centre Co-ordination","Other Fees for Bought-in Services",25/02/2011 00:00:00,"6441419",5510,"MEND CENTRAL LIMITED"
"Bracknell Forest Council","http://opendatacommunities.org/id/unitary-authority/bracknell-forest","Bracknell Forest Council","00MA","","","Housing Rent Deposits","Deposits to Homeless for Rent",03/03/2011 00:00:00,"6439741",650,"MEYLER LETTINGS & PROPERTY MANAGEMENT"
"Bracknell Forest Council","http://opendatacommunities.org/id/unitary-authority/bracknell-forest","Bracknell Forest Council","00MA","","","Housing Rent Deposits","Deposits to Homeless for Rent",09/03/2011 00:00:00,"6440395",650,"MEYLER LETTINGS & PROPERTY MANAGEMENT"
"Bracknell Forest Council","http://opendatacommunities.org/id/unitary-authority/bracknell-forest","Bracknell Forest Council","00MA","","","Balance Sheet","Flexible Benefits Control Account",09/03/2011 00:00:00,"6441846",1272.97,"MHW BIKE HOUSE"
"Bracknell Forest Council","http://opendatacommunities.org/id/unitary-authority/bracknell-forest","Bracknell Forest Council","00MA","Non-School Funding","Pre-School Education","Every Child A Talker","Other Fees for Bought-in Services",03/03/2011 00:00:00,"6441420",500,"MICHAEL JONES"
"Bracknell Forest Council","http://opendatacommunities.org/id/unitary-authority/bracknell-forest","Bracknell Forest Council","00MA","Older People (Aged 65 or Over)","Nursing Home Placements","Nursing Home Placements-Elderly","Contracted Services",15/03/2011 00:00:00,"30169687",2100.96,"MILKWOOD CARE LIMITED - MOUNTAINS NURSING HOME"
"Bracknell Forest Council","http://opendatacommunities.org/id/unitary-authority/bracknell-forest","Bracknell Forest Council","00MA","Older People (Aged 65 or Over)","Home Care","Home Care-Elderly","Contracted Services",02/03/2011 00:00:00,"30169071",532.8,"MILLER CARE SERVICE LIMITED"
"Bracknell Forest Council","http://opendatacommunities.org/id/unitary-authority/bracknell-forest","Bracknell Forest Council","00MA","Older People (Aged 65 or Over)","Home Care","Home Care-Elderly","Contracted Services",02/03/2011 00:00:00,"30169071",957.2,"MILLER CARE SERVICE LIMITED"
"Bracknell Forest Council","http://opendatacommunities.org/id/unitary-authority/bracknell-forest","Bracknell Forest Council","00MA","Older People (Aged 65 or Over)","Home Care","Home Care-Elderly","Contracted Services",02/03/2011 00:00:00,"30169071",518.4,"MILLER CARE SERVICE LIMITED"
"Bracknell Forest Council","http://opendatacommunities.org/id/unitary-authority/bracknell-forest","Bracknell Forest Council","00MA","Older People (Aged 65 or Over)","Home Care","Home Care-Elderly","Contracted Services",02/03/2011 00:00:00,"30169071",708.8,"MILLER CARE SERVICE LIMITED"
"Bracknell Forest Council","http://opendatacommunities.org/id/unitary-authority/bracknell-forest","Bracknell Forest Council","00MA","Older People (Aged 65 or Over)","Home Care","Home Care-Elderly","Contracted Services",02/03/2011 00:00:00,"30169071",903.6,"MILLER CARE SERVICE LIMITED"
"Bracknell Forest Council","http://opendatacommunities.org/id/unitary-authority/bracknell-forest","Bracknell Forest Council","00MA","Older People (Aged 65 or Over)","Home Care","Home Care-Elderly","Contracted Services",02/03/2011 00:00:00,"30169071",532.8,"MILLER CARE SERVICE LIMITED"
"Bracknell Forest Council","http://opendatacommunities.org/id/unitary-authority/bracknell-forest","Bracknell Forest Council","00MA","Physical Disability/Sensory Impairment","Homecare","Home Care-Phys Disab","Contracted Services",02/03/2011 00:00:00,"30169071",331.2,"MILLER CARE SERVICE LIMITED"
"Bracknell Forest Council","http://opendatacommunities.org/id/unitary-authority/bracknell-forest","Bracknell Forest Council","00MA","Older People (Aged 65 or Over)","Home Care","Home Care-Elderly","Contracted Services",02/03/2011 00:00:00,"30169071",820.6,"MILLER CARE SERVICE LIMITED"
"Bracknell Forest Council","http://opendatacommunities.org/id/unitary-authority/bracknell-forest","Bracknell Forest Council","00MA","Older People (Aged 65 or Over)","Home Care","Home Care-Elderly","Contracted Services",02/03/2011 00:00:00,"30169071",111.6,"MILLER CARE SERVICE LIMITED"
"Bracknell Forest Council","http://opendatacommunities.org/id/unitary-authority/bracknell-forest","Bracknell Forest Council","00MA","Older People (Aged 65 or Over)","Home Care","Home Care-Elderly","Contracted Services",02/03/2011 00:00:00,"30169071",1050.8,"MILLER CARE SERVICE LIMITED"
"Bracknell Forest Council","http://opendatacommunities.org/id/unitary-authority/bracknell-forest","Bracknell Forest Council","00MA","Non-School Funding","Pre-School Education","SSEYCG Outcomes, Quality & Inclusion","Other Fees for Bought-in Services",16/03/2011 00:00:00,"6442172",676,"MILTON KEYNES PLAY ASSOCIATION"
"Bracknell Forest Council","http://opendatacommunities.org/id/unitary-authority/bracknell-forest","Bracknell Forest Council","00MA","Learning Disability (under 65)","Direct Payments - LD","Direct Payments - LD","Direct Payments to Clients",29/03/2011 00:00:00,"30170467",2094.56,"REDACTED PERSONAL DATA"
"Bracknell Forest Council","http://opendatacommunities.org/id/unitary-authority/bracknell-forest","Bracknell Forest Council","00MA","Learning Disability (under 65)","Direct Payments - LD","Direct Payments - LD","Client Contributions Other",29/03/2011 00:00:00,"30170467",-520.23,"REDACTED PERSONAL DATA"
"Bracknell Forest Council","http://opendatacommunities.org/id/unitary-authority/bracknell-forest","Bracknell Forest Council","00MA","Learning Disability (under 65)","Direct Payments - LD","Direct Payments - LD","Direct Payments to Clients",29/03/2011 00:00:00,"30170467",5077.44,"REDACTED PERSONAL DATA"
"Bracknell Forest Council","http://opendatacommunities.org/id/unitary-authority/bracknell-forest","Bracknell Forest Council","00MA","Physical Disability/Sensory Impairment","Direct Payments","Direct Payments - PD","Direct Payments to Clients",29/03/2011 00:00:00,"30170467",-1668.63,"REDACTED PERSONAL DATA"
"Bracknell Forest Council","http://opendatacommunities.org/id/unitary-authority/bracknell-forest","Bracknell Forest Council","00MA","Physical Disability/Sensory Impairment","Direct Payments","Direct Payments - PD","Direct Payments to Clients",29/03/2011 00:00:00,"30170467",63,"REDACTED PERSONAL DATA"
"Bracknell Forest Council","http://opendatacommunities.org/id/unitary-authority/bracknell-forest","Bracknell Forest Council","00MA","Physical Disability/Sensory Impairment","Direct Payments","Direct Payments - PD","Client Contributions Other",29/03/2011 00:00:00,"30170467",-11.9,"REDACTED PERSONAL DATA"
"Bracknell Forest Council","http://opendatacommunities.org/id/unitary-authority/bracknell-forest","Bracknell Forest Council","00MA","Older People (Aged 65 or Over)","Direct Payments","Direct Payments - OP","Direct Payments to Clients",29/03/2011 00:00:00,"30170467",710.64,"REDACTED PERSONAL DATA"
"Bracknell Forest Council","http://opendatacommunities.org/id/unitary-authority/bracknell-forest","Bracknell Forest Council","00MA","Older People (Aged 65 or Over)","Direct Payments","Direct Payments - OP","Client Contributions Other",29/03/2011 00:00:00,"30170467",-134.18,"REDACTED PERSONAL DATA"
"Bracknell Forest Council","http://opendatacommunities.org/id/unitary-authority/bracknell-forest","Bracknell Forest Council","00MA","Learning Disability (under 65)","Direct Payments - LD","Direct Payments - LD","Direct Payments to Clients",29/03/2011 00:00:00,"30170467",591.12,"REDACTED PERSONAL DATA"
"Bracknell Forest Council","http://opendatacommunities.org/id/unitary-authority/bracknell-forest","Bracknell Forest Council","00MA","Physical Disability/Sensory Impairment","Direct Payments","Direct Payments - PD","Direct Payments to Clients",29/03/2011 00:00:00,"30170467",3251.72,"REDACTED PERSONAL DATA"
"Bracknell Forest Council","http://opendatacommunities.org/id/unitary-authority/bracknell-forest","Bracknell Forest Council","00MA","Physical Disability/Sensory Impairment","Direct Payments","Direct Payments - PD","Client Contributions Other",29/03/2011 00:00:00,"30170467",-1291.4,"REDACTED PERSONAL DATA"
"Bracknell Forest Council","http://opendatacommunities.org/id/unitary-authority/bracknell-forest","Bracknell Forest Council","00MA","Physical Disability/Sensory Impairment","Direct Payments","Direct Payments - PD","Direct Payments to Clients",29/03/2011 00:00:00,"30170467",146.68,"REDACTED PERSONAL DATA"
"Bracknell Forest Council","http://opendatacommunities.org/id/unitary-authority/bracknell-forest","Bracknell Forest Council","00MA","Physical Disability/Sensory Impairment","Direct Payments","Direct Payments - PD","Direct Payments to Clients",31/03/2011 00:00:00,"30170732",461.57,"REDACTED PERSONAL DATA"
"Bracknell Forest Council","http://opendatacommunities.org/id/unitary-authority/bracknell-forest","Bracknell Forest Council","00MA","Physical Disability/Sensory Impairment","Direct Payments","Direct Payments - PD","Client Contributions Other",29/03/2011 00:00:00,"30170467",-1259.48,"REDACTED PERSONAL DATA"
"Bracknell Forest Council","http://opendatacommunities.org/id/unitary-authority/bracknell-forest","Bracknell Forest Council","00MA","Physical Disability/Sensory Impairment","Direct Payments","Direct Payments - PD","Direct Payments to Clients",29/03/2011 00:00:00,"30170467",4074.52,"REDACTED PERSONAL DATA"
"Bracknell Forest Council","http://opendatacommunities.org/id/unitary-authority/bracknell-forest","Bracknell Forest Council","00MA","Learning Disability (under 65)","Direct Payments - LD","Direct Payments - LD","Client Contributions Other",29/03/2011 00:00:00,"30170467",-210.1,"REDACTED PERSONAL DATA"
"Bracknell Forest Council","http://opendatacommunities.org/id/unitary-authority/bracknell-forest","Bracknell Forest Council","00MA","Learning Disability (under 65)","Direct Payments - LD","Direct Payments - LD","Direct Payments to Clients",29/03/2011 00:00:00,"30170467",6720,"REDACTED PERSONAL DATA"
"Bracknell Forest Council","http://opendatacommunities.org/id/unitary-authority/bracknell-forest","Bracknell Forest Council","00MA","Learning Disability (under 65)","Direct Payments - LD","Direct Payments - LD","Direct Payments to Clients",29/03/2011 00:00:00,"30170467",515.92,"REDACTED PERSONAL DATA"
"Bracknell Forest Council","http://opendatacommunities.org/id/unitary-authority/bracknell-forest","Bracknell Forest Council","00MA","Physical Disability/Sensory Impairment","Direct Payments","Direct Payments - PD","Direct Payments to Clients",29/03/2011 00:00:00,"30170467",1289.48,"REDACTED PERSONAL DATA"
"Bracknell Forest Council","http://opendatacommunities.org/id/unitary-authority/bracknell-forest","Bracknell Forest Council","00MA","Parking Services","Off Street Parking","Off Street Parking","R&M - Reactive",24/02/2011 00:00:00,"6441568",731.15,"MITIE LIGHTING LTD"
"Bracknell Forest Council","http://opendatacommunities.org/id/unitary-authority/bracknell-forest","Bracknell Forest Council","00MA","","","Asset Management Plan","Construction - Other Direct Expenses",28/02/2011 00:00:00,"6441674",502.08,"MMA LIGHTING CONSULTANCY LIMITED"
"Bracknell Forest Council","http://opendatacommunities.org/id/unitary-authority/bracknell-forest","Bracknell Forest Council","00MA","","","Asset Management Plan","Construction - Other Direct Expenses",07/02/2011 00:00:00,"6441675",529,"MMA LIGHTING CONSULTANCY LIMITED"
"Bracknell Forest Council","http://opendatacommunities.org/id/unitary-authority/bracknell-forest","Bracknell Forest Council","00MA","Children Looked After (CLA)","Fostering Services","Independent Fostering (Non BFBC)","Contracted Services",08/03/2011 00:00:00,"6441177",3828,"MOMENTS  FOSTERING LTD"
"Bracknell Forest Council","http://opendatacommunities.org/id/unitary-authority/bracknell-forest","Bracknell Forest Council","00MA","Older People (Aged 65 or Over)","Nursing Home Placements","Nursing Home Placements-Elderly","Contracted Services",15/03/2011 00:00:00,"30169687",2295.88,"MOORLANDS NURSING HOME"
"Bracknell Forest Council","http://opendatacommunities.org/id/unitary-authority/bracknell-forest","Bracknell Forest Council","00MA","","","Aiming High","Construction - Contract Payments",24/02/2011 00:00:00,"6439688",19295.92,"MORRIS & BLUNT LTD"
"Bracknell Forest Council","http://opendatacommunities.org/id/unitary-authority/bracknell-forest","Bracknell Forest Council","00MA","Primary Schools","Other Primary Related Expenditure","Crownwood LAL","Minor Improvement Schemes",29/11/2010 00:00:00,"6441544",2405.95,"MORRIS & BLUNT LTD"
"Bracknell Forest Council","http://opendatacommunities.org/id/unitary-authority/bracknell-forest","Bracknell Forest Council","00MA","","","Aiming High","Construction - Contract Payments",23/03/2011 00:00:00,"6443048",4018.69,"MORRIS & BLUNT LTD"
"Bracknell Forest Council","http://opendatacommunities.org/id/unitary-authority/bracknell-forest","Bracknell Forest Council","00MA","Primary Schools","Other Primary Related Expenditure","Primary Resource Centre","R&M - Reactive",17/03/2011 00:00:00,"6443060",2597,"MORRIS & BLUNT LTD"
"Bracknell Forest Council","http://opendatacommunities.org/id/unitary-authority/bracknell-forest","Bracknell Forest Council","00MA","Housing Benefits Administration","Housing Benefits Administration","Benefits Administration","Postage",01/03/2011 00:00:00,"6440561",5760,"MOTAVATION PUBLISHING & GRAPHICS LTD"
"Bracknell Forest Council","http://opendatacommunities.org/id/unitary-authority/bracknell-forest","Bracknell Forest Council","00MA","Local Tax Collection","Council Tax Collection","Council Tax","Other Fees for Bought-in Services",21/03/2011 00:00:00,"6442585",5763.96,"MOTAVATION PUBLISHING & GRAPHICS LTD"
"Bracknell Forest Council","http://opendatacommunities.org/id/unitary-authority/bracknell-forest","Bracknell Forest Council","00MA","","","Accommodation Strategy - Preparatory Works","Other Direct Expenses",19/03/2011 00:00:00,"6442788",585,"MOVING MATTERS"
"Bracknell Forest Council","http://opendatacommunities.org/id/unitary-authority/bracknell-forest","Bracknell Forest Council","00MA","Other Children's & Family Services","Leaving Care Services","QP - Care Leavers","Contracted Services",01/03/2011 00:00:00,"6440445",2175.27,"MOVING ON CARE MANAGEMENT LTD"
"Bracknell Forest Council","http://opendatacommunities.org/id/unitary-authority/bracknell-forest","Bracknell Forest Council","00MA","Other Children's & Family Services","Leaving Care Services","QP - Care Leavers","Contracted Services",01/03/2011 00:00:00,"6440446",2529.6,"MOVING ON CARE MANAGEMENT LTD"
"Bracknell Forest Council","http://opendatacommunities.org/id/unitary-authority/bracknell-forest","Bracknell Forest Council","00MA","Children Looked After (CLA)","Children's Homes","Children's Home Placements","Contracted Services",01/03/2011 00:00:00,"6440451",2175.27,"MOVING ON CARE MANAGEMENT LTD"
"Bracknell Forest Council","http://opendatacommunities.org/id/unitary-authority/bracknell-forest","Bracknell Forest Council","00MA","Homelessness","Private Sector Accom leased by Authority","Leased Accommodation - Homeless Families","Rent of Property",28/03/2011 00:00:00,"6442820",840,"MR & MRS S MAVIN"
"Bracknell Forest Council","http://opendatacommunities.org/id/unitary-authority/bracknell-forest","Bracknell Forest Council","00MA","Education Management & Support Service","Performance & Resources","Finance","Consultants Fees",18/03/2011 00:00:00,"6442490",2420,"MR A T TRAVERS"
"Bracknell Forest Council","http://opendatacommunities.org/id/unitary-authority/bracknell-forest","Bracknell Forest Council","00MA","Learning Disability (under 65)","Direct Payments - LD","Direct Payments - LD","Client Contributions Other",29/03/2011 00:00:00,"30170467",-267.57,"REDACTED PERSONAL DATA"
"Bracknell Forest Council","http://opendatacommunities.org/id/unitary-authority/bracknell-forest","Bracknell Forest Council","00MA","Learning Disability (under 65)","Direct Payments - LD","Direct Payments - LD","Direct Payments to Clients",29/03/2011 00:00:00,"30170467",1160,"REDACTED PERSONAL DATA"
"Bracknell Forest Council","http://opendatacommunities.org/id/unitary-authority/bracknell-forest","Bracknell Forest Council","00MA","Learning Disability (under 65)","Direct Payments - LD","Direct Payments - LD","Direct Payments to Clients",29/03/2011 00:00:00,"30170467",894.24,"REDACTED PERSONAL DATA"
"Bracknell Forest Council","http://opendatacommunities.org/id/unitary-authority/bracknell-forest","Bracknell Forest Council","00MA","Physical Disability/Sensory Impairment","Direct Payments","Direct Payments - PD","Direct Payments to Clients",29/03/2011 00:00:00,"30170467",2302.47,"REDACTED PERSONAL DATA"
"Bracknell Forest Council","http://opendatacommunities.org/id/unitary-authority/bracknell-forest","Bracknell Forest Council","00MA","Physical Disability/Sensory Impairment","Direct Payments","Direct Payments - PD","Client Contributions Other",29/03/2011 00:00:00,"30170467",-880.4,"REDACTED PERSONAL DATA"
"Bracknell Forest Council","http://opendatacommunities.org/id/unitary-authority/bracknell-forest","Bracknell Forest Council","00MA","Older People (Aged 65 or Over)","Direct Payments","Direct Payments - OP","Direct Payments to Clients",29/03/2011 00:00:00,"30170467",-1620,"REDACTED PERSONAL DATA"
"Bracknell Forest Council","http://opendatacommunities.org/id/unitary-authority/bracknell-forest","Bracknell Forest Council","00MA","Education Management & Support Service","School Related Expenditure","HTS Interim","Taxi Fares - Home/School Transport",28/02/2011 00:00:00,"6440192",13801.77,"MR C F BUNN"
"Bracknell Forest Council","http://opendatacommunities.org/id/unitary-authority/bracknell-forest","Bracknell Forest Council","00MA","Learning Disability (under 65)","Direct Payments - LD","Direct Payments - LD","Direct Payments to Clients",29/03/2011 00:00:00,"30170467",1780.04,"REDACTED PERSONAL DATA"
"Bracknell Forest Council","http://opendatacommunities.org/id/unitary-authority/bracknell-forest","Bracknell Forest Council","00MA","Learning Disability (under 65)","Direct Payments - LD","Direct Payments - LD","Client Contributions Other",29/03/2011 00:00:00,"30170467",-1088.6,"REDACTED PERSONAL DATA"
"Bracknell Forest Council","http://opendatacommunities.org/id/unitary-authority/bracknell-forest","Bracknell Forest Council","00MA","Learning Disability (under 65)","Direct Payments - LD","Direct Payments - LD","Direct Payments to Clients",29/03/2011 00:00:00,"30170467",1965.4,"REDACTED PERSONAL DATA"
"Bracknell Forest Council","http://opendatacommunities.org/id/unitary-authority/bracknell-forest","Bracknell Forest Council","00MA","Learning Disability (under 65)","Direct Payments - LD","Direct Payments - LD","Direct Payments to Clients",29/03/2011 00:00:00,"30170467",870.6,"REDACTED PERSONAL DATA"
"Bracknell Forest Council","http://opendatacommunities.org/id/unitary-authority/bracknell-forest","Bracknell Forest Council","00MA","Older People (Aged 65 or Over)","Direct Payments","Direct Payments - OP","Direct Payments to Clients",29/03/2011 00:00:00,"30170467",1195.2,"REDACTED PERSONAL DATA"
"Bracknell Forest Council","http://opendatacommunities.org/id/unitary-authority/bracknell-forest","Bracknell Forest Council","00MA","Older People (Aged 65 or Over)","Direct Payments","Direct Payments - OP","Client Contributions Other",29/03/2011 00:00:00,"30170467",-316.48,"REDACTED PERSONAL DATA"
"Bracknell Forest Council","http://opendatacommunities.org/id/unitary-authority/bracknell-forest","Bracknell Forest Council","00MA","Older People (Aged 65 or Over)","Direct Payments","Direct Payments - OP","Direct Payments to Clients",29/03/2011 00:00:00,"30170467",72,"REDACTED PERSONAL DATA"
"Bracknell Forest Council","http://opendatacommunities.org/id/unitary-authority/bracknell-forest","Bracknell Forest Council","00MA","Physical Disability/Sensory Impairment","Direct Payments","Direct Payments - PD","Direct Payments to Clients",29/03/2011 00:00:00,"30170467",734,"REDACTED PERSONAL DATA"
"Bracknell Forest Council","http://opendatacommunities.org/id/unitary-authority/bracknell-forest","Bracknell Forest Council","00MA","Learning Disability (under 65)","Direct Payments - LD","Direct Payments - LD","Direct Payments to Clients",29/03/2011 00:00:00,"30170467",939.12,"REDACTED PERSONAL DATA"
"Bracknell Forest Council","http://opendatacommunities.org/id/unitary-authority/bracknell-forest","Bracknell Forest Council","00MA","Physical Disability/Sensory Impairment","Direct Payments","Direct Payments - PD","Direct Payments to Clients",29/03/2011 00:00:00,"30170467",2143.96,"REDACTED PERSONAL DATA"
"Bracknell Forest Council","http://opendatacommunities.org/id/unitary-authority/bracknell-forest","Bracknell Forest Council","00MA","Physical Disability/Sensory Impairment","Direct Payments","Direct Payments - PD","Client Contributions Other",29/03/2011 00:00:00,"30170467",-992.72,"REDACTED PERSONAL DATA"
"Bracknell Forest Council","http://opendatacommunities.org/id/unitary-authority/bracknell-forest","Bracknell Forest Council","00MA","Older People (Aged 65 or Over)","Direct Payments","Direct Payments - OP","Client Contributions Other",29/03/2011 00:00:00,"30170467",-23.3,"REDACTED PERSONAL DATA"
"Bracknell Forest Council","http://opendatacommunities.org/id/unitary-authority/bracknell-forest","Bracknell Forest Council","00MA","Older People (Aged 65 or Over)","Direct Payments","Direct Payments - OP","Client Contributions Other",29/03/2011 00:00:00,"30170467",-74.13,"REDACTED PERSONAL DATA"
"Bracknell Forest Council","http://opendatacommunities.org/id/unitary-authority/bracknell-forest","Bracknell Forest Council","00MA","Older People (Aged 65 or Over)","Direct Payments","Direct Payments - OP","Direct Payments to Clients",29/03/2011 00:00:00,"30170467",1640.16,"REDACTED PERSONAL DATA"
"Bracknell Forest Council","http://opendatacommunities.org/id/unitary-authority/bracknell-forest","Bracknell Forest Council","00MA","Special Schools","Other Special Related Expenditure","Supporting Special Educational Needs","Voluntary Sector Service Providers",01/02/2011 00:00:00,"6440988",1770.4,"REDACTED PERSONAL DATA"
"Bracknell Forest Council","http://opendatacommunities.org/id/unitary-authority/bracknell-forest","Bracknell Forest Council","00MA","Special Schools","Other Special Related Expenditure","Supporting Special Educational Needs","Voluntary Sector Service Providers",28/02/2011 00:00:00,"6441084",1988.65,"REDACTED PERSONAL DATA"
"Bracknell Forest Council","http://opendatacommunities.org/id/unitary-authority/bracknell-forest","Bracknell Forest Council","00MA","Learning Disability (under 65)","Direct Payments - LD","Direct Payments - LD","Direct Payments to Clients",29/03/2011 00:00:00,"30170467",1403.16,"REDACTED PERSONAL DATA"
"Bracknell Forest Council","http://opendatacommunities.org/id/unitary-authority/bracknell-forest","Bracknell Forest Council","00MA","Learning Disability (under 65)","Direct Payments - LD","Direct Payments - LD","Direct Payments to Clients",29/03/2011 00:00:00,"30170467",694.16,"REDACTED PERSONAL DATA"
"Bracknell Forest Council","http://opendatacommunities.org/id/unitary-authority/bracknell-forest","Bracknell Forest Council","00MA","Learning Disability (under 65)","Direct Payments - LD","Direct Payments - LD","Direct Payments to Clients",29/03/2011 00:00:00,"30170467",945.4,"REDACTED PERSONAL DATA"
"Bracknell Forest Council","http://opendatacommunities.org/id/unitary-authority/bracknell-forest","Bracknell Forest Council","00MA","Unapportionable Central Overheads","Unapportionable Central Overheads","Smartcard Networking Forum","Consultants Fees",25/02/2011 00:00:00,"6440344",950,"MR M R BELLINGER"
"Bracknell Forest Council","http://opendatacommunities.org/id/unitary-authority/bracknell-forest","Bracknell Forest Council","00MA","Childrens services-Commissioning & SW","Commissioning & Social Work","Children Aged Under 11","Agency",07/03/2011 00:00:00,"6441193",5005,"REDACTED PERSONAL DATA"
"Bracknell Forest Council","http://opendatacommunities.org/id/unitary-authority/bracknell-forest","Bracknell Forest Council","00MA","Learning Disability (under 65)","Direct Payments - LD","Direct Payments - LD","Client Contributions Other",29/03/2011 00:00:00,"30170467",-846.96,"REDACTED PERSONAL DATA"
"Bracknell Forest Council","http://opendatacommunities.org/id/unitary-authority/bracknell-forest","Bracknell Forest Council","00MA","Learning Disability (under 65)","Direct Payments - LD","Direct Payments - LD","Direct Payments to Clients",29/03/2011 00:00:00,"30170467",2129.96,"REDACTED PERSONAL DATA"
"Bracknell Forest Council","http://opendatacommunities.org/id/unitary-authority/bracknell-forest","Bracknell Forest Council","00MA","Learning Disability (under 65)","Direct Payments - LD","Direct Payments - LD","Direct Payments to Clients",29/03/2011 00:00:00,"30170467",780.08,"REDACTED PERSONAL DATA"
"Bracknell Forest Council","http://opendatacommunities.org/id/unitary-authority/bracknell-forest","Bracknell Forest Council","00MA","Learning Disability (under 65)","Direct Payments - LD","Direct Payments - LD","Direct Payments to Clients",29/03/2011 00:00:00,"30170467",600,"REDACTED PERSONAL DATA"
"Bracknell Forest Council","http://opendatacommunities.org/id/unitary-authority/bracknell-forest","Bracknell Forest Council","00MA","Physical Disability/Sensory Impairment","Direct Payments","Direct Payments - PD","Direct Payments to Clients",29/03/2011 00:00:00,"30170467",970.32,"REDACTED PERSONAL DATA"
"Bracknell Forest Council","http://opendatacommunities.org/id/unitary-authority/bracknell-forest","Bracknell Forest Council","00MA","Learning Disability (under 65)","Direct Payments - LD","Direct Payments - LD","Client Contributions Other",29/03/2011 00:00:00,"30170467",-22.27,"REDACTED PERSONAL DATA"
"Bracknell Forest Council","http://opendatacommunities.org/id/unitary-authority/bracknell-forest","Bracknell Forest Council","00MA","Learning Disability (under 65)","Direct Payments - LD","Direct Payments - LD","Direct Payments to Clients",29/03/2011 00:00:00,"30170467",1107.52,"REDACTED PERSONAL DATA"
"Bracknell Forest Council","http://opendatacommunities.org/id/unitary-authority/bracknell-forest","Bracknell Forest Council","00MA","Childrens services-Commissioning & SW","Commissioning & Social Work","QP - Choice Protects","Consultants Fees",08/03/2011 00:00:00,"6441495",648.76,"MR RICHARD CHARLES FOSTER"
"Bracknell Forest Council","http://opendatacommunities.org/id/unitary-authority/bracknell-forest","Bracknell Forest Council","00MA","Development Control","Applications - Development Control","Development Control","Legal Fees",25/02/2011 00:00:00,"6439762",3000,"MR RICHARD LANGHAM"
"Bracknell Forest Council","http://opendatacommunities.org/id/unitary-authority/bracknell-forest","Bracknell Forest Council","00MA","Physical Disability/Sensory Impairment","Direct Payments","Direct Payments - PD","Direct Payments to Clients",29/03/2011 00:00:00,"30170467",1411.2,"REDACTED PERSONAL DATA"
"Bracknell Forest Council","http://opendatacommunities.org/id/unitary-authority/bracknell-forest","Bracknell Forest Council","00MA","Learning Disability (under 65)","Direct Payments - LD","Direct Payments - LD","Client Contributions Other",29/03/2011 00:00:00,"30170467",-57.94,"REDACTED PERSONAL DATA"
"Bracknell Forest Council","http://opendatacommunities.org/id/unitary-authority/bracknell-forest","Bracknell Forest Council","00MA","Learning Disability (under 65)","Direct Payments - LD","Direct Payments - LD","Direct Payments to Clients",29/03/2011 00:00:00,"30170467",716.8,"REDACTED PERSONAL DATA"
"Bracknell Forest Council","http://opendatacommunities.org/id/unitary-authority/bracknell-forest","Bracknell Forest Council","00MA","Older People (Aged 65 or Over)","Direct Payments","Direct Payments - OP","Direct Payments to Clients",29/03/2011 00:00:00,"30170467",1947.36,"REDACTED PERSONAL DATA"
"Bracknell Forest Council","http://opendatacommunities.org/id/unitary-authority/bracknell-forest","Bracknell Forest Council","00MA","Older People (Aged 65 or Over)","Direct Payments","Direct Payments - OP","Client Contributions Other",29/03/2011 00:00:00,"30170467",-27.52,"REDACTED PERSONAL DATA"
"Bracknell Forest Council","http://opendatacommunities.org/id/unitary-authority/bracknell-forest","Bracknell Forest Council","00MA","Physical Disability/Sensory Impairment","Direct Payments","Direct Payments - PD","Direct Payments to Clients",29/03/2011 00:00:00,"30170467",551.12,"REDACTED PERSONAL DATA"
"Bracknell Forest Council","http://opendatacommunities.org/id/unitary-authority/bracknell-forest","Bracknell Forest Council","00MA","Non-School Funding","Pre-School Education","Early Years and Childcare","Grants and Donations",10/03/2011 00:00:00,"6441653",3257.1,"REDACTED PERSONAL DATA"
"Bracknell Forest Council","http://opendatacommunities.org/id/unitary-authority/bracknell-forest","Bracknell Forest Council","00MA","Physical Disability/Sensory Impairment","Direct Payments","Direct Payments - PD","Direct Payments to Clients",29/03/2011 00:00:00,"30170467",711.16,"REDACTED PERSONAL DATA"
"Bracknell Forest Council","http://opendatacommunities.org/id/unitary-authority/bracknell-forest","Bracknell Forest Council","00MA","Childrens services-Commissioning & SW","Commissioning & Social Work","QP - Choice Protects","Consultants Fees",03/03/2011 00:00:00,"6440453",624.36,"MRS C F MUSTON"
"Bracknell Forest Council","http://opendatacommunities.org/id/unitary-authority/bracknell-forest","Bracknell Forest Council","00MA","Physical Disability/Sensory Impairment","Direct Payments","Direct Payments - PD","Direct Payments to Clients",29/03/2011 00:00:00,"30170467",1382.4,"REDACTED PERSONAL DATA"
"Bracknell Forest Council","http://opendatacommunities.org/id/unitary-authority/bracknell-forest","Bracknell Forest Council","00MA","Physical Disability/Sensory Impairment","Direct Payments","Direct Payments - PD","Direct Payments to Clients",29/03/2011 00:00:00,"30170467",1207.6,"REDACTED PERSONAL DATA"
"Bracknell Forest Council","http://opendatacommunities.org/id/unitary-authority/bracknell-forest","Bracknell Forest Council","00MA","Older People (Aged 65 or Over)","Direct Payments","Direct Payments - OP","Client Contributions Other",29/03/2011 00:00:00,"30170467",-102.9,"REDACTED PERSONAL DATA"
"Bracknell Forest Council","http://opendatacommunities.org/id/unitary-authority/bracknell-forest","Bracknell Forest Council","00MA","Older People (Aged 65 or Over)","Direct Payments","Direct Payments - OP","Direct Payments to Clients",29/03/2011 00:00:00,"30170467",2620.8,"REDACTED PERSONAL DATA"
"Bracknell Forest Council","http://opendatacommunities.org/id/unitary-authority/bracknell-forest","Bracknell Forest Council","00MA","Older People (Aged 65 or Over)","Direct Payments","Direct Payments - OP","Direct Payments to Clients",29/03/2011 00:00:00,"30170467",284.96,"REDACTED PERSONAL DATA"
"Bracknell Forest Council","http://opendatacommunities.org/id/unitary-authority/bracknell-forest","Bracknell Forest Council","00MA","Older People (Aged 65 or Over)","Direct Payments","Direct Payments - OP","Client Contributions Other",29/03/2011 00:00:00,"30170467",-48.87,"REDACTED PERSONAL DATA"
"Bracknell Forest Council","http://opendatacommunities.org/id/unitary-authority/bracknell-forest","Bracknell Forest Council","00MA","Support Services & Management Costs","Training","Social Care Training","Training Costs",01/02/2011 00:00:00,"6443236",1155,"MRS CEPPY HOSEGOOD"
"Bracknell Forest Council","http://opendatacommunities.org/id/unitary-authority/bracknell-forest","Bracknell Forest Council","00MA","Physical Disability/Sensory Impairment","Direct Payments","Direct Payments - PD","Direct Payments to Clients",29/03/2011 00:00:00,"30170467",2323.36,"REDACTED PERSONAL DATA"
"Bracknell Forest Council","http://opendatacommunities.org/id/unitary-authority/bracknell-forest","Bracknell Forest Council","00MA","Older People (Aged 65 or Over)","Direct Payments","Direct Payments - OP","Direct Payments to Clients",29/03/2011 00:00:00,"30170467",604.8,"REDACTED PERSONAL DATA"
"Bracknell Forest Council","http://opendatacommunities.org/id/unitary-authority/bracknell-forest","Bracknell Forest Council","00MA","Mental Health Needs (Under 65)","Direct Payments","Direct Payments - MH","Direct Payments to Clients",07/03/2011 00:00:00,"30169302",6963.32,"REDACTED PERSONAL DATA"
"Bracknell Forest Council","http://opendatacommunities.org/id/unitary-authority/bracknell-forest","Bracknell Forest Council","00MA","Mental Health Needs (Under 65)","Direct Payments","Direct Payments - MH","Direct Payments to Clients",29/03/2011 00:00:00,"30170467",147.28,"REDACTED PERSONAL DATA"
"Bracknell Forest Council","http://opendatacommunities.org/id/unitary-authority/bracknell-forest","Bracknell Forest Council","00MA","Older People (Aged 65 or Over)","Direct Payments","Direct Payments - OP","Direct Payments to Clients",29/03/2011 00:00:00,"30170467",1076,"REDACTED PERSONAL DATA"
"Bracknell Forest Council","http://opendatacommunities.org/id/unitary-authority/bracknell-forest","Bracknell Forest Council","00MA","Older People (Aged 65 or Over)","Direct Payments","Direct Payments - OP","Client Contributions Other",29/03/2011 00:00:00,"30170467",-136.98,"REDACTED PERSONAL DATA"
"Bracknell Forest Council","http://opendatacommunities.org/id/unitary-authority/bracknell-forest","Bracknell Forest Council","00MA","Older People (Aged 65 or Over)","Direct Payments","Direct Payments - OP","Direct Payments to Clients",29/03/2011 00:00:00,"30170467",541.29,"REDACTED PERSONAL DATA"
"Bracknell Forest Council","http://opendatacommunities.org/id/unitary-authority/bracknell-forest","Bracknell Forest Council","00MA","Older People (Aged 65 or Over)","Direct Payments","Direct Payments - OP","Direct Payments to Clients",29/03/2011 00:00:00,"30170467",1438.51,"REDACTED PERSONAL DATA"
"Bracknell Forest Council","http://opendatacommunities.org/id/unitary-authority/bracknell-forest","Bracknell Forest Council","00MA","Older People (Aged 65 or Over)","Direct Payments","Direct Payments - OP","Client Contributions Other",29/03/2011 00:00:00,"30170467",-54.93,"REDACTED PERSONAL DATA"
"Bracknell Forest Council","http://opendatacommunities.org/id/unitary-authority/bracknell-forest","Bracknell Forest Council","00MA","Learning Disability (under 65)","Direct Payments - LD","Direct Payments - LD","Client Contributions Other",29/03/2011 00:00:00,"30170467",-22.38,"REDACTED PERSONAL DATA"
"Bracknell Forest Council","http://opendatacommunities.org/id/unitary-authority/bracknell-forest","Bracknell Forest Council","00MA","Learning Disability (under 65)","Direct Payments - LD","Direct Payments - LD","Direct Payments to Clients",29/03/2011 00:00:00,"30170467",750.04,"REDACTED PERSONAL DATA"
"Bracknell Forest Council","http://opendatacommunities.org/id/unitary-authority/bracknell-forest","Bracknell Forest Council","00MA","Older People (Aged 65 or Over)","Direct Payments","Direct Payments - OP","Direct Payments to Clients",29/03/2011 00:00:00,"30170467",1315.68,"REDACTED PERSONAL DATA"
"Bracknell Forest Council","http://opendatacommunities.org/id/unitary-authority/bracknell-forest","Bracknell Forest Council","00MA","Older People (Aged 65 or Over)","Direct Payments","Direct Payments - OP","Direct Payments to Clients",29/03/2011 00:00:00,"30170467",679.92,"REDACTED PERSONAL DATA"
"Bracknell Forest Council","http://opendatacommunities.org/id/unitary-authority/bracknell-forest","Bracknell Forest Council","00MA","Older People (Aged 65 or Over)","Direct Payments","Direct Payments - OP","Direct Payments to Clients",29/03/2011 00:00:00,"30170467",561.6,"REDACTED PERSONAL DATA"
"Bracknell Forest Council","http://opendatacommunities.org/id/unitary-authority/bracknell-forest","Bracknell Forest Council","00MA","Older People (Aged 65 or Over)","Direct Payments","Direct Payments - OP","Direct Payments to Clients",29/03/2011 00:00:00,"30170467",748.8,"REDACTED PERSONAL DATA"
"Bracknell Forest Council","http://opendatacommunities.org/id/unitary-authority/bracknell-forest","Bracknell Forest Council","00MA","Older People (Aged 65 or Over)","Direct Payments","Direct Payments - OP","Client Contributions Other",29/03/2011 00:00:00,"30170467",-126.32,"REDACTED PERSONAL DATA"
"Bracknell Forest Council","http://opendatacommunities.org/id/unitary-authority/bracknell-forest","Bracknell Forest Council","00MA","Family Support Services","Direct Payments","Direct Payments for Children","Direct Payments to Clients",03/03/2011 00:00:00,"6438483",583.23,"REDACTED PERSONAL DATA"
"Bracknell Forest Council","http://opendatacommunities.org/id/unitary-authority/bracknell-forest","Bracknell Forest Council","00MA","Physical Disability/Sensory Impairment","Direct Payments","Direct Payments - PD","Direct Payments to Clients",29/03/2011 00:00:00,"30170467",1799.68,"REDACTED PERSONAL DATA"
"Bracknell Forest Council","http://opendatacommunities.org/id/unitary-authority/bracknell-forest","Bracknell Forest Council","00MA","Older People (Aged 65 or Over)","Direct Payments","Direct Payments - OP","Direct Payments to Clients",29/03/2011 00:00:00,"30170467",2629.08,"REDACTED PERSONAL DATA"
"Bracknell Forest Council","http://opendatacommunities.org/id/unitary-authority/bracknell-forest","Bracknell Forest Council","00MA","Older People (Aged 65 or Over)","Direct Payments","Direct Payments - OP","Client Contributions Other",29/03/2011 00:00:00,"30170467",-691.2,"REDACTED PERSONAL DATA"
"Bracknell Forest Council","http://opendatacommunities.org/id/unitary-authority/bracknell-forest","Bracknell Forest Council","00MA","Older People (Aged 65 or Over)","Direct Payments","Direct Payments - OP","Direct Payments to Clients",29/03/2011 00:00:00,"30170467",2212,"REDACTED PERSONAL DATA"
"Bracknell Forest Council","http://opendatacommunities.org/id/unitary-authority/bracknell-forest","Bracknell Forest Council","00MA","Older People (Aged 65 or Over)","Direct Payments","Direct Payments - OP","Direct Payments to Clients",29/03/2011 00:00:00,"30170467",861.68,"REDACTED PERSONAL DATA"
"Bracknell Forest Council","http://opendatacommunities.org/id/unitary-authority/bracknell-forest","Bracknell Forest Council","00MA","Mental Health Needs (Under 65)","Direct Payments","Direct Payments - MH","Direct Payments to Clients",07/03/2011 00:00:00,"30169302",2061.61,"REDACTED PERSONAL DATA"
"Bracknell Forest Council","http://opendatacommunities.org/id/unitary-authority/bracknell-forest","Bracknell Forest Council","00MA","Mental Health Needs (Under 65)","Direct Payments","Direct Payments - MH","Direct Payments to Clients",29/03/2011 00:00:00,"30170467",528.92,"REDACTED PERSONAL DATA"
"Bracknell Forest Council","http://opendatacommunities.org/id/unitary-authority/bracknell-forest","Bracknell Forest Council","00MA","Physical Disability/Sensory Impairment","Direct Payments","Direct Payments - PD","Client Contributions Other",29/03/2011 00:00:00,"30170467",-1780.4,"REDACTED PERSONAL DATA"
"Bracknell Forest Council","http://opendatacommunities.org/id/unitary-authority/bracknell-forest","Bracknell Forest Council","00MA","Physical Disability/Sensory Impairment","Direct Payments","Direct Payments - PD","Direct Payments to Clients",29/03/2011 00:00:00,"30170467",3130.4,"REDACTED PERSONAL DATA"
"Bracknell Forest Council","http://opendatacommunities.org/id/unitary-authority/bracknell-forest","Bracknell Forest Council","00MA","Older People (Aged 65 or Over)","Direct Payments","Direct Payments - OP","Direct Payments to Clients",29/03/2011 00:00:00,"30170467",2962.85,"REDACTED PERSONAL DATA"
"Bracknell Forest Council","http://opendatacommunities.org/id/unitary-authority/bracknell-forest","Bracknell Forest Council","00MA","Older People (Aged 65 or Over)","Direct Payments","Direct Payments - OP","Client Contributions Other",29/03/2011 00:00:00,"30170467",-326.61,"REDACTED PERSONAL DATA"
"Bracknell Forest Council","http://opendatacommunities.org/id/unitary-authority/bracknell-forest","Bracknell Forest Council","00MA","Physical Disability/Sensory Impairment","Direct Payments","Direct Payments - PD","Direct Payments to Clients",29/03/2011 00:00:00,"30170467",2217.6,"REDACTED PERSONAL DATA"
"Bracknell Forest Council","http://opendatacommunities.org/id/unitary-authority/bracknell-forest","Bracknell Forest Council","00MA","Physical Disability/Sensory Impairment","Direct Payments","Direct Payments - PD","Client Contributions Other",29/03/2011 00:00:00,"30170467",-405.44,"REDACTED PERSONAL DATA"
"Bracknell Forest Council","http://opendatacommunities.org/id/unitary-authority/bracknell-forest","Bracknell Forest Council","00MA","Physical Disability/Sensory Impairment","Direct Payments","Direct Payments - PD","Direct Payments to Clients",29/03/2011 00:00:00,"30170467",342,"REDACTED PERSONAL DATA"
"Bracknell Forest Council","http://opendatacommunities.org/id/unitary-authority/bracknell-forest","Bracknell Forest Council","00MA","Physical Disability/Sensory Impairment","Direct Payments","Direct Payments - PD","Direct Payments to Clients",29/03/2011 00:00:00,"30170467",1036.8,"REDACTED PERSONAL DATA"
"Bracknell Forest Council","http://opendatacommunities.org/id/unitary-authority/bracknell-forest","Bracknell Forest Council","00MA","Mental Health Needs (Under 65)","Direct Payments","Direct Payments - MH","Direct Payments to Clients",29/03/2011 00:00:00,"30170467",1249.16,"REDACTED PERSONAL DATA"
"Bracknell Forest Council","http://opendatacommunities.org/id/unitary-authority/bracknell-forest","Bracknell Forest Council","00MA","Other Adult Services","Other Adult Services","Other NHS Assistance","Other Support to Clients",08/03/2011 00:00:00,"6440675",640,"MS CLARE EDWARDS"
"Bracknell Forest Council","http://opendatacommunities.org/id/unitary-authority/bracknell-forest","Bracknell Forest Council","00MA","Physical Disability/Sensory Impairment","Direct Payments","Direct Payments - PD","Direct Payments to Clients",29/03/2011 00:00:00,"30170467",2361.28,"REDACTED PERSONAL DATA"
"Bracknell Forest Council","http://opendatacommunities.org/id/unitary-authority/bracknell-forest","Bracknell Forest Council","00MA","Physical Disability/Sensory Impairment","Direct Payments","Direct Payments - PD","Client Contributions Other",29/03/2011 00:00:00,"30170467",-1189.6,"REDACTED PERSONAL DATA"
"Bracknell Forest Council","http://opendatacommunities.org/id/unitary-authority/bracknell-forest","Bracknell Forest Council","00MA","Recreation, Sports and Leisure","Indoor Sports & Recreation Facilities","Leisure DSO - Coral Reef Maintenance","R&M - Service Contracts",31/01/2011 00:00:00,"6441867",1277,"MUNTERS LTD"
"Bracknell Forest Council","http://opendatacommunities.org/id/unitary-authority/bracknell-forest","Bracknell Forest Council","00MA","Children Looked After (CLA)","Fostering Services","Independent Fostering (Non BFBC)","Contracted Services",28/02/2011 00:00:00,"6440449",3234.28,"NATIONAL FOSTERING AGENCY"
"Bracknell Forest Council","http://opendatacommunities.org/id/unitary-authority/bracknell-forest","Bracknell Forest Council","00MA","Children Looked After (CLA)","Fostering Services","Independent Fostering (Non BFBC)","Contracted Services",28/02/2011 00:00:00,"6440450",3234.28,"NATIONAL FOSTERING AGENCY"
"Bracknell Forest Council","http://opendatacommunities.org/id/unitary-authority/bracknell-forest","Bracknell Forest Council","00MA","Children Looked After (CLA)","Fostering Services","Independent Fostering (Non BFBC)","Contracted Services",08/03/2011 00:00:00,"6441178",3580.81,"NATIONAL FOSTERING AGENCY"
"Bracknell Forest Council","http://opendatacommunities.org/id/unitary-authority/bracknell-forest","Bracknell Forest Council","00MA","Children Looked After (CLA)","Fostering Services","Independent Fostering (Non BFBC)","Contracted Services",08/03/2011 00:00:00,"6441179",3580.81,"NATIONAL FOSTERING AGENCY"
"Bracknell Forest Council","http://opendatacommunities.org/id/unitary-authority/bracknell-forest","Bracknell Forest Council","00MA","Older People (Aged 65 or Over)","Home Care","LD Live-In Carers","Contracted Services",22/03/2011 00:00:00,"30169981",3874.72,"ALLIED HEALTHCARE GROUP LTD"
"Bracknell Forest Council","http://opendatacommunities.org/id/unitary-authority/bracknell-forest","Bracknell Forest Council","00MA","Asylum Seekers","Unaccompanied Children","Asylum Seekers (UASC)","Contracted Services",28/02/2011 00:00:00,"6440473",1050,"ALMA SUPPORTED LODGINGS"
"Bracknell Forest Council","http://opendatacommunities.org/id/unitary-authority/bracknell-forest","Bracknell Forest Council","00MA","Asylum Seekers","Unaccompanied Children","Asylum Seekers (UASC)","Contracted Services",28/02/2011 00:00:00,"6440474",1176,"ALMA SUPPORTED LODGINGS"
"Bracknell Forest Council","http://opendatacommunities.org/id/unitary-authority/bracknell-forest","Bracknell Forest Council","00MA","Asylum Seekers","Unaccompanied Children","Asylum Seekers (UASC)","Contracted Services",28/02/2011 00:00:00,"6440475",1176,"ALMA SUPPORTED LODGINGS"
"Bracknell Forest Council","http://opendatacommunities.org/id/unitary-authority/bracknell-forest","Bracknell Forest Council","00MA","Asylum Seekers","Unaccompanied Children","Asylum Seekers (UASC)","Contracted Services",02/03/2011 00:00:00,"6440477",1302,"ALMA SUPPORTED LODGINGS"
"Bracknell Forest Council","http://opendatacommunities.org/id/unitary-authority/bracknell-forest","Bracknell Forest Council","00MA","Asylum Seekers","Unaccompanied Children","Asylum Seekers (UASC)","Contracted Services",02/03/2011 00:00:00,"6440478",1302,"ALMA SUPPORTED LODGINGS"
"Bracknell Forest Council","http://opendatacommunities.org/id/unitary-authority/bracknell-forest","Bracknell Forest Council","00MA","Other Children's & Family Services","Leaving Care Services","QP - Care Leavers","Contracted Services",28/02/2011 00:00:00,"6440479",525,"ALMA SUPPORTED LODGINGS"
"Bracknell Forest Council","http://opendatacommunities.org/id/unitary-authority/bracknell-forest","Bracknell Forest Council","00MA","Other Children's & Family Services","Leaving Care Services","QP - Care Leavers","Contracted Services",03/02/2011 00:00:00,"6440480",588,"ALMA SUPPORTED LODGINGS"
"Bracknell Forest Council","http://opendatacommunities.org/id/unitary-authority/bracknell-forest","Bracknell Forest Council","00MA","Asylum Seekers","Unaccompanied Children","Asylum Seekers (UASC)","Contracted Services",03/02/2011 00:00:00,"6441158",1176,"ALMA SUPPORTED LODGINGS"
"Bracknell Forest Council","http://opendatacommunities.org/id/unitary-authority/bracknell-forest","Bracknell Forest Council","00MA","Vehicles &  Plant","Vehicles and Plant Summary Account","Vehicles and Plant","Operating Lease Charge",01/03/2011 00:00:00,"6441848",534.99,"ALPHABET (GB) LTD"
"Bracknell Forest Council","http://opendatacommunities.org/id/unitary-authority/bracknell-forest","Bracknell Forest Council","00MA","Older People (Aged 65 or Over)","Nursing Home Placements","Nursing Home Placements-Elderly","Contracted Services",15/03/2011 00:00:00,"30169687",5277.36,"AMBERBROOK MANAGEMENT LTD"
"Bracknell Forest Council","http://opendatacommunities.org/id/unitary-authority/bracknell-forest","Bracknell Forest Council","00MA","Older People (Aged 65 or Over)","Nursing Home Placements","Nursing Home Placements-Elderly","Contracted Services",15/03/2011 00:00:00,"30169687",2358.48,"AMBERBROOK MANAGEMENT LTD"
"Bracknell Forest Council","http://opendatacommunities.org/id/unitary-authority/bracknell-forest","Bracknell Forest Council","00MA","Older People (Aged 65 or Over)","Nursing Home Placements","Nursing Home Placements-Elderly","Contracted Services",15/03/2011 00:00:00,"30169687",2358.48,"AMBERBROOK MANAGEMENT LTD"
"Bracknell Forest Council","http://opendatacommunities.org/id/unitary-authority/bracknell-forest","Bracknell Forest Council","00MA","Older People (Aged 65 or Over)","Nursing Home Placements","Nursing Home Placements-Elderly","Contracted Services",15/03/2011 00:00:00,"30169687",2358.48,"AMBERBROOK MANAGEMENT LTD"
"Bracknell Forest Council","http://opendatacommunities.org/id/unitary-authority/bracknell-forest","Bracknell Forest Council","00MA","Community Development","Community Development","Community Engagement","Equipment - Purchase",14/03/2011 00:00:00,"6440975",500,"NATWEST"
"Bracknell Forest Council","http://opendatacommunities.org/id/unitary-authority/bracknell-forest","Bracknell Forest Council","00MA","Learning Disability (under 65)","Direct Payments - LD","Direct Payments - LD","Direct Payments to Clients",29/03/2011 00:00:00,"30170467",607.8,"REDACTED PERSONAL DATA"
"Bracknell Forest Council","http://opendatacommunities.org/id/unitary-authority/bracknell-forest","Bracknell Forest Council","00MA","Cemeteries, Crematoria & Mortuary Services","Cemeteries & Crematorium","Easthampstead Park Cemetery &Crematorium","Contracted Services",28/02/2011 00:00:00,"6440730",1440,"NEIL CURTIS"
"Bracknell Forest Council","http://opendatacommunities.org/id/unitary-authority/bracknell-forest","Bracknell Forest Council","00MA","Holding Accounts in Budget Book COF","Corporate Services - Office Services","Postal Services","Postage",14/03/2011 00:00:00,"6440962",7000,"NEOPOST  LTD RCB CREDIFON RCB ACCOUNT 239155"
"Bracknell Forest Council","http://opendatacommunities.org/id/unitary-authority/bracknell-forest","Bracknell Forest Council","00MA","Holding Accounts in Budget Book COF","Corporate Services - Office Services","Postal Services","Postage",17/03/2011 00:00:00,"6441645",7000,"NEOPOST  LTD RCB CREDIFON RCB ACCOUNT 239155"
"Bracknell Forest Council","http://opendatacommunities.org/id/unitary-authority/bracknell-forest","Bracknell Forest Council","00MA","Holding Accounts in Budget Book COF","Corporate Services - Office Services","Postal Services","Equipment - R&M",26/02/2011 00:00:00,"6440553",3572.99,"NEOPOST LTD"
"Bracknell Forest Council","http://opendatacommunities.org/id/unitary-authority/bracknell-forest","Bracknell Forest Council","00MA","Holding Accounts in Budget Book COF","Corporate Services - Office Services","Central Photocopying","Photocopying",01/01/2011 00:00:00,"6441654",1000.79,"NEW RICOH UK"
"Bracknell Forest Council","http://opendatacommunities.org/id/unitary-authority/bracknell-forest","Bracknell Forest Council","00MA","Holding Accounts in Budget Book COF","Corporate Services - Office Services","Central Photocopying","Photocopying",01/01/2011 00:00:00,"6441657",895.12,"NEW RICOH UK"
"Bracknell Forest Council","http://opendatacommunities.org/id/unitary-authority/bracknell-forest","Bracknell Forest Council","00MA","Holding Accounts in Budget Book COF","Corporate Services - Office Services","Central Photocopying","Photocopying",15/04/2010 00:00:00,"6441843",5660.71,"NEW RICOH UK"
"Bracknell Forest Council","http://opendatacommunities.org/id/unitary-authority/bracknell-forest","Bracknell Forest Council","00MA","Holding Accounts in Budget Book COF","Corporate Services - Office Services","Central Photocopying","Photocopying",19/11/2010 00:00:00,"6441845",831.83,"NEW RICOH UK"
"Bracknell Forest Council","http://opendatacommunities.org/id/unitary-authority/bracknell-forest","Bracknell Forest Council","00MA","Holding Accounts in Budget Book COF","Corporate Services - Office Services","Central Photocopying","Photocopying",23/07/2010 00:00:00,"6441855",9571.1,"NEW RICOH UK"
"Bracknell Forest Council","http://opendatacommunities.org/id/unitary-authority/bracknell-forest","Bracknell Forest Council","00MA","Holding Accounts in Budget Book COF","Corporate Services - Office Services","Central Photocopying","Photocopying",27/10/2010 00:00:00,"6441937",2986.55,"NEW RICOH UK"
"Bracknell Forest Council","http://opendatacommunities.org/id/unitary-authority/bracknell-forest","Bracknell Forest Council","00MA","Holding Accounts in Budget Book COF","Corporate Services - Office Services","Central Photocopying","Photocopying",14/10/2010 00:00:00,"6441938",5106.82,"NEW RICOH UK"
"Bracknell Forest Council","http://opendatacommunities.org/id/unitary-authority/bracknell-forest","Bracknell Forest Council","00MA","Holding Accounts in Budget Book COF","Corporate Services - Office Services","Central Photocopying","Photocopying",17/12/2010 00:00:00,"6441940",759.3,"NEW RICOH UK"
"Bracknell Forest Council","http://opendatacommunities.org/id/unitary-authority/bracknell-forest","Bracknell Forest Council","00MA","Older People (Aged 65 or Over)","Nursing Home Placements","Nursing Home Placements-Elderly","Contracted Services",15/03/2011 00:00:00,"30169687",2348.88,"AMBERBROOK MANAGEMENT LTD"
"Bracknell Forest Council","http://opendatacommunities.org/id/unitary-authority/bracknell-forest","Bracknell Forest Council","00MA","Older People (Aged 65 or Over)","Nursing Home Placements","Nursing Home Placements-Elderly","Contracted Services",15/03/2011 00:00:00,"30169687",2521.56,"AMBERBROOK MANAGEMENT LTD"
"Bracknell Forest Council","http://opendatacommunities.org/id/unitary-authority/bracknell-forest","Bracknell Forest Council","00MA","Older People (Aged 65 or Over)","Residential Care Home Placements","Residential Placements-Elderly","Contracted Services",15/03/2011 00:00:00,"30169687",1699.12,"AMBERBROOK MANAGEMENT LTD"
"Bracknell Forest Council","http://opendatacommunities.org/id/unitary-authority/bracknell-forest","Bracknell Forest Council","00MA","Older People (Aged 65 or Over)","Residential Care Home Placements","Residential Placements-Elderly","Contracted Services",15/03/2011 00:00:00,"30169687",1819.12,"AMBERBROOK MANAGEMENT LTD"
"Bracknell Forest Council","http://opendatacommunities.org/id/unitary-authority/bracknell-forest","Bracknell Forest Council","00MA","Older People (Aged 65 or Over)","Residential Care Home Placements","Residential Placements-Elderly","Contracted Services",15/03/2011 00:00:00,"30169687",1923.68,"AMBERBROOK MANAGEMENT LTD"
"Bracknell Forest Council","http://opendatacommunities.org/id/unitary-authority/bracknell-forest","Bracknell Forest Council","00MA","Older People (Aged 65 or Over)","Residential Care Home Placements","Residential Placements-Elderly","Contracted Services",15/03/2011 00:00:00,"30169687",1923.68,"AMBERBROOK MANAGEMENT LTD"
"Bracknell Forest Council","http://opendatacommunities.org/id/unitary-authority/bracknell-forest","Bracknell Forest Council","00MA","Older People (Aged 65 or Over)","Residential Care Home Placements","Residential Placements-Elderly","Contracted Services",15/03/2011 00:00:00,"30169687",1923.68,"AMBERBROOK MANAGEMENT LTD"
"Bracknell Forest Council","http://opendatacommunities.org/id/unitary-authority/bracknell-forest","Bracknell Forest Council","00MA","Older People (Aged 65 or Over)","Residential Care Home Placements","Residential Placements-Elderly","Contracted Services",15/03/2011 00:00:00,"30169687",1923.68,"AMBERBROOK MANAGEMENT LTD"
"Bracknell Forest Council","http://opendatacommunities.org/id/unitary-authority/bracknell-forest","Bracknell Forest Council","00MA","Older People (Aged 65 or Over)","Residential Care Home Placements","Residential Placements-Elderly","Contracted Services",15/03/2011 00:00:00,"30169687",1923.68,"AMBERBROOK MANAGEMENT LTD"
"Bracknell Forest Council","http://opendatacommunities.org/id/unitary-authority/bracknell-forest","Bracknell Forest Council","00MA","Older People (Aged 65 or Over)","Residential Care Home Placements","Residential Placements-Elderly","Contracted Services",15/03/2011 00:00:00,"30169687",1923.68,"AMBERBROOK MANAGEMENT LTD"
"Bracknell Forest Council","http://opendatacommunities.org/id/unitary-authority/bracknell-forest","Bracknell Forest Council","00MA","Older People (Aged 65 or Over)","Nursing Home Placements","Nursing Home Placements-Elderly","Contracted Services",15/03/2011 00:00:00,"30169687",2402.32,"AMBERBROOK MANAGEMENT LTD"
"Bracknell Forest Council","http://opendatacommunities.org/id/unitary-authority/bracknell-forest","Bracknell Forest Council","00MA","Older People (Aged 65 or Over)","Nursing Home Placements","Nursing Home Placements-Elderly","Contracted Services",15/03/2011 00:00:00,"30169687",2564.8,"AMBERBROOK MANAGEMENT LTD"
"Bracknell Forest Council","http://opendatacommunities.org/id/unitary-authority/bracknell-forest","Bracknell Forest Council","00MA","Older People (Aged 65 or Over)","Nursing Home Placements","Nursing Home Placements-Elderly","Contracted Services",15/03/2011 00:00:00,"30169687",2358.48,"AMBERBROOK MANAGEMENT LTD"
"Bracknell Forest Council","http://opendatacommunities.org/id/unitary-authority/bracknell-forest","Bracknell Forest Council","00MA","Holding Accounts in Budget Book COF","Corporate Services - Office Services","Central Photocopying","Photocopying",30/09/2010 00:00:00,"6441941",574.62,"NEW RICOH UK"
"Bracknell Forest Council","http://opendatacommunities.org/id/unitary-authority/bracknell-forest","Bracknell Forest Council","00MA","Holding Accounts in Budget Book COF","Corporate Services - Office Services","Central Photocopying","Photocopying",04/03/2011 00:00:00,"6442063",-895.12,"NEW RICOH UK"
"Bracknell Forest Council","http://opendatacommunities.org/id/unitary-authority/bracknell-forest","Bracknell Forest Council","00MA","Holding Accounts in Budget Book COF","Corporate Services - Office Services","Central Photocopying","Photocopying",04/03/2011 00:00:00,"6442064",-1000.79,"NEW RICOH UK"
"Bracknell Forest Council","http://opendatacommunities.org/id/unitary-authority/bracknell-forest","Bracknell Forest Council","00MA","","","ICT Maint Prog - Photocopiers","IT Hardware",31/01/2011 00:00:00,"6442824",10428,"NEW RICOH UK"
"Bracknell Forest Council","http://opendatacommunities.org/id/unitary-authority/bracknell-forest","Bracknell Forest Council","00MA","","","ICT Maint Prog - Photocopiers","IT Hardware",21/12/2010 00:00:00,"6442827",3502,"NEW RICOH UK"
"Bracknell Forest Council","http://opendatacommunities.org/id/unitary-authority/bracknell-forest","Bracknell Forest Council","00MA","Special Schools","Other Special Related Expenditure","Supporting Special Educational Needs","Voluntary Sector Service Providers",16/02/2011 00:00:00,"6442484",6828.3,"NEWBOLD PRIMARY SCHOOL"
"Bracknell Forest Council","http://opendatacommunities.org/id/unitary-authority/bracknell-forest","Bracknell Forest Council","00MA","Education Management & Support Service","Education Department - Other","Education Library Service - Resources","Audio/Visual materials",11/03/2011 00:00:00,"6441469",2425,"NIELSEN BOOK SERVICES LTD"
"Bracknell Forest Council","http://opendatacommunities.org/id/unitary-authority/bracknell-forest","Bracknell Forest Council","00MA","Libraries","Stock Ordering, Cataloguing & Distribution","Stock Support Unit","Subscriptions",11/03/2011 00:00:00,"6442794",2900,"NIELSEN BOOK SERVICES LTD (USE 503025)"
"Bracknell Forest Council","http://opendatacommunities.org/id/unitary-authority/bracknell-forest","Bracknell Forest Council","00MA","Recreation, Sports and Leisure","Golf Courses","Leisure DSO - Downshire Golf Shop","Cost of Goods Sold",04/02/2011 00:00:00,"6441658",-1558.01,"NIKE EUROPEAN OPERATIONS NETHERLANDS B.V."
"Bracknell Forest Council","http://opendatacommunities.org/id/unitary-authority/bracknell-forest","Bracknell Forest Council","00MA","Recreation, Sports and Leisure","Golf Courses","Leisure DSO - Downshire Golf Shop","Cost of Goods Sold",12/02/2011 00:00:00,"6441662",2066.23,"NIKE EUROPEAN OPERATIONS NETHERLANDS B.V."
"Bracknell Forest Council","http://opendatacommunities.org/id/unitary-authority/bracknell-forest","Bracknell Forest Council","00MA","Recreation, Sports and Leisure","Indoor Sports & Recreation Facilities","Leisure Centre - Catering General","Equipment - Purchase",18/02/2011 00:00:00,"6439420",1707.15,"NISBETS"
"Bracknell Forest Council","http://opendatacommunities.org/id/unitary-authority/bracknell-forest","Bracknell Forest Council","00MA","Recreation, Sports and Leisure","Golf Courses","Leisure DSO - Downshire Golf Course","Minor Improvement Schemes",16/03/2011 00:00:00,"6442420",1668.52,"NISBETS"
"Bracknell Forest Council","http://opendatacommunities.org/id/unitary-authority/bracknell-forest","Bracknell Forest Council","00MA","Older People (Aged 65 or Over)","Residential Care Home Placements","Bridgewell Unit","Equipment - R&M",18/02/2011 00:00:00,"6439240",515,"NOMEQ LTD"
"Bracknell Forest Council","http://opendatacommunities.org/id/unitary-authority/bracknell-forest","Bracknell Forest Council","00MA","Open Spaces","Community Parks & Open Spaces","Lily Hill Park Maintenance","Materials",28/02/2011 00:00:00,"6439644",953.75,"NORTH HILL NURSERIES"
"Bracknell Forest Council","http://opendatacommunities.org/id/unitary-authority/bracknell-forest","Bracknell Forest Council","00MA","Housing Benefits Administration","Housing Benefits Administration","Housing Benefits - Fraud & Recovery","Computer Software Maintenance",21/02/2011 00:00:00,"6439366",1000,"NORTHGATE INFORMATION SOLUTIONS"
"Bracknell Forest Council","http://opendatacommunities.org/id/unitary-authority/bracknell-forest","Bracknell Forest Council","00MA","Local Tax Collection","Council Tax Collection","Council Tax","Computer Software Maintenance",21/02/2011 00:00:00,"6439366",1000,"NORTHGATE INFORMATION SOLUTIONS"
"Bracknell Forest Council","http://opendatacommunities.org/id/unitary-authority/bracknell-forest","Bracknell Forest Council","00MA","","","Replacement Revenue & Benefits System","IT Consultants",14/03/2011 00:00:00,"6441746",6900,"NORTHGATE INFORMATION SOLUTIONS"
"Bracknell Forest Council","http://opendatacommunities.org/id/unitary-authority/bracknell-forest","Bracknell Forest Council","00MA","Mental Health Needs (Under 65)","Nursing Home Placements","Nursing Home Placements-Mental Illness","Contracted Services",15/03/2011 00:00:00,"30169687",2600,"NORTHWOOD NURSING HOME"
"Bracknell Forest Council","http://opendatacommunities.org/id/unitary-authority/bracknell-forest","Bracknell Forest Council","00MA","Learning Disability (under 65)","Day Care","Day Centre Placements-Lrng Disab","Contracted Services",07/02/2011 00:00:00,"6440980",1611.63,"NORWOOD RAVENSWOOD SERVICES"
"Bracknell Forest Council","http://opendatacommunities.org/id/unitary-authority/bracknell-forest","Bracknell Forest Council","00MA","Learning Disability (under 65)","Day Care","Day Centre Placements-Lrng Disab","Contracted Services",07/02/2011 00:00:00,"6440982",1611.63,"NORWOOD RAVENSWOOD SERVICES"
"Bracknell Forest Council","http://opendatacommunities.org/id/unitary-authority/bracknell-forest","Bracknell Forest Council","00MA","Learning Disability (under 65)","Day Care","Day Centre Placements-Lrng Disab","Contracted Services",07/02/2011 00:00:00,"6440983",2198.16,"NORWOOD RAVENSWOOD SERVICES"
"Bracknell Forest Council","http://opendatacommunities.org/id/unitary-authority/bracknell-forest","Bracknell Forest Council","00MA","Learning Disability (under 65)","Day Care","S28A Day Care - Learning Disability","Contracted Services",07/02/2011 00:00:00,"6441278",537.2,"NORWOOD RAVENSWOOD SERVICES"
"Bracknell Forest Council","http://opendatacommunities.org/id/unitary-authority/bracknell-forest","Bracknell Forest Council","00MA","Learning Disability (under 65)","Day Care","S28A Day Care - Learning Disability","Contracted Services",07/02/2011 00:00:00,"6441279",1650.28,"NORWOOD RAVENSWOOD SERVICES"
"Bracknell Forest Council","http://opendatacommunities.org/id/unitary-authority/bracknell-forest","Bracknell Forest Council","00MA","Recreation, Sports and Leisure","Retail Services, Catering & Licenced","Easthampstead Park Conference Centre","Minor Improvement Schemes",09/03/2011 00:00:00,"6442028",4100.73,"NOVAR SYSTEMS LTD"
"Bracknell Forest Council","http://opendatacommunities.org/id/unitary-authority/bracknell-forest","Bracknell Forest Council","00MA","Recreation, Sports and Leisure","Retail Services, Catering & Licenced","Easthampstead Park Conference Centre","Minor Improvement Schemes",09/03/2011 00:00:00,"6442029",1995,"NOVAR SYSTEMS LTD"
"Bracknell Forest Council","http://opendatacommunities.org/id/unitary-authority/bracknell-forest","Bracknell Forest Council","00MA","Central Support Services - COF","Personnel","Training Courses","Training Costs",29/03/2011 00:00:00,"6443219",650,"NOW TRAINING LTD"
"Bracknell Forest Council","http://opendatacommunities.org/id/unitary-authority/bracknell-forest","Bracknell Forest Council","00MA","Family Support Services","Home Care","Children's Disabilities Care Needs","Voluntary Sector Service Providers",04/01/2011 00:00:00,"6438677",626.51,"NURSERY STAFF LTD"
"Bracknell Forest Council","http://opendatacommunities.org/id/unitary-authority/bracknell-forest","Bracknell Forest Council","00MA","Older People (Aged 65 or Over)","Residential Care Home Placements","Residential Placements-Elderly","Contracted Services",15/03/2011 00:00:00,"30169687",1819.12,"OAK HOUSE"
"Bracknell Forest Council","http://opendatacommunities.org/id/unitary-authority/bracknell-forest","Bracknell Forest Council","00MA","Physical Disability/Sensory Impairment","Residential Care Home Placements","Residential Placements-Phys Disab","Contracted Services",15/03/2011 00:00:00,"30169687",2345.08,"OAKFOIL LTD"
"Bracknell Forest Council","http://opendatacommunities.org/id/unitary-authority/bracknell-forest","Bracknell Forest Council","00MA","Family Support Services","Other Family Support Services","Aiming High for Disabled Children","Voluntary Sector Service Providers",17/02/2011 00:00:00,"6439542",1840,"OAKWOOD YOUTH CHALLENGE"
"Bracknell Forest Council","http://opendatacommunities.org/id/unitary-authority/bracknell-forest","Bracknell Forest Council","00MA","Libraries","Stock Ordering, Cataloguing & Distribution","Stock Support Unit","Subscriptions",11/03/2011 00:00:00,"6441802",2267.61,"OCLC"
"Bracknell Forest Council","http://opendatacommunities.org/id/unitary-authority/bracknell-forest","Bracknell Forest Council","00MA","Registration Births, Deaths & Marriages","Registration births, deaths and marriages","Ceremonies","Licences",07/03/2011 00:00:00,"6440110",555,"OFFICE OF THE IMMIGRATION SERVS COMMISSION"
"Bracknell Forest Council","http://opendatacommunities.org/id/unitary-authority/bracknell-forest","Bracknell Forest Council","00MA","Children Looked After (CLA)","Other Children Looked After Services","Larchwood Running Costs","Other Fees for Bought-in Services",17/01/2011 00:00:00,"6440871",1637.9,"OFSTED"
"Bracknell Forest Council","http://opendatacommunities.org/id/unitary-authority/bracknell-forest","Bracknell Forest Council","00MA","Other Children's & Family Services","Adoption Services","Adoption Allowance","Subscriptions",01/03/2011 00:00:00,"6441183",1549,"OFSTED"
"Bracknell Forest Council","http://opendatacommunities.org/id/unitary-authority/bracknell-forest","Bracknell Forest Council","00MA","Children Looked After (CLA)","Fostering Services","BFBC Fostering Allowances","Subscriptions",09/03/2011 00:00:00,"6441498",2404.27,"OFSTED"
"Bracknell Forest Council","http://opendatacommunities.org/id/unitary-authority/bracknell-forest","Bracknell Forest Council","00MA","Older People (Aged 65 or Over)","Home Care","Home Care-Elderly","Contracted Services",02/03/2011 00:00:00,"30169071",1390.6,"OM CARE T/A CAREMARK WOKINGHAM"
"Bracknell Forest Council","http://opendatacommunities.org/id/unitary-authority/bracknell-forest","Bracknell Forest Council","00MA","Older People (Aged 65 or Over)","Home Care","Home Care-Elderly","Contracted Services",02/03/2011 00:00:00,"30169071",1195.2,"OM CARE T/A CAREMARK WOKINGHAM"
"Bracknell Forest Council","http://opendatacommunities.org/id/unitary-authority/bracknell-forest","Bracknell Forest Council","00MA","Older People (Aged 65 or Over)","Home Care","Home Care-Elderly","Contracted Services",02/03/2011 00:00:00,"30169071",469,"OM CARE T/A CAREMARK WOKINGHAM"
"Bracknell Forest Council","http://opendatacommunities.org/id/unitary-authority/bracknell-forest","Bracknell Forest Council","00MA","Older People (Aged 65 or Over)","Home Care","Home Care-Elderly","Contracted Services",02/03/2011 00:00:00,"30169071",4610.6,"OM CARE T/A CAREMARK WOKINGHAM"
"Bracknell Forest Council","http://opendatacommunities.org/id/unitary-authority/bracknell-forest","Bracknell Forest Council","00MA","Older People (Aged 65 or Over)","Home Care","Home Care-Elderly","Contracted Services",02/03/2011 00:00:00,"30169071",10523,"OM CARE T/A CAREMARK WOKINGHAM"
"Bracknell Forest Council","http://opendatacommunities.org/id/unitary-authority/bracknell-forest","Bracknell Forest Council","00MA","Older People (Aged 65 or Over)","Home Care","Home Care-Elderly","Contracted Services",02/03/2011 00:00:00,"30169071",3945.6,"OM CARE T/A CAREMARK WOKINGHAM"
"Bracknell Forest Council","http://opendatacommunities.org/id/unitary-authority/bracknell-forest","Bracknell Forest Council","00MA","Older People (Aged 65 or Over)","Home Care","Home Care-Elderly","Contracted Services",02/03/2011 00:00:00,"30169071",799.2,"OM CARE T/A CAREMARK WOKINGHAM"
"Bracknell Forest Council","http://opendatacommunities.org/id/unitary-authority/bracknell-forest","Bracknell Forest Council","00MA","Older People (Aged 65 or Over)","Home Care","Home Care-Elderly","Contracted Services",02/03/2011 00:00:00,"30169071",8235,"OM CARE T/A CAREMARK WOKINGHAM"
"Bracknell Forest Council","http://opendatacommunities.org/id/unitary-authority/bracknell-forest","Bracknell Forest Council","00MA","Older People (Aged 65 or Over)","Home Care","Home Care-Elderly","Contracted Services",02/03/2011 00:00:00,"30169071",637.2,"OM CARE T/A CAREMARK WOKINGHAM"
"Bracknell Forest Council","http://opendatacommunities.org/id/unitary-authority/bracknell-forest","Bracknell Forest Council","00MA","Physical Disability/Sensory Impairment","Homecare","Home Care-Phys Disab","Contracted Services",02/03/2011 00:00:00,"30169071",2508.7,"OM CARE T/A CAREMARK WOKINGHAM"
"Bracknell Forest Council","http://opendatacommunities.org/id/unitary-authority/bracknell-forest","Bracknell Forest Council","00MA","Physical Disability/Sensory Impairment","Homecare","Home Care-Phys Disab","Contracted Services",02/03/2011 00:00:00,"30169071",3222.6,"OM CARE T/A CAREMARK WOKINGHAM"
"Bracknell Forest Council","http://opendatacommunities.org/id/unitary-authority/bracknell-forest","Bracknell Forest Council","00MA","Older People (Aged 65 or Over)","Home Care","Home Care-Elderly","Contracted Services",24/03/2011 00:00:00,"30170204",1418.4,"OM CARE T/A CAREMARK WOKINGHAM"
"Bracknell Forest Council","http://opendatacommunities.org/id/unitary-authority/bracknell-forest","Bracknell Forest Council","00MA","Older People (Aged 65 or Over)","Home Care","Home Care-Elderly","Contracted Services",24/03/2011 00:00:00,"30170204",266.4,"OM CARE T/A CAREMARK WOKINGHAM"
"Bracknell Forest Council","http://opendatacommunities.org/id/unitary-authority/bracknell-forest","Bracknell Forest Council","00MA","Older People (Aged 65 or Over)","Home Care","Home Care-Elderly","Contracted Services",24/03/2011 00:00:00,"30170204",885.6,"OM CARE T/A CAREMARK WOKINGHAM"
"Bracknell Forest Council","http://opendatacommunities.org/id/unitary-authority/bracknell-forest","Bracknell Forest Council","00MA","Older People (Aged 65 or Over)","Home Care","Home Care-Elderly","Contracted Services",24/03/2011 00:00:00,"30170204",86.4,"OM CARE T/A CAREMARK WOKINGHAM"
"Bracknell Forest Council","http://opendatacommunities.org/id/unitary-authority/bracknell-forest","Bracknell Forest Council","00MA","Older People (Aged 65 or Over)","Home Care","Home Care-Elderly","Contracted Services",24/03/2011 00:00:00,"30170204",43.2,"OM CARE T/A CAREMARK WOKINGHAM"
"Bracknell Forest Council","http://opendatacommunities.org/id/unitary-authority/bracknell-forest","Bracknell Forest Council","00MA","Older People (Aged 65 or Over)","Home Care","Home Care-Elderly","Contracted Services",24/03/2011 00:00:00,"30170204",403.2,"OM CARE T/A CAREMARK WOKINGHAM"
"Bracknell Forest Council","http://opendatacommunities.org/id/unitary-authority/bracknell-forest","Bracknell Forest Council","00MA","Older People (Aged 65 or Over)","Home Care","Home Care-Elderly","Contracted Services",24/03/2011 00:00:00,"30170204",460.8,"OM CARE T/A CAREMARK WOKINGHAM"
"Bracknell Forest Council","http://opendatacommunities.org/id/unitary-authority/bracknell-forest","Bracknell Forest Council","00MA","Older People (Aged 65 or Over)","Home Care","Home Care-Elderly","Contracted Services",24/03/2011 00:00:00,"30170204",734.4,"OM CARE T/A CAREMARK WOKINGHAM"
"Bracknell Forest Council","http://opendatacommunities.org/id/unitary-authority/bracknell-forest","Bracknell Forest Council","00MA","Older People (Aged 65 or Over)","Home Care","Home Care-Elderly","Contracted Services",24/03/2011 00:00:00,"30170204",201.6,"OM CARE T/A CAREMARK WOKINGHAM"
"Bracknell Forest Council","http://opendatacommunities.org/id/unitary-authority/bracknell-forest","Bracknell Forest Council","00MA","Older People (Aged 65 or Over)","Home Care","Home Care-Elderly","Contracted Services",24/03/2011 00:00:00,"30170204",936,"OM CARE T/A CAREMARK WOKINGHAM"
"Bracknell Forest Council","http://opendatacommunities.org/id/unitary-authority/bracknell-forest","Bracknell Forest Council","00MA","Physical Disability/Sensory Impairment","Homecare","Home Care-Phys Disab","Contracted Services",24/03/2011 00:00:00,"30170204",288,"OM CARE T/A CAREMARK WOKINGHAM"
"Bracknell Forest Council","http://opendatacommunities.org/id/unitary-authority/bracknell-forest","Bracknell Forest Council","00MA","Physical Disability/Sensory Impairment","Homecare","Home Care-Phys Disab","Contracted Services",24/03/2011 00:00:00,"30170204",1900.8,"OM CARE T/A CAREMARK WOKINGHAM"
"Bracknell Forest Council","http://opendatacommunities.org/id/unitary-authority/bracknell-forest","Bracknell Forest Council","00MA","Physical Disability/Sensory Impairment","Homecare","Home Care-Phys Disab","Contracted Services",24/03/2011 00:00:00,"30170204",979.2,"OM CARE T/A CAREMARK WOKINGHAM"
"Bracknell Forest Council","http://opendatacommunities.org/id/unitary-authority/bracknell-forest","Bracknell Forest Council","00MA","Physical Disability/Sensory Impairment","Homecare","Home Care-Phys Disab","Contracted Services",24/03/2011 00:00:00,"30170204",2274.8,"OM CARE T/A CAREMARK WOKINGHAM"
"Bracknell Forest Council","http://opendatacommunities.org/id/unitary-authority/bracknell-forest","Bracknell Forest Council","00MA","Older People (Aged 65 or Over)","Home Care","Home Care-Elderly","Contracted Services",24/03/2011 00:00:00,"30170204",950.2,"OM CARE T/A CAREMARK WOKINGHAM"
"Bracknell Forest Council","http://opendatacommunities.org/id/unitary-authority/bracknell-forest","Bracknell Forest Council","00MA","Older People (Aged 65 or Over)","Home Care","Home Care-Elderly","Contracted Services",24/03/2011 00:00:00,"30170204",86.4,"OM CARE T/A CAREMARK WOKINGHAM"
"Bracknell Forest Council","http://opendatacommunities.org/id/unitary-authority/bracknell-forest","Bracknell Forest Council","00MA","Older People (Aged 65 or Over)","Home Care","Home Care-Elderly","Contracted Services",24/03/2011 00:00:00,"30170204",1605.6,"OM CARE T/A CAREMARK WOKINGHAM"
"Bracknell Forest Council","http://opendatacommunities.org/id/unitary-authority/bracknell-forest","Bracknell Forest Council","00MA","Older People (Aged 65 or Over)","Home Care","Home Care-Elderly","Contracted Services",24/03/2011 00:00:00,"30170204",1008,"OM CARE T/A CAREMARK WOKINGHAM"
"Bracknell Forest Council","http://opendatacommunities.org/id/unitary-authority/bracknell-forest","Bracknell Forest Council","00MA","Older People (Aged 65 or Over)","Home Care","Home Care-Elderly","Contracted Services",24/03/2011 00:00:00,"30170204",727.2,"OM CARE T/A CAREMARK WOKINGHAM"
"Bracknell Forest Council","http://opendatacommunities.org/id/unitary-authority/bracknell-forest","Bracknell Forest Council","00MA","Older People (Aged 65 or Over)","Home Care","Home Care-Elderly","Contracted Services",24/03/2011 00:00:00,"30170204",736,"OM CARE T/A CAREMARK WOKINGHAM"
"Bracknell Forest Council","http://opendatacommunities.org/id/unitary-authority/bracknell-forest","Bracknell Forest Council","00MA","Older People (Aged 65 or Over)","Home Care","Home Care-Elderly","Contracted Services",24/03/2011 00:00:00,"30170204",1267.2,"OM CARE T/A CAREMARK WOKINGHAM"
"Bracknell Forest Council","http://opendatacommunities.org/id/unitary-authority/bracknell-forest","Bracknell Forest Council","00MA","Older People (Aged 65 or Over)","Home Care","Home Care-Elderly","Contracted Services",24/03/2011 00:00:00,"30170204",1506.4,"OM CARE T/A CAREMARK WOKINGHAM"
"Bracknell Forest Council","http://opendatacommunities.org/id/unitary-authority/bracknell-forest","Bracknell Forest Council","00MA","Older People (Aged 65 or Over)","Home Care","Home Care-Elderly","Contracted Services",24/03/2011 00:00:00,"30170204",2095.2,"OM CARE T/A CAREMARK WOKINGHAM"
"Bracknell Forest Council","http://opendatacommunities.org/id/unitary-authority/bracknell-forest","Bracknell Forest Council","00MA","Older People (Aged 65 or Over)","Home Care","Home Care-Elderly","Contracted Services",24/03/2011 00:00:00,"30170204",2048.4,"OM CARE T/A CAREMARK WOKINGHAM"
"Bracknell Forest Council","http://opendatacommunities.org/id/unitary-authority/bracknell-forest","Bracknell Forest Council","00MA","Older People (Aged 65 or Over)","Home Care","Home Care-Elderly","Contracted Services",24/03/2011 00:00:00,"30170204",770.4,"OM CARE T/A CAREMARK WOKINGHAM"
"Bracknell Forest Council","http://opendatacommunities.org/id/unitary-authority/bracknell-forest","Bracknell Forest Council","00MA","Older People (Aged 65 or Over)","Home Care","Home Care-Elderly","Contracted Services",24/03/2011 00:00:00,"30170204",702,"OM CARE T/A CAREMARK WOKINGHAM"
"Bracknell Forest Council","http://opendatacommunities.org/id/unitary-authority/bracknell-forest","Bracknell Forest Council","00MA","Older People (Aged 65 or Over)","Home Care","Home Care-Elderly","Contracted Services",24/03/2011 00:00:00,"30170204",914.2,"OM CARE T/A CAREMARK WOKINGHAM"
"Bracknell Forest Council","http://opendatacommunities.org/id/unitary-authority/bracknell-forest","Bracknell Forest Council","00MA","Older People (Aged 65 or Over)","Home Care","Home Care-Elderly","Contracted Services",24/03/2011 00:00:00,"30170204",1843.2,"OM CARE T/A CAREMARK WOKINGHAM"
"Bracknell Forest Council","http://opendatacommunities.org/id/unitary-authority/bracknell-forest","Bracknell Forest Council","00MA","Older People (Aged 65 or Over)","Home Care","Home Care-Elderly","Contracted Services",24/03/2011 00:00:00,"30170204",1324.8,"OM CARE T/A CAREMARK WOKINGHAM"
"Bracknell Forest Council","http://opendatacommunities.org/id/unitary-authority/bracknell-forest","Bracknell Forest Council","00MA","Older People (Aged 65 or Over)","Home Care","Home Care-Elderly","Contracted Services",24/03/2011 00:00:00,"30170204",50.4,"OM CARE T/A CAREMARK WOKINGHAM"
"Bracknell Forest Council","http://opendatacommunities.org/id/unitary-authority/bracknell-forest","Bracknell Forest Council","00MA","Older People (Aged 65 or Over)","Home Care","Home Care-Elderly","Contracted Services",24/03/2011 00:00:00,"30170204",3008.6,"OM CARE T/A CAREMARK WOKINGHAM"
"Bracknell Forest Council","http://opendatacommunities.org/id/unitary-authority/bracknell-forest","Bracknell Forest Council","00MA","Older People (Aged 65 or Over)","Home Care","Home Care-Elderly","Contracted Services",24/03/2011 00:00:00,"30170204",201.6,"OM CARE T/A CAREMARK WOKINGHAM"
"Bracknell Forest Council","http://opendatacommunities.org/id/unitary-authority/bracknell-forest","Bracknell Forest Council","00MA","Older People (Aged 65 or Over)","Home Care","Home Care-Elderly","Contracted Services",24/03/2011 00:00:00,"30170204",201.6,"OM CARE T/A CAREMARK WOKINGHAM"
"Bracknell Forest Council","http://opendatacommunities.org/id/unitary-authority/bracknell-forest","Bracknell Forest Council","00MA","Older People (Aged 65 or Over)","Home Care","Home Care-Elderly","Contracted Services",24/03/2011 00:00:00,"30170204",205.2,"OM CARE T/A CAREMARK WOKINGHAM"
"Bracknell Forest Council","http://opendatacommunities.org/id/unitary-authority/bracknell-forest","Bracknell Forest Council","00MA","Older People (Aged 65 or Over)","Home Care","Home Care-Elderly","Contracted Services",24/03/2011 00:00:00,"30170204",208.8,"OM CARE T/A CAREMARK WOKINGHAM"
"Bracknell Forest Council","http://opendatacommunities.org/id/unitary-authority/bracknell-forest","Bracknell Forest Council","00MA","Older People (Aged 65 or Over)","Home Care","Home Care-Elderly","Contracted Services",24/03/2011 00:00:00,"30170204",417.6,"OM CARE T/A CAREMARK WOKINGHAM"
"Bracknell Forest Council","http://opendatacommunities.org/id/unitary-authority/bracknell-forest","Bracknell Forest Council","00MA","Older People (Aged 65 or Over)","Home Care","Home Care-Elderly","Contracted Services",24/03/2011 00:00:00,"30170204",1314.4,"OM CARE T/A CAREMARK WOKINGHAM"
"Bracknell Forest Council","http://opendatacommunities.org/id/unitary-authority/bracknell-forest","Bracknell Forest Council","00MA","Older People (Aged 65 or Over)","Home Care","Home Care-Elderly","Contracted Services",24/03/2011 00:00:00,"30170204",1094.4,"OM CARE T/A CAREMARK WOKINGHAM"
"Bracknell Forest Council","http://opendatacommunities.org/id/unitary-authority/bracknell-forest","Bracknell Forest Council","00MA","Older People (Aged 65 or Over)","Home Care","Home Care-Elderly","Contracted Services",24/03/2011 00:00:00,"30170204",129.6,"OM CARE T/A CAREMARK WOKINGHAM"
"Bracknell Forest Council","http://opendatacommunities.org/id/unitary-authority/bracknell-forest","Bracknell Forest Council","00MA","Supporting People","Supporting People","Supporting People Payments","Transfer Payments - Supporting People",07/03/2011 00:00:00,"6440066",12446.8,"ONE SUPPORT"
"Bracknell Forest Council","http://opendatacommunities.org/id/unitary-authority/bracknell-forest","Bracknell Forest Council","00MA","Supporting People","Supporting People","Supporting People Payments","Transfer Payments - Supporting People",08/03/2011 00:00:00,"6440143",12446.8,"ONE SUPPORT"
"Bracknell Forest Council","http://opendatacommunities.org/id/unitary-authority/bracknell-forest","Bracknell Forest Council","00MA","Learning Disability (under 65)","Day Care","Learning Disabilities Arts & Culture","Other Fees for Bought-in Services",11/03/2011 00:00:00,"6441287",1500,"ONE WORD ENTERTAINMENT"
"Bracknell Forest Council","http://opendatacommunities.org/id/unitary-authority/bracknell-forest","Bracknell Forest Council","00MA","Central Support Services - COF","Information Technology","Business Services","Contracted Services",28/02/2011 00:00:00,"6441750",4080,"OPEN OBJECTS SOFTWARE LTD"
"Bracknell Forest Council","http://opendatacommunities.org/id/unitary-authority/bracknell-forest","Bracknell Forest Council","00MA","Central Support Services - COF","Information Technology","Business Services","Contracted Services",28/02/2011 00:00:00,"6440338",1650,"OPEN TEXT UK LTD"
"Bracknell Forest Council","http://opendatacommunities.org/id/unitary-authority/bracknell-forest","Bracknell Forest Council","00MA","Holding Accounts not in Budget Book - COF","General Holding Accounts","Certificated Contract Payments","Contracted Services",18/03/2011 00:00:00,"6441566",4852.62,"OTIS LIMITED"
"Bracknell Forest Council","http://opendatacommunities.org/id/unitary-authority/bracknell-forest","Bracknell Forest Council","00MA","","","Planned Maintenance (Leisure)","Consultant Fees",25/02/2011 00:00:00,"6441565",1200,"OVE ARUP & PARTNERS LTD"
"Bracknell Forest Council","http://opendatacommunities.org/id/unitary-authority/bracknell-forest","Bracknell Forest Council","00MA","Economic Development","Industrial Units","Crowthorne Enterprise Centre Trading A/C","Other Expenses",14/03/2011 00:00:00,"6441481",1501.43,"OXFORD INNOVATION LTD"
"Bracknell Forest Council","http://opendatacommunities.org/id/unitary-authority/bracknell-forest","Bracknell Forest Council","00MA","Economic Development","Industrial Units","Crowthorne Enterprise Centre Trading A/C","Other Expenses",14/03/2011 00:00:00,"6441481",17021.45,"OXFORD INNOVATION LTD"
"Bracknell Forest Council","http://opendatacommunities.org/id/unitary-authority/bracknell-forest","Bracknell Forest Council","00MA","Economic Development","Industrial Units","Crowthorne Enterprise Centre Trading A/C","Other Expenses",14/03/2011 00:00:00,"6441481",-18522.88,"OXFORD INNOVATION LTD"
"Bracknell Forest Council","http://opendatacommunities.org/id/unitary-authority/bracknell-forest","Bracknell Forest Council","00MA","Economic Development","Industrial Units","Crowthorne Enterprise Centre Trading A/C","Other Expenses",14/03/2011 00:00:00,"6441678",16737,"OXFORD INNOVATION LTD"
"Bracknell Forest Council","http://opendatacommunities.org/id/unitary-authority/bracknell-forest","Bracknell Forest Council","00MA","Economic Development","Industrial Units","Crowthorne Enterprise Centre Trading A/C","Other Expenses",14/03/2011 00:00:00,"6441678",-16737,"OXFORD INNOVATION LTD"
"Bracknell Forest Council","http://opendatacommunities.org/id/unitary-authority/bracknell-forest","Bracknell Forest Council","00MA","Recreation, Sports and Leisure","Indoor Sports & Recreation Facilities","Leisure DSO - Coral Reef","Materials",21/02/2011 00:00:00,"6440023",2530,"PAC WRISTBANDS LIMITED"
"Bracknell Forest Council","http://opendatacommunities.org/id/unitary-authority/bracknell-forest","Bracknell Forest Council","00MA","Culture and Heritage","Heritage Museums & Galleries","The Look Out","Equipment - Rental",09/03/2011 00:00:00,"6442327",1500,"PAC WRISTBANDS LIMITED"
"Bracknell Forest Council","http://opendatacommunities.org/id/unitary-authority/bracknell-forest","Bracknell Forest Council","00MA","Learning Disability (under 65)","Residential Care Home Placements","Sec 28A - Rsdntl Plcmnts - Learning Disa","Contracted Services",15/03/2011 00:00:00,"30169687",5637.64,"PALM CARE LIMITED"
"Bracknell Forest Council","http://opendatacommunities.org/id/unitary-authority/bracknell-forest","Bracknell Forest Council","00MA","Recreation, Sports and Leisure","Indoor Sports & Recreation Facilities","Coral Reef - Catering & Bar","Cost of Goods Sold",18/02/2011 00:00:00,"6439587",603.18,"PALMER & HARVEY MCLANE LTD"
"Bracknell Forest Council","http://opendatacommunities.org/id/unitary-authority/bracknell-forest","Bracknell Forest Council","00MA","Recreation, Sports and Leisure","Indoor Sports & Recreation Facilities","Coral Reef - Catering & Bar","Cost of Goods Sold",11/03/2011 00:00:00,"6442203",596.81,"PALMER & HARVEY MCLANE LTD"
"Bracknell Forest Council","http://opendatacommunities.org/id/unitary-authority/bracknell-forest","Bracknell Forest Council","00MA","Holding Accounts not in Budget Book - COF","General Holding Accounts","TO GO Invoices","Refreshments",28/02/2011 00:00:00,"6440005",1143.55,"PANINIS (ASCOT) LTD"
"Bracknell Forest Council","http://opendatacommunities.org/id/unitary-authority/bracknell-forest","Bracknell Forest Council","00MA","Holding Accounts not in Budget Book - COF","General Holding Accounts","TO GO Invoices","Refreshments",31/01/2011 00:00:00,"6440349",1720.8,"PANINIS (ASCOT) LTD"
"Bracknell Forest Council","http://opendatacommunities.org/id/unitary-authority/bracknell-forest","Bracknell Forest Council","00MA","Other Children's & Family Services","Adoption Services","Adoption Allowance","Subscriptions",09/03/2011 00:00:00,"6441185",1360,"PARENTS AND CHILDREN TOGETHER"
"Bracknell Forest Council","http://opendatacommunities.org/id/unitary-authority/bracknell-forest","Bracknell Forest Council","00MA","Non-School Funding","Pre-School Education","Children's Centre Co-ordination","Other Fees for Bought-in Services",10/03/2011 00:00:00,"6441490",3000,"PARENTS AND CHILDREN TOGETHER"
"Bracknell Forest Council","http://opendatacommunities.org/id/unitary-authority/bracknell-forest","Bracknell Forest Council","00MA","Physical Disability/Sensory Impairment","Day Care","Day Centre Placements-Phys Disab","Contracted Services",09/03/2011 00:00:00,"30169460",1715.7,"PARITY FOR DISABILITY"
"Bracknell Forest Council","http://opendatacommunities.org/id/unitary-authority/bracknell-forest","Bracknell Forest Council","00MA","Learning Disability (under 65)","Residential Care Home Placements","Residential Placements-Lrng Disab","Contracted Services",15/03/2011 00:00:00,"30169687",6298.52,"PARKCARE HOMES LIMITED-CRAEGMOOR HEALTHCARE"
"Bracknell Forest Council","http://opendatacommunities.org/id/unitary-authority/bracknell-forest","Bracknell Forest Council","00MA","Education Management & Support Service","Learning, Achievement & Libraries","Education Health Partnerships","Externally Purchased Professional Services-curric",31/12/2010 00:00:00,"6439904",750,"PARKER JAMES ASSOCIATES LIMITED"
"Bracknell Forest Council","http://opendatacommunities.org/id/unitary-authority/bracknell-forest","Bracknell Forest Council","00MA","Non-School Funding","Youth Services","Coopers Hill Youth Centre","Equipment - Purchase",15/03/2011 00:00:00,"6442127",3475,"PARTHOS UK LTD"
"Bracknell Forest Council","http://opendatacommunities.org/id/unitary-authority/bracknell-forest","Bracknell Forest Council","00MA","Recreation, Sports and Leisure","Indoor Sports & Recreation Facilities","Coral Reef - Catering & Bar","Catering Consumables",24/02/2011 00:00:00,"6441588",3305.5,"PEEKS OF BOURNEMOUTH LTD"
"Bracknell Forest Council","http://opendatacommunities.org/id/unitary-authority/bracknell-forest","Bracknell Forest Council","00MA","Recreation, Sports and Leisure","Indoor Sports & Recreation Facilities","Coral Reef - Catering & Bar","Catering Consumables",24/02/2011 00:00:00,"6441589",3305.5,"PEEKS OF BOURNEMOUTH LTD"
"Bracknell Forest Council","http://opendatacommunities.org/id/unitary-authority/bracknell-forest","Bracknell Forest Council","00MA","Service Management & Support Services","Service Management & Support Services","Departmental Office Services","Licences",23/02/2011 00:00:00,"6439991",5142.16,"PERFORMING RIGHT SOCIETY LTD"
"Bracknell Forest Council","http://opendatacommunities.org/id/unitary-authority/bracknell-forest","Bracknell Forest Council","00MA","","","Balance Sheet","Flexible Benefits Control Account",22/02/2011 00:00:00,"6439147",13000,"PERRYS MOTOR SALES LTD"
"Bracknell Forest Council","http://opendatacommunities.org/id/unitary-authority/bracknell-forest","Bracknell Forest Council","00MA","Education Management & Support Service","Education Department - Other","Education Library Service - Resources","Audio/Visual materials",18/02/2011 00:00:00,"6440050",1611.28,"PETERS LIMITED"
"Bracknell Forest Council","http://opendatacommunities.org/id/unitary-authority/bracknell-forest","Bracknell Forest Council","00MA","Education Management & Support Service","Education Department - Other","Education Library Service - Resources","Audio/Visual materials",04/03/2011 00:00:00,"6441541",877.67,"PETERS LIMITED"
"Bracknell Forest Council","http://opendatacommunities.org/id/unitary-authority/bracknell-forest","Bracknell Forest Council","00MA","Education Management & Support Service","Education Department - Other","Education Library Service - Resources","Audio/Visual materials",18/03/2011 00:00:00,"6442425",2890.63,"PETERS LIMITED"
"Bracknell Forest Council","http://opendatacommunities.org/id/unitary-authority/bracknell-forest","Bracknell Forest Council","00MA","Education Management & Support Service","Education Department - Other","Education Library Service - Resources","Audio/Visual materials",18/03/2011 00:00:00,"6442428",609.45,"PETERS LIMITED"
"Bracknell Forest Council","http://opendatacommunities.org/id/unitary-authority/bracknell-forest","Bracknell Forest Council","00MA","Education Management & Support Service","Education Department - Other","Education Library Service - Resources","Audio/Visual materials",18/03/2011 00:00:00,"6442431",763.79,"PETERS LIMITED"
"Bracknell Forest Council","http://opendatacommunities.org/id/unitary-authority/bracknell-forest","Bracknell Forest Council","00MA","Education Management & Support Service","Education Department - Other","Education Library Service - Resources","Audio/Visual materials",18/03/2011 00:00:00,"6442432",671.87,"PETERS LIMITED"
"Bracknell Forest Council","http://opendatacommunities.org/id/unitary-authority/bracknell-forest","Bracknell Forest Council","00MA","Education Management & Support Service","Education Department - Other","Education Library Service - Resources","Audio/Visual materials",18/03/2011 00:00:00,"6442433",558.74,"PETERS LIMITED"
"Bracknell Forest Council","http://opendatacommunities.org/id/unitary-authority/bracknell-forest","Bracknell Forest Council","00MA","Libraries","Stock Ordering, Cataloguing & Distribution","Library Book Fund","Audio/Visual materials",18/03/2011 00:00:00,"6443087",2618.36,"PETERS LIMITED"
"Bracknell Forest Council","http://opendatacommunities.org/id/unitary-authority/bracknell-forest","Bracknell Forest Council","00MA","Street Cleansing","Street Cleansing","Enhanced Environmental Maintenance","Contracted Services",28/02/2011 00:00:00,"6441379",1486,"PETERSFIELD GROWING MEDIUMS AND HEWITT SPORTSTURF"
"Bracknell Forest Council","http://opendatacommunities.org/id/unitary-authority/bracknell-forest","Bracknell Forest Council","00MA","Recreation, Sports and Leisure","Indoor Sports & Recreation Facilities","Leisure DSO - Coral Reef","Training Costs",11/03/2011 00:00:00,"6442183",2195,"PHOENIX HEALTH AND SAFETY"
"Bracknell Forest Council","http://opendatacommunities.org/id/unitary-authority/bracknell-forest","Bracknell Forest Council","00MA","Recreation, Sports and Leisure","Retail Services, Catering & Licenced","Easthampstead Park Conference Centre","R&M - Service Contracts",23/12/2010 00:00:00,"6439479",4056.66,"PHS GROUP PLC"
"Bracknell Forest Council","http://opendatacommunities.org/id/unitary-authority/bracknell-forest","Bracknell Forest Council","00MA","Recreation, Sports and Leisure","Retail Services, Catering & Licenced","Easthampstead Park Conference Centre","R&M - Service Contracts",23/12/2010 00:00:00,"6439909",-1468.97,"PHS GROUP PLC"
"Bracknell Forest Council","http://opendatacommunities.org/id/unitary-authority/bracknell-forest","Bracknell Forest Council","00MA","Registration of Electors","Registration of Electors","Electoral Registration","Equipment - Purchase",14/03/2011 00:00:00,"6441342",1150,"PICKFORDS BUSINESS MOVING"
"Bracknell Forest Council","http://opendatacommunities.org/id/unitary-authority/bracknell-forest","Bracknell Forest Council","00MA","Older People (Aged 65 or Over)","Residential Care Home Placements","Residential Placements-Elderly","Contracted Services",15/03/2011 00:00:00,"30169687",1819.12,"PINEHURST CARE LIMITED"
"Bracknell Forest Council","http://opendatacommunities.org/id/unitary-authority/bracknell-forest","Bracknell Forest Council","00MA","Older People (Aged 65 or Over)","Residential Care Home Placements","Residential Placements-Elderly","Contracted Services",15/03/2011 00:00:00,"30169687",1819.12,"PINEHURST CARE LIMITED"
"Bracknell Forest Council","http://opendatacommunities.org/id/unitary-authority/bracknell-forest","Bracknell Forest Council","00MA","Older People (Aged 65 or Over)","Residential Care Home Placements","Residential Placements-Elderly","Contracted Services",15/03/2011 00:00:00,"30169687",2000,"PINEHURST CARE LIMITED"
"Bracknell Forest Council","http://opendatacommunities.org/id/unitary-authority/bracknell-forest","Bracknell Forest Council","00MA","Older People (Aged 65 or Over)","Residential Care Home Placements","Residential Placements-Elderly","Contracted Services",15/03/2011 00:00:00,"30169687",1819.12,"PINEHURST CARE LIMITED"
"Bracknell Forest Council","http://opendatacommunities.org/id/unitary-authority/bracknell-forest","Bracknell Forest Council","00MA","Older People (Aged 65 or Over)","Residential Care Home Placements","Residential Placements-Elderly","Contracted Services",15/03/2011 00:00:00,"30169687",6561.83,"PINEHURST CARE LIMITED"
"Bracknell Forest Council","http://opendatacommunities.org/id/unitary-authority/bracknell-forest","Bracknell Forest Council","00MA","Older People (Aged 65 or Over)","Residential Care Home Placements","Residential Placements-Elderly","Contracted Services",15/03/2011 00:00:00,"30169687",1819.12,"PINEHURST CARE LIMITED"
"Bracknell Forest Council","http://opendatacommunities.org/id/unitary-authority/bracknell-forest","Bracknell Forest Council","00MA","Older People (Aged 65 or Over)","Residential Care Home Placements","Residential Placements-Elderly","Contracted Services",15/03/2011 00:00:00,"30169687",2078.99,"PINEHURST CARE LIMITED"
"Bracknell Forest Council","http://opendatacommunities.org/id/unitary-authority/bracknell-forest","Bracknell Forest Council","00MA","Recreation, Sports and Leisure","Golf Courses","Leisure DSO - Downshire Golf Shop","Cost of Goods Sold",10/02/2011 00:00:00,"6441863",739.91,"PING EUROPE LTD"
"Bracknell Forest Council","http://opendatacommunities.org/id/unitary-authority/bracknell-forest","Bracknell Forest Council","00MA","Non-School Funding","Pre-School Education","Play Matters - BLF","Equipment - Purchase",14/03/2011 00:00:00,"6442991",624.67,"PITBITZ LTD"
"Bracknell Forest Council","http://opendatacommunities.org/id/unitary-authority/bracknell-forest","Bracknell Forest Council","00MA","Holding Accounts","Landscape Services","Landscape Services Operational","Contracted Services",16/03/2011 00:00:00,"6441787",2955,"PITNEY BOWES SOFTWARE"
"Bracknell Forest Council","http://opendatacommunities.org/id/unitary-authority/bracknell-forest","Bracknell Forest Council","00MA","Older People (Aged 65 or Over)","Other Services To Older People","Winter Pressures","Equipment - Purchase",09/03/2011 00:00:00,"6441754",1071,"PIVOTELL LTD"
"Bracknell Forest Council","http://opendatacommunities.org/id/unitary-authority/bracknell-forest","Bracknell Forest Council","00MA","","","Balance Sheet","Flexible Benefits Control Account",01/03/2011 00:00:00,"6439797",2165,"PLANET X LTD"
"Bracknell Forest Council","http://opendatacommunities.org/id/unitary-authority/bracknell-forest","Bracknell Forest Council","00MA","Recreation, Sports and Leisure","Indoor Sports & Recreation Facilities","Coral Reef - Catering & Bar","Catering Consumables",04/03/2011 00:00:00,"6441470",561.25,"PLANGLOW LTD"
"Bracknell Forest Council","http://opendatacommunities.org/id/unitary-authority/bracknell-forest","Bracknell Forest Council","00MA","","","Balance Sheet","Flexible Benefits Control Account",11/03/2011 00:00:00,"6441847",2426,"PLATTS HYUNDAI"
"Bracknell Forest Council","http://opendatacommunities.org/id/unitary-authority/bracknell-forest","Bracknell Forest Council","00MA","Non-School Funding","Pre-School Education","SSEYCG Outcomes, Quality & Inclusion","Approved Conference Fees & Expenses",28/02/2011 00:00:00,"6441395",1040,"PLAYWORK CONFERENCES CIC"
"Bracknell Forest Council","http://opendatacommunities.org/id/unitary-authority/bracknell-forest","Bracknell Forest Council","00MA","Children Looked After (CLA)","Children's Homes","Children's Home Placements","Contracted Services",04/03/2011 00:00:00,"6440455",13133,"PRECIOUS HOMES LTD"
"Bracknell Forest Council","http://opendatacommunities.org/id/unitary-authority/bracknell-forest","Bracknell Forest Council","00MA","Central Support Services - COF","Construction and Property","Schools Service Contracts","R&M - Reactive",21/02/2011 00:00:00,"6439270",1890,"PRIME INTERIORS DESIGN LTD"
"Bracknell Forest Council","http://opendatacommunities.org/id/unitary-authority/bracknell-forest","Bracknell Forest Council","00MA","","","Primary AP - Access for Disabled","Construction - Other Direct Expenses",21/02/2011 00:00:00,"6439681",5088.2,"PRIME INTERIORS DESIGN LTD"
"Bracknell Forest Council","http://opendatacommunities.org/id/unitary-authority/bracknell-forest","Bracknell Forest Council","00MA","","","Former HRA Properties","Construction - Contract Payments",21/02/2011 00:00:00,"6439689",5010.56,"PRIME INTERIORS DESIGN LTD"
"Bracknell Forest Council","http://opendatacommunities.org/id/unitary-authority/bracknell-forest","Bracknell Forest Council","00MA","","","Former HRA Properties","Construction - Contract Payments",21/02/2011 00:00:00,"6439690",951.04,"PRIME INTERIORS DESIGN LTD"
"Bracknell Forest Council","http://opendatacommunities.org/id/unitary-authority/bracknell-forest","Bracknell Forest Council","00MA","","","Improvements & Capitalised Repairs (Council Wide)","Construction - Contract Payments",28/02/2011 00:00:00,"6440243",1400,"PRIME INTERIORS DESIGN LTD"
"Bracknell Forest Council","http://opendatacommunities.org/id/unitary-authority/bracknell-forest","Bracknell Forest Council","00MA","Central Support Services - COF","Construction and Property","Schools Service Contracts","R&M - Reactive",28/02/2011 00:00:00,"6440247",1825,"PRIME INTERIORS DESIGN LTD"
"Bracknell Forest Council","http://opendatacommunities.org/id/unitary-authority/bracknell-forest","Bracknell Forest Council","00MA","Holding Accounts not in Budget Book - COF","General Holding Accounts","Certificated Contract Payments","Contracted Services",17/02/2011 00:00:00,"6440276",9269.97,"PRIME INTERIORS DESIGN LTD"
"Bracknell Forest Council","http://opendatacommunities.org/id/unitary-authority/bracknell-forest","Bracknell Forest Council","00MA","","","Improvements & Capitalised Repairs (Council Wide)","Construction - Contract Payments",28/02/2011 00:00:00,"6441213",1665,"PRIME INTERIORS DESIGN LTD"
"Bracknell Forest Council","http://opendatacommunities.org/id/unitary-authority/bracknell-forest","Bracknell Forest Council","00MA","Support Services & Management Costs","Property Services","Property Maintenance","R&M - Reactive",28/02/2011 00:00:00,"6441223",4142.57,"PRIME INTERIORS DESIGN LTD"
"Bracknell Forest Council","http://opendatacommunities.org/id/unitary-authority/bracknell-forest","Bracknell Forest Council","00MA","Central Support Services - COF","Construction and Property","Schools Service Contracts","R&M - Reactive",21/02/2011 00:00:00,"6441224",980.55,"PRIME INTERIORS DESIGN LTD"
"Bracknell Forest Council","http://opendatacommunities.org/id/unitary-authority/bracknell-forest","Bracknell Forest Council","00MA","Central Support Services - COF","Construction and Property","Schools Service Contracts","R&M - Reactive",21/02/2011 00:00:00,"6441225",2377.39,"PRIME INTERIORS DESIGN LTD"
"Bracknell Forest Council","http://opendatacommunities.org/id/unitary-authority/bracknell-forest","Bracknell Forest Council","00MA","Central Support Services - COF","Construction and Property","Schools Service Contracts","R&M - Reactive",17/02/2011 00:00:00,"6441235",595.98,"PRIME INTERIORS DESIGN LTD"
"Bracknell Forest Council","http://opendatacommunities.org/id/unitary-authority/bracknell-forest","Bracknell Forest Council","00MA","Recreation, Sports and Leisure","Indoor Sports & Recreation Facilities","BS&LC & Coral Reef","R&M - Reactive",07/02/2011 00:00:00,"6441557",993.62,"PRIME INTERIORS DESIGN LTD"
"Bracknell Forest Council","http://opendatacommunities.org/id/unitary-authority/bracknell-forest","Bracknell Forest Council","00MA","Recreation, Sports and Leisure","Dual Use Centres","Edgbarrow Sports Centre","Minor Improvement Schemes",07/02/2011 00:00:00,"6441558",2000,"PRIME INTERIORS DESIGN LTD"
"Bracknell Forest Council","http://opendatacommunities.org/id/unitary-authority/bracknell-forest","Bracknell Forest Council","00MA","","","Improvements & Capitalised Repairs (Council Wide)","Construction - Contract Payments",07/02/2011 00:00:00,"6441558",7487.71,"PRIME INTERIORS DESIGN LTD"
"Bracknell Forest Council","http://opendatacommunities.org/id/unitary-authority/bracknell-forest","Bracknell Forest Council","00MA","Economic Development","Premises Development","Warren Row Shops","R&M - Reactive",07/02/2011 00:00:00,"6441559",1906.1,"PRIME INTERIORS DESIGN LTD"
"Bracknell Forest Council","http://opendatacommunities.org/id/unitary-authority/bracknell-forest","Bracknell Forest Council","00MA","","","Former HRA Properties","Construction - Contract Payments",15/03/2011 00:00:00,"6441933",990,"PRIME INTERIORS DESIGN LTD"
"Bracknell Forest Council","http://opendatacommunities.org/id/unitary-authority/bracknell-forest","Bracknell Forest Council","00MA","Non-School Funding","Youth Services","Coopers Hill Youth Centre","Equipment - Purchase",15/03/2011 00:00:00,"6441934",630,"PRIME INTERIORS DESIGN LTD"
"Bracknell Forest Council","http://opendatacommunities.org/id/unitary-authority/bracknell-forest","Bracknell Forest Council","00MA","Non-School Funding","Adult & Community Learning","Open Learning Centre - Brakenhale","R&M - Reactive",15/03/2011 00:00:00,"6443036",1837,"PRIME INTERIORS DESIGN LTD"
"Bracknell Forest Council","http://opendatacommunities.org/id/unitary-authority/bracknell-forest","Bracknell Forest Council","00MA","Central Support Services - COF","Construction and Property","Schools Service Contracts","R&M - Reactive",15/03/2011 00:00:00,"6443037",1308.88,"PRIME INTERIORS DESIGN LTD"
"Bracknell Forest Council","http://opendatacommunities.org/id/unitary-authority/bracknell-forest","Bracknell Forest Council","00MA","Family Support Services","Other Family Support Services","C&F Section 17 Over 11's Team","Contracted Services",27/02/2011 00:00:00,"6441180",908.11,"PRIME TIME RECRUITMENT"
"Bracknell Forest Council","http://opendatacommunities.org/id/unitary-authority/bracknell-forest","Bracknell Forest Council","00MA","Recreation, Sports and Leisure","Golf Courses","Leisure DSO - Downshire Golf Course","Minor Improvement Schemes",07/03/2011 00:00:00,"6440858",672,"PRIMEWARE CERAMICS LTD"
"Bracknell Forest Council","http://opendatacommunities.org/id/unitary-authority/bracknell-forest","Bracknell Forest Council","00MA","Learning Disability (under 65)","Residential Care Home Placements","Residential Placements-Lrng Disab","Contracted Services",15/03/2011 00:00:00,"30169687",6571.64,"PRINCIPLE CARE LTD"
"Bracknell Forest Council","http://opendatacommunities.org/id/unitary-authority/bracknell-forest","Bracknell Forest Council","00MA","Learning Disability (under 65)","Day Care","Aiming High Grant","Equipment - Purchase",23/02/2011 00:00:00,"6439170",584.49,"PRO-DIRECT SPORTS GROUP"
"Bracknell Forest Council","http://opendatacommunities.org/id/unitary-authority/bracknell-forest","Bracknell Forest Council","00MA","Learning Disability (under 65)","Day Care","Day Centre Placements-Lrng Disab","Contracted Services",10/03/2011 00:00:00,"30169485",256,"PROSPECTS"
"Bracknell Forest Council","http://opendatacommunities.org/id/unitary-authority/bracknell-forest","Bracknell Forest Council","00MA","Learning Disability (under 65)","Residential Care Home Placements","Residential Placements-Lrng Disab","Contracted Services",15/03/2011 00:00:00,"30169687",3407.32,"PROSPECTS"
"Bracknell Forest Council","http://opendatacommunities.org/id/unitary-authority/bracknell-forest","Bracknell Forest Council","00MA","Learning Disability (under 65)","Day Care","Day Centre Placements-Lrng Disab","Contracted Services",31/03/2011 00:00:00,"30170733",256,"PROSPECTS"
"Bracknell Forest Council","http://opendatacommunities.org/id/unitary-authority/bracknell-forest","Bracknell Forest Council","00MA","Non-School Funding","Pre-School Education","SSEYCG Outcomes, Quality & Inclusion","Learning Resources - Purchase",01/03/2011 00:00:00,"6439649",532.37,"PUPPETS BY POST"
"Bracknell Forest Council","http://opendatacommunities.org/id/unitary-authority/bracknell-forest","Bracknell Forest Council","00MA","Older People (Aged 65 or Over)","Residential Care Home Placements","Residential Placements LD 65 and Over","Contracted Services",15/03/2011 00:00:00,"30169687",2262.32,"PURLEY PARK TRUST LTD"
"Bracknell Forest Council","http://opendatacommunities.org/id/unitary-authority/bracknell-forest","Bracknell Forest Council","00MA","Community Development","Community Development","Community Engagement","Consultants Fees",07/03/2011 00:00:00,"6440380",1100,"QA RESEARCH"
"Bracknell Forest Council","http://opendatacommunities.org/id/unitary-authority/bracknell-forest","Bracknell Forest Council","00MA","Children's Support & Management Costs","Children's Support Services & Management Costs","Sec 28A - Day Centre Purchases","Voluntary Sector Service Providers",14/02/2011 00:00:00,"6440313",2381.7,"QUALITY CARE HOMES (UK) LTD"
"Bracknell Forest Council","http://opendatacommunities.org/id/unitary-authority/bracknell-forest","Bracknell Forest Council","00MA","Children Looked After (CLA)","Children's Homes","C&F Learning Disability Placements","Voluntary Sector Service Providers",14/02/2011 00:00:00,"6440314",919.24,"QUALITY CARE HOMES (UK) LTD"
"Bracknell Forest Council","http://opendatacommunities.org/id/unitary-authority/bracknell-forest","Bracknell Forest Council","00MA","Children's Support & Management Costs","Children's Support Services & Management Costs","Sec 28A - Day Centre Purchases","Voluntary Sector Service Providers",14/02/2011 00:00:00,"6440314",612.82,"QUALITY CARE HOMES (UK) LTD"
"Bracknell Forest Council","http://opendatacommunities.org/id/unitary-authority/bracknell-forest","Bracknell Forest Council","00MA","Children's Support & Management Costs","Children's Support Services & Management Costs","Sec 28A - Day Centre Purchases","Voluntary Sector Service Providers",01/03/2011 00:00:00,"6440454",2381.7,"QUALITY CARE HOMES (UK) LTD"
"Bracknell Forest Council","http://opendatacommunities.org/id/unitary-authority/bracknell-forest","Bracknell Forest Council","00MA","Children's Support & Management Costs","Children's Support Services & Management Costs","Sec 28A - Day Centre Purchases","Voluntary Sector Service Providers",04/01/2011 00:00:00,"6441195",2381.7,"QUALITY CARE HOMES (UK) LTD"
"Bracknell Forest Council","http://opendatacommunities.org/id/unitary-authority/bracknell-forest","Bracknell Forest Council","00MA","Children's Support & Management Costs","Children's Support Services & Management Costs","Sec 28A - Day Centre Purchases","Voluntary Sector Service Providers",08/03/2011 00:00:00,"6441196",2381.7,"QUALITY CARE HOMES (UK) LTD"
"Bracknell Forest Council","http://opendatacommunities.org/id/unitary-authority/bracknell-forest","Bracknell Forest Council","00MA","Older People (Aged 65 or Over)","Nursing Home Placements","Nursing Home Placements-Elderly","Contracted Services",15/03/2011 00:00:00,"30169687",2170,"AMBERBROOK MANAGEMENT LTD"
"Bracknell Forest Council","http://opendatacommunities.org/id/unitary-authority/bracknell-forest","Bracknell Forest Council","00MA","Older People (Aged 65 or Over)","Residential Care Home Placements","Elderly  Respite Care","Contracted Services",22/03/2011 00:00:00,"30169981",2885.61,"AMBERBROOK MANAGEMENT LTD"
"Bracknell Forest Council","http://opendatacommunities.org/id/unitary-authority/bracknell-forest","Bracknell Forest Council","00MA","Older People (Aged 65 or Over)","Residential Care Home Placements","Elderly  Respite Care","Contracted Services",22/03/2011 00:00:00,"30169981",687.02,"AMBERBROOK MANAGEMENT LTD"
"Bracknell Forest Council","http://opendatacommunities.org/id/unitary-authority/bracknell-forest","Bracknell Forest Council","00MA","Recreation, Sports and Leisure","Retail Services, Catering & Licenced","Easthampstead Park Conference Centre","R&M - Service Contracts",18/02/2011 00:00:00,"6439992",1480.83,"AMBIUS"
"Bracknell Forest Council","http://opendatacommunities.org/id/unitary-authority/bracknell-forest","Bracknell Forest Council","00MA","Children Looked After (CLA)","Children's Homes","Children's Home Placements","Contracted Services",17/02/2011 00:00:00,"6439538",10400,"AMEGREEN CHILDRENS SERVICES"
"Bracknell Forest Council","http://opendatacommunities.org/id/unitary-authority/bracknell-forest","Bracknell Forest Council","00MA","Children Looked After (CLA)","Children's Homes","Children's Home Placements","Contracted Services",05/03/2011 00:00:00,"6442067",10771,"AMEGREEN CHILDRENS SERVICES"
"Bracknell Forest Council","http://opendatacommunities.org/id/unitary-authority/bracknell-forest","Bracknell Forest Council","00MA","Education Management & Support Service","Performance & Resources","Information Technology - Section","Computer Software",21/03/2011 00:00:00,"6442124",560,"AMI EDUCATION SOLUTIONS LTD"
"Bracknell Forest Council","http://opendatacommunities.org/id/unitary-authority/bracknell-forest","Bracknell Forest Council","00MA","Education Management & Support Service","School Related Expenditure","HTS Interim","Taxi Fares - Home/School Transport",31/01/2011 00:00:00,"6442301",1930.4,"AMK CHAUFFEUR DRIVE LIMITED"
"Bracknell Forest Council","http://opendatacommunities.org/id/unitary-authority/bracknell-forest","Bracknell Forest Council","00MA","Education Management & Support Service","School Related Expenditure","HTS Interim","Taxi Fares - Home/School Transport",28/02/2011 00:00:00,"6442302",1524,"AMK CHAUFFEUR DRIVE LIMITED"
"Bracknell Forest Council","http://opendatacommunities.org/id/unitary-authority/bracknell-forest","Bracknell Forest Council","00MA","Education Management & Support Service","School Related Expenditure","HTS Interim","Taxi Fares - Home/School Transport",28/02/2011 00:00:00,"6442307",2317.8,"AMK CHAUFFEUR DRIVE LIMITED"
"Bracknell Forest Council","http://opendatacommunities.org/id/unitary-authority/bracknell-forest","Bracknell Forest Council","00MA","Education Management & Support Service","School Related Expenditure","HTS Interim","Taxi Fares - Home/School Transport",28/02/2011 00:00:00,"6442308",2317.8,"AMK CHAUFFEUR DRIVE LIMITED"
"Bracknell Forest Council","http://opendatacommunities.org/id/unitary-authority/bracknell-forest","Bracknell Forest Council","00MA","Education Management & Support Service","School Related Expenditure","HTS Interim","Taxi Fares - Home/School Transport",31/01/2011 00:00:00,"6442309",1930.4,"AMK CHAUFFEUR DRIVE LIMITED"
"Bracknell Forest Council","http://opendatacommunities.org/id/unitary-authority/bracknell-forest","Bracknell Forest Council","00MA","Education Management & Support Service","School Related Expenditure","HTS Interim","Taxi Fares - Home/School Transport",31/01/2011 00:00:00,"6442310",1930.4,"AMK CHAUFFEUR DRIVE LIMITED"
"Bracknell Forest Council","http://opendatacommunities.org/id/unitary-authority/bracknell-forest","Bracknell Forest Council","00MA","Children Looked After (CLA)","Children's Homes","C&F Learning Disability Placements","Voluntary Sector Service Providers",03/03/2011 00:00:00,"6441197",919.24,"QUALITY CARE HOMES (UK) LTD"
"Bracknell Forest Council","http://opendatacommunities.org/id/unitary-authority/bracknell-forest","Bracknell Forest Council","00MA","Children's Support & Management Costs","Children's Support Services & Management Costs","Sec 28A - Day Centre Purchases","Voluntary Sector Service Providers",03/03/2011 00:00:00,"6441197",612.82,"QUALITY CARE HOMES (UK) LTD"
"Bracknell Forest Council","http://opendatacommunities.org/id/unitary-authority/bracknell-forest","Bracknell Forest Council","00MA","Children Looked After (CLA)","Children's Homes","C&F Learning Disability Placements","Voluntary Sector Service Providers",01/03/2011 00:00:00,"6441199",919.24,"QUALITY CARE HOMES (UK) LTD"
"Bracknell Forest Council","http://opendatacommunities.org/id/unitary-authority/bracknell-forest","Bracknell Forest Council","00MA","Children's Support & Management Costs","Children's Support Services & Management Costs","Sec 28A - Day Centre Purchases","Voluntary Sector Service Providers",01/03/2011 00:00:00,"6441199",612.82,"QUALITY CARE HOMES (UK) LTD"
"Bracknell Forest Council","http://opendatacommunities.org/id/unitary-authority/bracknell-forest","Bracknell Forest Council","00MA","Children's Support & Management Costs","Children's Support Services & Management Costs","Sec 28A - Day Centre Purchases","Voluntary Sector Service Providers",03/03/2011 00:00:00,"6441288",2381.7,"QUALITY CARE HOMES (UK) LTD"
"Bracknell Forest Council","http://opendatacommunities.org/id/unitary-authority/bracknell-forest","Bracknell Forest Council","00MA","Children Looked After (CLA)","Children's Homes","C&F Learning Disability Placements","Voluntary Sector Service Providers",08/03/2011 00:00:00,"6442051",919.24,"QUALITY CARE HOMES (UK) LTD"
"Bracknell Forest Council","http://opendatacommunities.org/id/unitary-authority/bracknell-forest","Bracknell Forest Council","00MA","Children's Support & Management Costs","Children's Support Services & Management Costs","Sec 28A - Day Centre Purchases","Voluntary Sector Service Providers",08/03/2011 00:00:00,"6442051",612.82,"QUALITY CARE HOMES (UK) LTD"
"Bracknell Forest Council","http://opendatacommunities.org/id/unitary-authority/bracknell-forest","Bracknell Forest Council","00MA","Children's Support & Management Costs","Children's Support Services & Management Costs","Sec 28A - Day Centre Purchases","Voluntary Sector Service Providers",14/03/2011 00:00:00,"6442052",2381.7,"QUALITY CARE HOMES (UK) LTD"
"Bracknell Forest Council","http://opendatacommunities.org/id/unitary-authority/bracknell-forest","Bracknell Forest Council","00MA","Children Looked After (CLA)","Children's Homes","C&F Learning Disability Placements","Voluntary Sector Service Providers",14/03/2011 00:00:00,"6442702",919.27,"QUALITY CARE HOMES (UK) LTD"
"Bracknell Forest Council","http://opendatacommunities.org/id/unitary-authority/bracknell-forest","Bracknell Forest Council","00MA","Children's Support & Management Costs","Children's Support Services & Management Costs","Sec 28A - Day Centre Purchases","Voluntary Sector Service Providers",14/03/2011 00:00:00,"6442702",612.79,"QUALITY CARE HOMES (UK) LTD"
"Bracknell Forest Council","http://opendatacommunities.org/id/unitary-authority/bracknell-forest","Bracknell Forest Council","00MA","Learning Disability (under 65)","Assessment & Care Management","Learning Disability Team","Agency",04/03/2011 00:00:00,"6440346",1087.5,"QUINTESSENTIAL SUPPORT BROKERS LTD"
"Bracknell Forest Council","http://opendatacommunities.org/id/unitary-authority/bracknell-forest","Bracknell Forest Council","00MA","Education Management & Support Service","School Related Expenditure","HTS Interim","Taxi Fares - Home/School Transport",31/01/2011 00:00:00,"6442311",2935.88,"AMK CHAUFFEUR DRIVE LIMITED"
"Bracknell Forest Council","http://opendatacommunities.org/id/unitary-authority/bracknell-forest","Bracknell Forest Council","00MA","Education Management & Support Service","School Related Expenditure","HTS Interim","Taxi Fares - Home/School Transport",31/01/2011 00:00:00,"6442312",2935.88,"AMK CHAUFFEUR DRIVE LIMITED"
"Bracknell Forest Council","http://opendatacommunities.org/id/unitary-authority/bracknell-forest","Bracknell Forest Council","00MA","Education Management & Support Service","School Related Expenditure","HTS Interim","Taxi Fares - Home/School Transport",28/02/2011 00:00:00,"6442313",1524,"AMK CHAUFFEUR DRIVE LIMITED"
"Bracknell Forest Council","http://opendatacommunities.org/id/unitary-authority/bracknell-forest","Bracknell Forest Council","00MA","Education Management & Support Service","School Related Expenditure","HTS Interim","Taxi Fares - Home/School Transport",28/02/2011 00:00:00,"6442314",1524,"AMK CHAUFFEUR DRIVE LIMITED"
"Bracknell Forest Council","http://opendatacommunities.org/id/unitary-authority/bracknell-forest","Bracknell Forest Council","00MA","Recreation, Sports and Leisure","Retail Services, Catering & Licenced","Easthampstead Park Centre - Catering","Cost of Goods Sold",12/02/2011 00:00:00,"6438665",1072.8,"AMS WHOLESALE"
"Bracknell Forest Council","http://opendatacommunities.org/id/unitary-authority/bracknell-forest","Bracknell Forest Council","00MA","Recreation, Sports and Leisure","Retail Services, Catering & Licenced","Easthampstead Park Centre - Catering","Cost of Goods Sold",19/02/2011 00:00:00,"6439313",1051.58,"AMS WHOLESALE"
"Bracknell Forest Council","http://opendatacommunities.org/id/unitary-authority/bracknell-forest","Bracknell Forest Council","00MA","Recreation, Sports and Leisure","Retail Services, Catering & Licenced","Easthampstead Park Centre - Catering","Cost of Goods Sold",26/02/2011 00:00:00,"6439315",1030.87,"AMS WHOLESALE"
"Bracknell Forest Council","http://opendatacommunities.org/id/unitary-authority/bracknell-forest","Bracknell Forest Council","00MA","Recreation, Sports and Leisure","Retail Services, Catering & Licenced","Easthampstead Park Centre - Catering","Cost of Goods Sold",05/03/2011 00:00:00,"6441096",558.04,"AMS WHOLESALE"
"Bracknell Forest Council","http://opendatacommunities.org/id/unitary-authority/bracknell-forest","Bracknell Forest Council","00MA","Recreation, Sports and Leisure","Retail Services, Catering & Licenced","Easthampstead Park Centre - Catering","Cost of Goods Sold",12/03/2011 00:00:00,"6442374",1215.1,"AMS WHOLESALE"
"Bracknell Forest Council","http://opendatacommunities.org/id/unitary-authority/bracknell-forest","Bracknell Forest Council","00MA","Recreation, Sports and Leisure","Retail Services, Catering & Licenced","Easthampstead Park Centre - Catering","Cost of Goods Sold",19/03/2011 00:00:00,"6442375",506.38,"AMS WHOLESALE"
"Bracknell Forest Council","http://opendatacommunities.org/id/unitary-authority/bracknell-forest","Bracknell Forest Council","00MA","Older People (Aged 65 or Over)","Residential Care Home Placements","Residential Placements-Elderly","Contracted Services",15/03/2011 00:00:00,"30169687",1587.12,"ANCHOR TRUST"
"Bracknell Forest Council","http://opendatacommunities.org/id/unitary-authority/bracknell-forest","Bracknell Forest Council","00MA","Learning Disability (under 65)","Direct Payments - LD","Direct Payments - LD","Direct Payments to Clients",29/03/2011 00:00:00,"30170467",835.32,"REDACTED PERSONAL DATA"
"Bracknell Forest Council","http://opendatacommunities.org/id/unitary-authority/bracknell-forest","Bracknell Forest Council","00MA","Older People (Aged 65 or Over)","Home Care","Elderly Live-In Carers","Contracted Services",17/03/2011 00:00:00,"30169840",1200,"ANGEL AU PAIRS"
"Bracknell Forest Council","http://opendatacommunities.org/id/unitary-authority/bracknell-forest","Bracknell Forest Council","00MA","Learning Disability (under 65)","Assessment & Care Management","Learning Disability Team","Agency",11/03/2011 00:00:00,"6442085",1087.5,"QUINTESSENTIAL SUPPORT BROKERS LTD"
"Bracknell Forest Council","http://opendatacommunities.org/id/unitary-authority/bracknell-forest","Bracknell Forest Council","00MA","Learning Disability (under 65)","Assessment & Care Management","Learning Disability Team","Agency",18/03/2011 00:00:00,"6442086",1087.5,"QUINTESSENTIAL SUPPORT BROKERS LTD"
"Bracknell Forest Council","http://opendatacommunities.org/id/unitary-authority/bracknell-forest","Bracknell Forest Council","00MA","Learning Disability (under 65)","Residential Care Home Placements","Residential Placements-Lrng Disab","Contracted Services",15/03/2011 00:00:00,"30169687",4776.68,"R E A C H LTD"
"Bracknell Forest Council","http://opendatacommunities.org/id/unitary-authority/bracknell-forest","Bracknell Forest Council","00MA","Open Spaces","Community Parks & Open Spaces","Urban Parks  - Maintenance","R&M - Planned",27/02/2011 00:00:00,"6439751",1625,"R J MORGAN"
"Bracknell Forest Council","http://opendatacommunities.org/id/unitary-authority/bracknell-forest","Bracknell Forest Council","00MA","Holding Accounts in Budget Book COF","Corporate Serv - Reprographics & Printing","Reprographics & Printing","Equipment - R&M",15/03/2011 00:00:00,"6443063",1500,"R ROSE ENGINEERING LTD"
"Bracknell Forest Council","http://opendatacommunities.org/id/unitary-authority/bracknell-forest","Bracknell Forest Council","00MA","Children Looked After (CLA)","Children's Homes","Children's Home Placements","Contracted Services",01/03/2011 00:00:00,"6440452",13158.88,"RAAC CARE LTD"
"Bracknell Forest Council","http://opendatacommunities.org/id/unitary-authority/bracknell-forest","Bracknell Forest Council","00MA","Older People (Aged 65 or Over)","Assessment & Care Management","Short Term Services - Social Work","Agency",16/02/2011 00:00:00,"6439109",1110,"RANDSTAD CARE"
"Bracknell Forest Council","http://opendatacommunities.org/id/unitary-authority/bracknell-forest","Bracknell Forest Council","00MA","Children's Support & Management Costs","Children's Support Services & Management Costs","Sec 28A - Day Centre Purchases","Voluntary Sector Service Providers",02/02/2011 00:00:00,"6440094",524.38,"RANDSTAD CARE"
"Bracknell Forest Council","http://opendatacommunities.org/id/unitary-authority/bracknell-forest","Bracknell Forest Council","00MA","Children's Support & Management Costs","Children's Support Services & Management Costs","Sec 28A - Day Centre Purchases","Voluntary Sector Service Providers",16/02/2011 00:00:00,"6440095",601.09,"RANDSTAD CARE"
"Bracknell Forest Council","http://opendatacommunities.org/id/unitary-authority/bracknell-forest","Bracknell Forest Council","00MA","Children's Support & Management Costs","Children's Support Services & Management Costs","Sec 28A - Day Centre Purchases","Voluntary Sector Service Providers",05/01/2011 00:00:00,"6440096",610.82,"RANDSTAD CARE"
"Bracknell Forest Council","http://opendatacommunities.org/id/unitary-authority/bracknell-forest","Bracknell Forest Council","00MA","Family Support Services","Home Care","Children's Disabilities Care Needs","Voluntary Sector Service Providers",09/02/2011 00:00:00,"6440310",501.71,"RANDSTAD CARE"
"Bracknell Forest Council","http://opendatacommunities.org/id/unitary-authority/bracknell-forest","Bracknell Forest Council","00MA","Older People (Aged 65 or Over)","Assessment & Care Management","CMHTE","Agency",16/02/2011 00:00:00,"6440428",740.1,"RANDSTAD CARE"
"Bracknell Forest Council","http://opendatacommunities.org/id/unitary-authority/bracknell-forest","Bracknell Forest Council","00MA","Older People (Aged 65 or Over)","Assessment & Care Management","Short Term Services - Social Work","Agency",23/02/2011 00:00:00,"6440500",1221,"RANDSTAD CARE"
"Bracknell Forest Council","http://opendatacommunities.org/id/unitary-authority/bracknell-forest","Bracknell Forest Council","00MA","Older People (Aged 65 or Over)","Assessment & Care Management","Short Term Services - Social Work","Agency",23/02/2011 00:00:00,"6440502",1110,"RANDSTAD CARE"
"Bracknell Forest Council","http://opendatacommunities.org/id/unitary-authority/bracknell-forest","Bracknell Forest Council","00MA","Older People (Aged 65 or Over)","Assessment & Care Management","Short Term Services - Social Work","Agency",23/02/2011 00:00:00,"6440504",616,"RANDSTAD CARE"
"Bracknell Forest Council","http://opendatacommunities.org/id/unitary-authority/bracknell-forest","Bracknell Forest Council","00MA","Older People (Aged 65 or Over)","Assessment & Care Management","CMHTE","Agency",26/01/2011 00:00:00,"6440707",720,"RANDSTAD CARE"
"Bracknell Forest Council","http://opendatacommunities.org/id/unitary-authority/bracknell-forest","Bracknell Forest Council","00MA","Older People (Aged 65 or Over)","Assessment & Care Management","CMHTE","Agency",27/01/2011 00:00:00,"6440708",767.4,"RANDSTAD CARE"
"Bracknell Forest Council","http://opendatacommunities.org/id/unitary-authority/bracknell-forest","Bracknell Forest Council","00MA","Older People (Aged 65 or Over)","Assessment & Care Management","CMHTE","Agency",02/03/2011 00:00:00,"6440709",699.9,"RANDSTAD CARE"
"Bracknell Forest Council","http://opendatacommunities.org/id/unitary-authority/bracknell-forest","Bracknell Forest Council","00MA","Older People (Aged 65 or Over)","Assessment & Care Management","CMHTE","Agency",09/02/2011 00:00:00,"6440714",920.1,"RANDSTAD CARE"
"Bracknell Forest Council","http://opendatacommunities.org/id/unitary-authority/bracknell-forest","Bracknell Forest Council","00MA","Older People (Aged 65 or Over)","Assessment & Care Management","CMHTE","Agency",23/02/2011 00:00:00,"6440715",860.1,"RANDSTAD CARE"
"Bracknell Forest Council","http://opendatacommunities.org/id/unitary-authority/bracknell-forest","Bracknell Forest Council","00MA","Older People (Aged 65 or Over)","Assessment & Care Management","CMHTE","Agency",27/01/2011 00:00:00,"6441725",667.5,"RANDSTAD CARE"
"Bracknell Forest Council","http://opendatacommunities.org/id/unitary-authority/bracknell-forest","Bracknell Forest Council","00MA","Older People (Aged 65 or Over)","Assessment & Care Management","CMHTE","Agency",27/01/2011 00:00:00,"6441726",-657.6,"RANDSTAD CARE"
"Bracknell Forest Council","http://opendatacommunities.org/id/unitary-authority/bracknell-forest","Bracknell Forest Council","00MA","Children's Support & Management Costs","Children's Support Services & Management Costs","Sec 28A - Day Centre Purchases","Voluntary Sector Service Providers",26/01/2011 00:00:00,"6441968",731.23,"RANDSTAD CARE"
"Bracknell Forest Council","http://opendatacommunities.org/id/unitary-authority/bracknell-forest","Bracknell Forest Council","00MA","Children's Support & Management Costs","Children's Support Services & Management Costs","Sec 28A - Day Centre Purchases","Voluntary Sector Service Providers",02/03/2011 00:00:00,"6442074",610.61,"RANDSTAD CARE"
"Bracknell Forest Council","http://opendatacommunities.org/id/unitary-authority/bracknell-forest","Bracknell Forest Council","00MA","Older People (Aged 65 or Over)","Assessment & Care Management","Short Term Services - Social Work","Agency",10/03/2011 00:00:00,"6442236",1050,"RANDSTAD CARE"
"Bracknell Forest Council","http://opendatacommunities.org/id/unitary-authority/bracknell-forest","Bracknell Forest Council","00MA","Older People (Aged 65 or Over)","Assessment & Care Management","Short Term Services - Social Work","Agency",02/03/2011 00:00:00,"6442237",1050,"RANDSTAD CARE"
"Bracknell Forest Council","http://opendatacommunities.org/id/unitary-authority/bracknell-forest","Bracknell Forest Council","00MA","Older People (Aged 65 or Over)","Assessment & Care Management","Short Term Services - Social Work","Agency",02/03/2011 00:00:00,"6442238",1155,"RANDSTAD CARE"
"Bracknell Forest Council","http://opendatacommunities.org/id/unitary-authority/bracknell-forest","Bracknell Forest Council","00MA","Older People (Aged 65 or Over)","Assessment & Care Management","Short Term Services - Social Work","Agency",02/03/2011 00:00:00,"6442239",1065,"RANDSTAD CARE"
"Bracknell Forest Council","http://opendatacommunities.org/id/unitary-authority/bracknell-forest","Bracknell Forest Council","00MA","Older People (Aged 65 or Over)","Assessment & Care Management","Short Term Services - Social Work","Agency",10/03/2011 00:00:00,"6442242",1237.5,"RANDSTAD CARE"
"Bracknell Forest Council","http://opendatacommunities.org/id/unitary-authority/bracknell-forest","Bracknell Forest Council","00MA","Older People (Aged 65 or Over)","Assessment & Care Management","End of Life","Agency",17/03/2011 00:00:00,"6442740",557.64,"RANDSTAD CARE"
"Bracknell Forest Council","http://opendatacommunities.org/id/unitary-authority/bracknell-forest","Bracknell Forest Council","00MA","Older People (Aged 65 or Over)","Assessment & Care Management","Short Term Services - Social Work","Agency",17/03/2011 00:00:00,"6442741",1204.5,"RANDSTAD CARE"
"Bracknell Forest Council","http://opendatacommunities.org/id/unitary-authority/bracknell-forest","Bracknell Forest Council","00MA","Older People (Aged 65 or Over)","Assessment & Care Management","CMHTE","Agency",27/01/2011 00:00:00,"6442830",-707.4,"RANDSTAD CARE"
"Bracknell Forest Council","http://opendatacommunities.org/id/unitary-authority/bracknell-forest","Bracknell Forest Council","00MA","Older People (Aged 65 or Over)","Home Care","Home Care-Elderly","Contracted Services",09/03/2011 00:00:00,"30169460",108,"RANDSTAD CARE"
"Bracknell Forest Council","http://opendatacommunities.org/id/unitary-authority/bracknell-forest","Bracknell Forest Council","00MA","Older People (Aged 65 or Over)","Home Care","Home Care-Elderly","Contracted Services",24/03/2011 00:00:00,"30170204",1400,"RANDSTAD CARE"
"Bracknell Forest Council","http://opendatacommunities.org/id/unitary-authority/bracknell-forest","Bracknell Forest Council","00MA","Physical Disability/Sensory Impairment","Homecare","Home Care-Phys Disab","Contracted Services",24/03/2011 00:00:00,"30170204",1400,"RANDSTAD CARE"
"Bracknell Forest Council","http://opendatacommunities.org/id/unitary-authority/bracknell-forest","Bracknell Forest Council","00MA","Older People (Aged 65 or Over)","Assessment & Care Management","Enhanced Intermediate Care","Agency",28/02/2011 00:00:00,"6440468",1540.27,"RCB OT LIMITED"
"Bracknell Forest Council","http://opendatacommunities.org/id/unitary-authority/bracknell-forest","Bracknell Forest Council","00MA","Planning Policy","Structure & Local Planning","Planning Policy","Consultants Fees",25/02/2011 00:00:00,"6439938",7397.35,"READING BOROUGH COUNCIL"
"Bracknell Forest Council","http://opendatacommunities.org/id/unitary-authority/bracknell-forest","Bracknell Forest Council","00MA","Waste Disposal","Disposal of Waste","Waste Disposal","Contracted Services",07/03/2011 00:00:00,"6440120",351029.08,"READING BOROUGH COUNCIL"
"Bracknell Forest Council","http://opendatacommunities.org/id/unitary-authority/bracknell-forest","Bracknell Forest Council","00MA","Learning Disability (under 65)","Supported and Other Accommodation","Supported living-Supported & Other AccomodationLD","Reading BC",09/03/2011 00:00:00,"30169460",258.48,"READING BOROUGH COUNCIL"
"Bracknell Forest Council","http://opendatacommunities.org/id/unitary-authority/bracknell-forest","Bracknell Forest Council","00MA","Learning Disability (under 65)","Supported and Other Accommodation","Supported living-Supported & Other AccomodationLD","Reading BC",22/03/2011 00:00:00,"30169981",258.48,"READING BOROUGH COUNCIL"
"Bracknell Forest Council","http://opendatacommunities.org/id/unitary-authority/bracknell-forest","Bracknell Forest Council","00MA","Childrens services-Commissioning & SW","Commissioning & Social Work","Safeguarding Childrens Board","Training Costs",31/01/2011 00:00:00,"6440285",789.64,"RECONSTRUCT LTD"
"Bracknell Forest Council","http://opendatacommunities.org/id/unitary-authority/bracknell-forest","Bracknell Forest Council","00MA","Learning Disability (under 65)","Day Care","Aiming High Grant","Consultants Fees",17/02/2011 00:00:00,"6439317",936,"REDTEN FOOTBALL COACHING"
"Bracknell Forest Council","http://opendatacommunities.org/id/unitary-authority/bracknell-forest","Bracknell Forest Council","00MA","Older People (Aged 65 or Over)","Assessment & Care Management","Emergency Duty Team (Out of Hours Serv)","Computer Software Maintenance",01/03/2011 00:00:00,"6440670",2000,"REN BUSINESS SOFTWARE LIMITED"
"Bracknell Forest Council","http://opendatacommunities.org/id/unitary-authority/bracknell-forest","Bracknell Forest Council","00MA","Education Management & Support Service","Education Department - Other","Education Library Service","Vehicle Repairs",18/03/2011 00:00:00,"6442363",2084.41,"RENAULT TRUCKS COMMERCIAL LTD"
"Bracknell Forest Council","http://opendatacommunities.org/id/unitary-authority/bracknell-forest","Bracknell Forest Council","00MA","Central Support Services - COF","Finance","Insurance Excess / Risk Management","Claims Paid",23/02/2011 00:00:00,"6438922",507.05,"RESULTS HEALTH CLUBS BRACKNELL LTD"
"Bracknell Forest Council","http://opendatacommunities.org/id/unitary-authority/bracknell-forest","Bracknell Forest Council","00MA","Learning Disability (under 65)","Direct Payments - LD","Direct Payments - LD","Direct Payments to Clients",29/03/2011 00:00:00,"30170467",652.76,"REDACTED PERSONAL DATA"
"Bracknell Forest Council","http://opendatacommunities.org/id/unitary-authority/bracknell-forest","Bracknell Forest Council","00MA","Economic Development","Economic Development","Town Centre Redevelopment Viability","Consultants Fees",28/02/2011 00:00:00,"6442789",1955,"RIDGE & PARTNERS LLP"
"Bracknell Forest Council","http://opendatacommunities.org/id/unitary-authority/bracknell-forest","Bracknell Forest Council","00MA","Older People (Aged 65 or Over)","Assessment & Care Management","Short Term Services - Therapy","Agency",20/02/2011 00:00:00,"6439112",1254.64,"RIG O/T RECRUIT LIMITED"
"Bracknell Forest Council","http://opendatacommunities.org/id/unitary-authority/bracknell-forest","Bracknell Forest Council","00MA","Older People (Aged 65 or Over)","Assessment & Care Management","Short Term Services - Therapy","Agency",20/02/2011 00:00:00,"6439113",1184,"RIG O/T RECRUIT LIMITED"
"Bracknell Forest Council","http://opendatacommunities.org/id/unitary-authority/bracknell-forest","Bracknell Forest Council","00MA","Older People (Aged 65 or Over)","Assessment & Care Management","Short Term Services - Therapy","Agency",27/02/2011 00:00:00,"6440492",1184,"RIG O/T RECRUIT LIMITED"
"Bracknell Forest Council","http://opendatacommunities.org/id/unitary-authority/bracknell-forest","Bracknell Forest Council","00MA","Older People (Aged 65 or Over)","Assessment & Care Management","Short Term Services - Therapy","Agency",28/02/2011 00:00:00,"6440493",1086.43,"RIG O/T RECRUIT LIMITED"
"Bracknell Forest Council","http://opendatacommunities.org/id/unitary-authority/bracknell-forest","Bracknell Forest Council","00MA","Older People (Aged 65 or Over)","Assessment & Care Management","Short Term Services - Therapy","Agency",21/02/2011 00:00:00,"6440495",1629.63,"RIG O/T RECRUIT LIMITED"
"Bracknell Forest Council","http://opendatacommunities.org/id/unitary-authority/bracknell-forest","Bracknell Forest Council","00MA","Older People (Aged 65 or Over)","Other Services To Older People","Winter Pressures","Agency",28/02/2011 00:00:00,"6440497",711.4,"RIG O/T RECRUIT LIMITED"
"Bracknell Forest Council","http://opendatacommunities.org/id/unitary-authority/bracknell-forest","Bracknell Forest Council","00MA","Older People (Aged 65 or Over)","Assessment & Care Management","Short Term Services - Therapy","Agency",01/03/2011 00:00:00,"6440507",801.63,"RIG O/T RECRUIT LIMITED"
"Bracknell Forest Council","http://opendatacommunities.org/id/unitary-authority/bracknell-forest","Bracknell Forest Council","00MA","Older People (Aged 65 or Over)","Assessment & Care Management","Short Term Services - Therapy","Agency",06/03/2011 00:00:00,"6441303",1184,"RIG O/T RECRUIT LIMITED"
"Bracknell Forest Council","http://opendatacommunities.org/id/unitary-authority/bracknell-forest","Bracknell Forest Council","00MA","Older People (Aged 65 or Over)","Assessment & Care Management","Short Term Services - Therapy","Agency",06/03/2011 00:00:00,"6441304",1053.4,"RIG O/T RECRUIT LIMITED"
"Bracknell Forest Council","http://opendatacommunities.org/id/unitary-authority/bracknell-forest","Bracknell Forest Council","00MA","Older People (Aged 65 or Over)","Assessment & Care Management","Short Term Services - Therapy","Agency",07/03/2011 00:00:00,"6441305",814.88,"RIG O/T RECRUIT LIMITED"
"Bracknell Forest Council","http://opendatacommunities.org/id/unitary-authority/bracknell-forest","Bracknell Forest Council","00MA","Older People (Aged 65 or Over)","Assessment & Care Management","Short Term Services - Therapy","Agency",13/03/2011 00:00:00,"6442230",1059.78,"RIG O/T RECRUIT LIMITED"
"Bracknell Forest Council","http://opendatacommunities.org/id/unitary-authority/bracknell-forest","Bracknell Forest Council","00MA","Older People (Aged 65 or Over)","Assessment & Care Management","Short Term Services - Therapy","Agency",15/03/2011 00:00:00,"6442231",801.63,"RIG O/T RECRUIT LIMITED"
"Bracknell Forest Council","http://opendatacommunities.org/id/unitary-authority/bracknell-forest","Bracknell Forest Council","00MA","Older People (Aged 65 or Over)","Assessment & Care Management","Short Term Services - Therapy","Agency",13/03/2011 00:00:00,"6442232",1184,"RIG O/T RECRUIT LIMITED"
"Bracknell Forest Council","http://opendatacommunities.org/id/unitary-authority/bracknell-forest","Bracknell Forest Council","00MA","Older People (Aged 65 or Over)","Assessment & Care Management","Short Term Services - Therapy","Agency",20/03/2011 00:00:00,"6442732",854.57,"RIG O/T RECRUIT LIMITED"
"Bracknell Forest Council","http://opendatacommunities.org/id/unitary-authority/bracknell-forest","Bracknell Forest Council","00MA","Older People (Aged 65 or Over)","Assessment & Care Management","Short Term Services - Therapy","Agency",20/03/2011 00:00:00,"6442733",1184,"RIG O/T RECRUIT LIMITED"
"Bracknell Forest Council","http://opendatacommunities.org/id/unitary-authority/bracknell-forest","Bracknell Forest Council","00MA","Older People (Aged 65 or Over)","Assessment & Care Management","Short Term Services - Therapy","Agency",21/03/2011 00:00:00,"6442734",845.43,"RIG O/T RECRUIT LIMITED"
"Bracknell Forest Council","http://opendatacommunities.org/id/unitary-authority/bracknell-forest","Bracknell Forest Council","00MA","Environment, Safety & Routine Maintenance","Routine Repairs (Other Roads)","Patching & Minor Repairs - Other Roads","Contracted Services",11/03/2011 00:00:00,"6440275",551756.38,"RINGWAY HIGHWAY SERVICES LTD"
"Bracknell Forest Council","http://opendatacommunities.org/id/unitary-authority/bracknell-forest","Bracknell Forest Council","00MA","","","Maintenance of Car Parks","Construction - Other Direct Expenses",24/02/2011 00:00:00,"6441546",59914.36,"RINGWAY INFRASTRUCTURE SERVICES LTD"
"Bracknell Forest Council","http://opendatacommunities.org/id/unitary-authority/bracknell-forest","Bracknell Forest Council","00MA","","","Refurb of Public Conveniences","Construction - Other Direct Expenses",24/02/2011 00:00:00,"6441547",779.5,"RINGWAY INFRASTRUCTURE SERVICES LTD"
"Bracknell Forest Council","http://opendatacommunities.org/id/unitary-authority/bracknell-forest","Bracknell Forest Council","00MA","Street Cleansing","Street Cleansing","Enhanced Environmental Maintenance","Contracted Services",11/03/2011 00:00:00,"6442638",22768.12,"RINGWAY INFRASTRUCTURE SERVICES LTD"
"Bracknell Forest Council","http://opendatacommunities.org/id/unitary-authority/bracknell-forest","Bracknell Forest Council","00MA","","","Waste Performance & Efficiency Schemes","Construction - Other Direct Expenses",14/03/2011 00:00:00,"6442639",3376.28,"RINGWAY INFRASTRUCTURE SERVICES LTD"
"Bracknell Forest Council","http://opendatacommunities.org/id/unitary-authority/bracknell-forest","Bracknell Forest Council","00MA","Street Cleansing","Street Cleansing","Enhanced Environmental Maintenance","Contracted Services",21/03/2011 00:00:00,"6443062",11696.45,"RINGWAY INFRASTRUCTURE SERVICES LTD"
"Bracknell Forest Council","http://opendatacommunities.org/id/unitary-authority/bracknell-forest","Bracknell Forest Council","00MA","Street Cleansing","Street Cleansing","Enhanced Environmental Maintenance","Contracted Services",16/03/2011 00:00:00,"6443065",29325.05,"RINGWAY INFRASTRUCTURE SERVICES LTD"
"Bracknell Forest Council","http://opendatacommunities.org/id/unitary-authority/bracknell-forest","Bracknell Forest Council","00MA","Non-School Funding","Pre-School Education","Every Child A Talker","Grants and Donations",07/03/2011 00:00:00,"6440082",550,"RMA LAKESIDE NURSERY"
"Bracknell Forest Council","http://opendatacommunities.org/id/unitary-authority/bracknell-forest","Bracknell Forest Council","00MA","Older People (Aged 65 or Over)","Residential Care Home Placements","Residential Placements-Elderly","Contracted Services",15/03/2011 00:00:00,"30169687",1181.48,"RMBI"
"Bracknell Forest Council","http://opendatacommunities.org/id/unitary-authority/bracknell-forest","Bracknell Forest Council","00MA","Learning Disability (under 65)","Residential Care Home Placements","Residential Placements-Lrng Disab","Contracted Services",24/03/2011 00:00:00,"30170204",14559.99,"RMET"
"Bracknell Forest Council","http://opendatacommunities.org/id/unitary-authority/bracknell-forest","Bracknell Forest Council","00MA","Support Services & Management Costs","Training","Social Work Education","Training Costs",12/03/2011 00:00:00,"6442511",1162,"RNR TRAINING & COACHING LTD"
"Bracknell Forest Council","http://opendatacommunities.org/id/unitary-authority/bracknell-forest","Bracknell Forest Council","00MA","","","Social Care","Other Equipment",17/03/2011 00:00:00,"6442649",630,"ROANOKE LTD"
"Bracknell Forest Council","http://opendatacommunities.org/id/unitary-authority/bracknell-forest","Bracknell Forest Council","00MA","","","Social Care","Other Equipment",17/03/2011 00:00:00,"6442649",3410,"ROANOKE LTD"
"Bracknell Forest Council","http://opendatacommunities.org/id/unitary-authority/bracknell-forest","Bracknell Forest Council","00MA","","","Social Care","Other Equipment",17/03/2011 00:00:00,"6442649",850,"ROANOKE LTD"
"Bracknell Forest Council","http://opendatacommunities.org/id/unitary-authority/bracknell-forest","Bracknell Forest Council","00MA","Cemeteries, Crematoria & Mortuary Services","Cemeteries & Crematorium","Easthampstead Park Cemetery &Crematorium","R&M - Reactive",16/02/2011 00:00:00,"6439659",974.73,"ROK BUILDING LTD IN ADMINISTRATION"
"Bracknell Forest Council","http://opendatacommunities.org/id/unitary-authority/bracknell-forest","Bracknell Forest Council","00MA","Holding Accounts not in Budget Book - COF","RW - Insurance Claims","R/W-  Insurance Claims","R&M - Reactive",02/09/2010 00:00:00,"6443041",24133.62,"ROK BUILDING LTD IN ADMINISTRATION"
"Bracknell Forest Council","http://opendatacommunities.org/id/unitary-authority/bracknell-forest","Bracknell Forest Council","00MA","Learning Disability (under 65)","Day Care","Bracknell Day Services","Equipment - Purchase",02/03/2011 00:00:00,"6440739",919.8,"ROMPA LTD"
"Bracknell Forest Council","http://opendatacommunities.org/id/unitary-authority/bracknell-forest","Bracknell Forest Council","00MA","Non-School Funding","Pre-School Education","SSEYCG - DCATCH","Learning Resources - Purchase",11/03/2011 00:00:00,"6441401",1803.95,"ROMPA LTD"
"Bracknell Forest Council","http://opendatacommunities.org/id/unitary-authority/bracknell-forest","Bracknell Forest Council","00MA","","","Aiming High","Other Equipment",15/12/2010 00:00:00,"6442139",2032.8,"ROMPA LTD"
"Bracknell Forest Council","http://opendatacommunities.org/id/unitary-authority/bracknell-forest","Bracknell Forest Council","00MA","","","Balance Sheet","Flexible Benefits Control Account",24/02/2011 00:00:00,"6439158",4430,"ROYAL ASCOT MOTORS LTD"
"Bracknell Forest Council","http://opendatacommunities.org/id/unitary-authority/bracknell-forest","Bracknell Forest Council","00MA","Other Adult Services","Other Adult Services","Safeguarding Adult Policy","RB of Windsor & Maidenhead",24/02/2011 00:00:00,"6439259",1307.33,"ROYAL BOROUGH OF WINDSOR &  MAIDENHEAD"
"Bracknell Forest Council","http://opendatacommunities.org/id/unitary-authority/bracknell-forest","Bracknell Forest Council","00MA","Family Support Services","Other Family Support Services","Parenting Early Intervention Programme","Training Costs",09/03/2011 00:00:00,"6441347",800,"ROYAL BOROUGH OF WINDSOR &  MAIDENHEAD"
"Bracknell Forest Council","http://opendatacommunities.org/id/unitary-authority/bracknell-forest","Bracknell Forest Council","00MA","","","Balance Sheet","Joint Arrangement (Suspense)",29/03/2011 00:00:00,"6443291",238628,"ROYAL BOROUGH OF WINDSOR &  MAIDENHEAD"
"Bracknell Forest Council","http://opendatacommunities.org/id/unitary-authority/bracknell-forest","Bracknell Forest Council","00MA","Older People (Aged 65 or Over)","Residential Care Home Placements","Residential Placements LD 65 and Over","Client Contributions Residential & Nursing",15/03/2011 00:00:00,"30169687",-441.2,"ROYAL BOROUGH OF WINDSOR &  MAIDENHEAD"
"Bracknell Forest Council","http://opendatacommunities.org/id/unitary-authority/bracknell-forest","Bracknell Forest Council","00MA","Older People (Aged 65 or Over)","Residential Care Home Placements","Residential Placements LD 65 and Over","RB of Windsor & Maidenhead",15/03/2011 00:00:00,"30169687",5646.2,"ROYAL BOROUGH OF WINDSOR &  MAIDENHEAD"
"Bracknell Forest Council","http://opendatacommunities.org/id/unitary-authority/bracknell-forest","Bracknell Forest Council","00MA","Learning Disability (under 65)","Residential Care Home Placements","Residential Placements-Lrng Disab","Client Contributions Residential & Nursing",15/03/2011 00:00:00,"30169687",-278,"ROYAL BOROUGH OF WINDSOR &  MAIDENHEAD"
"Bracknell Forest Council","http://opendatacommunities.org/id/unitary-authority/bracknell-forest","Bracknell Forest Council","00MA","Learning Disability (under 65)","Residential Care Home Placements","Residential Placements-Lrng Disab","RB of Windsor & Maidenhead",15/03/2011 00:00:00,"30169687",5646.2,"ROYAL BOROUGH OF WINDSOR &  MAIDENHEAD"
"Bracknell Forest Council","http://opendatacommunities.org/id/unitary-authority/bracknell-forest","Bracknell Forest Council","00MA","Support Services & Management Costs","Management and Administration","Head of Service -Adults","Postage",23/01/2011 00:00:00,"6439251",500,"ROYAL MAIL GROUP LTD"
"Bracknell Forest Council","http://opendatacommunities.org/id/unitary-authority/bracknell-forest","Bracknell Forest Council","00MA","","","Holly Spring Infant and Junior","Consultant Fees",31/01/2011 00:00:00,"6439134",750,"RPS GROUP PLC"
"Bracknell Forest Council","http://opendatacommunities.org/id/unitary-authority/bracknell-forest","Bracknell Forest Council","00MA","Public Transport","Concessionary Fares","Concessionary Fares","Contracted Services",04/03/2011 00:00:00,"6440570",605.2,"RSP LTD"
"Bracknell Forest Council","http://opendatacommunities.org/id/unitary-authority/bracknell-forest","Bracknell Forest Council","00MA","Education Management & Support Service","Performance & Resources","Reception & Office Services","Contracted Services",04/03/2011 00:00:00,"6442816",501.2,"RSP LTD"
"Bracknell Forest Council","http://opendatacommunities.org/id/unitary-authority/bracknell-forest","Bracknell Forest Council","00MA","Support Services & Management Costs","Management and Administration","Social Services Finance","Staff Public Transport Fares",04/02/2011 00:00:00,"6443294",1025.75,"RSP LTD"
"Bracknell Forest Council","http://opendatacommunities.org/id/unitary-authority/bracknell-forest","Bracknell Forest Council","00MA","Older People (Aged 65 or Over)","Residential Care Home Placements","Residential Placements-Elderly","Contracted Services",15/03/2011 00:00:00,"30169687",1936.24,"RUKBA"
"Bracknell Forest Council","http://opendatacommunities.org/id/unitary-authority/bracknell-forest","Bracknell Forest Council","00MA","Local Tax Collection","Council Tax Collection","Council Tax","Other Fees for Bought-in Services",23/02/2011 00:00:00,"6439242",867.36,"RUNDLE & CO LTD"
"Bracknell Forest Council","http://opendatacommunities.org/id/unitary-authority/bracknell-forest","Bracknell Forest Council","00MA","Local Tax Collection","Council Tax Collection","Council Tax","Other Fees for Bought-in Services",23/02/2011 00:00:00,"6439242",-899.05,"RUNDLE & CO LTD"
"Bracknell Forest Council","http://opendatacommunities.org/id/unitary-authority/bracknell-forest","Bracknell Forest Council","00MA","Local Tax Collection","Council Tax Collection","Council Tax","Other Fees for Bought-in Services",16/02/2011 00:00:00,"6439243",2427.12,"RUNDLE & CO LTD"
"Bracknell Forest Council","http://opendatacommunities.org/id/unitary-authority/bracknell-forest","Bracknell Forest Council","00MA","Local Tax Collection","Council Tax Collection","Council Tax","Other Fees for Bought-in Services",16/02/2011 00:00:00,"6439243",-2886.64,"RUNDLE & CO LTD"
"Bracknell Forest Council","http://opendatacommunities.org/id/unitary-authority/bracknell-forest","Bracknell Forest Council","00MA","Local Tax Collection","Council Tax Collection","Council Tax","Other Fees for Bought-in Services",02/03/2011 00:00:00,"6439860",1565.15,"RUNDLE & CO LTD"
"Bracknell Forest Council","http://opendatacommunities.org/id/unitary-authority/bracknell-forest","Bracknell Forest Council","00MA","Local Tax Collection","Council Tax Collection","Council Tax","Other Fees for Bought-in Services",02/03/2011 00:00:00,"6439860",-1583.92,"RUNDLE & CO LTD"
"Bracknell Forest Council","http://opendatacommunities.org/id/unitary-authority/bracknell-forest","Bracknell Forest Council","00MA","Local Tax Collection","Council Tax Collection","Council Tax","Other Fees for Bought-in Services",02/03/2011 00:00:00,"6439861",734.5,"RUNDLE & CO LTD"
"Bracknell Forest Council","http://opendatacommunities.org/id/unitary-authority/bracknell-forest","Bracknell Forest Council","00MA","Local Tax Collection","Council Tax Collection","Council Tax","Other Fees for Bought-in Services",02/03/2011 00:00:00,"6439861",-734.5,"RUNDLE & CO LTD"
"Bracknell Forest Council","http://opendatacommunities.org/id/unitary-authority/bracknell-forest","Bracknell Forest Council","00MA","Local Tax Collection","Council Tax Collection","Council Tax","Other Fees for Bought-in Services",09/03/2011 00:00:00,"6441045",1096,"RUNDLE & CO LTD"
"Bracknell Forest Council","http://opendatacommunities.org/id/unitary-authority/bracknell-forest","Bracknell Forest Council","00MA","Local Tax Collection","Council Tax Collection","Council Tax","Other Fees for Bought-in Services",09/03/2011 00:00:00,"6441045",-1096,"RUNDLE & CO LTD"
"Bracknell Forest Council","http://opendatacommunities.org/id/unitary-authority/bracknell-forest","Bracknell Forest Council","00MA","Local Tax Collection","Council Tax Collection","Council Tax","Other Fees for Bought-in Services",09/03/2011 00:00:00,"6441046",1236.47,"RUNDLE & CO LTD"
"Bracknell Forest Council","http://opendatacommunities.org/id/unitary-authority/bracknell-forest","Bracknell Forest Council","00MA","Local Tax Collection","Council Tax Collection","Council Tax","Other Fees for Bought-in Services",09/03/2011 00:00:00,"6441046",-1659.97,"RUNDLE & CO LTD"
"Bracknell Forest Council","http://opendatacommunities.org/id/unitary-authority/bracknell-forest","Bracknell Forest Council","00MA","Local Tax Collection","Council Tax Collection","Council Tax","Other Fees for Bought-in Services",16/03/2011 00:00:00,"6441819",586.9,"RUNDLE & CO LTD"
"Bracknell Forest Council","http://opendatacommunities.org/id/unitary-authority/bracknell-forest","Bracknell Forest Council","00MA","Local Tax Collection","Council Tax Collection","Council Tax","Other Fees for Bought-in Services",16/03/2011 00:00:00,"6441819",-586.9,"RUNDLE & CO LTD"
"Bracknell Forest Council","http://opendatacommunities.org/id/unitary-authority/bracknell-forest","Bracknell Forest Council","00MA","Local Tax Collection","Council Tax Collection","Council Tax","Other Fees for Bought-in Services",23/03/2011 00:00:00,"6442547",636.36,"RUNDLE & CO LTD"
"Bracknell Forest Council","http://opendatacommunities.org/id/unitary-authority/bracknell-forest","Bracknell Forest Council","00MA","Local Tax Collection","Council Tax Collection","Council Tax","Other Fees for Bought-in Services",23/03/2011 00:00:00,"6442547",-889.6,"RUNDLE & CO LTD"
"Bracknell Forest Council","http://opendatacommunities.org/id/unitary-authority/bracknell-forest","Bracknell Forest Council","00MA","Open Spaces","Community Parks & Open Spaces","Play Areas","R&M - Planned",25/02/2011 00:00:00,"6440245",675,"S & C SLATTER"
"Bracknell Forest Council","http://opendatacommunities.org/id/unitary-authority/bracknell-forest","Bracknell Forest Council","00MA","","","Access Improvement Programme","Construction - Contract Payments",01/03/2011 00:00:00,"6440237",5535.5,"S & S CARPENTRY"
"Bracknell Forest Council","http://opendatacommunities.org/id/unitary-authority/bracknell-forest","Bracknell Forest Council","00MA","","","Fire Safety","Construction - Contract Payments",03/03/2011 00:00:00,"6440241",3300,"S & S CARPENTRY"
"Bracknell Forest Council","http://opendatacommunities.org/id/unitary-authority/bracknell-forest","Bracknell Forest Council","00MA","Culture and Heritage","Heritage Museums & Galleries","The Look Out","R&M - Reactive",01/03/2011 00:00:00,"6440244",500,"S & S CARPENTRY"
"Bracknell Forest Council","http://opendatacommunities.org/id/unitary-authority/bracknell-forest","Bracknell Forest Council","00MA","","","Improvements & Capitalised Repairs (Council Wide)","Construction - Contract Payments",01/03/2011 00:00:00,"6440255",8300,"S & S CARPENTRY"
"Bracknell Forest Council","http://opendatacommunities.org/id/unitary-authority/bracknell-forest","Bracknell Forest Council","00MA","Older People (Aged 65 or Over)","Home Care","Elderly Live-In Carers","Contracted Services",31/03/2011 00:00:00,"30170733",1200,"ANGEL AU PAIRS"
"Bracknell Forest Council","http://opendatacommunities.org/id/unitary-authority/bracknell-forest","Bracknell Forest Council","00MA","Support Services & Management Costs","Management and Administration","LINKS","Publicity & Marketing",28/02/2011 00:00:00,"6440159",502.5,"ARGON PROMOTIONS"
"Bracknell Forest Council","http://opendatacommunities.org/id/unitary-authority/bracknell-forest","Bracknell Forest Council","00MA","Recreation, Sports and Leisure","Retail Services, Catering & Licenced","Easthampstead Park Conference Centre","Minor Improvement Schemes",30/01/2011 00:00:00,"6439481",646.22,"ARGOS BUSINESS SOLUTIONS"
"Bracknell Forest Council","http://opendatacommunities.org/id/unitary-authority/bracknell-forest","Bracknell Forest Council","00MA","Non-School Funding","Pre-School Education","SSEYCG Outcomes, Quality & Inclusion","Learning Resources - Purchase",13/03/2011 00:00:00,"6442200",1577.86,"ARGOS BUSINESS SOLUTIONS"
"Bracknell Forest Council","http://opendatacommunities.org/id/unitary-authority/bracknell-forest","Bracknell Forest Council","00MA","Recreation, Sports and Leisure","Retail Services, Catering & Licenced","Easthampstead Park Conference Centre","Minor Improvement Schemes",20/03/2011 00:00:00,"6442912",1557.6,"ARGOS BUSINESS SOLUTIONS"
"Bracknell Forest Council","http://opendatacommunities.org/id/unitary-authority/bracknell-forest","Bracknell Forest Council","00MA","Non-School Funding","Youth Services","Portman Close Running Costs","Equipment - Purchase",27/03/2011 00:00:00,"6442914",877.82,"ARGOS BUSINESS SOLUTIONS"
"Bracknell Forest Council","http://opendatacommunities.org/id/unitary-authority/bracknell-forest","Bracknell Forest Council","00MA","Vehicles &  Plant","Vehicles and Plant Summary Account","Fuel Card Holding Account","Petrol",28/02/2011 00:00:00,"6439931",5676.18,"ARVAL UK LTD"
"Bracknell Forest Council","http://opendatacommunities.org/id/unitary-authority/bracknell-forest","Bracknell Forest Council","00MA","Non-School Funding","Pre-School Education","The Alders Children's Centre","Learning Resources - Purchase",09/03/2011 00:00:00,"6441128",513.5,"ASCO EDUCATIONAL SUPPLIES LTD"
"Bracknell Forest Council","http://opendatacommunities.org/id/unitary-authority/bracknell-forest","Bracknell Forest Council","00MA","Non-School Funding","Pre-School Education","SSEYCG Graduate leader Fund","Grants and Donations",09/03/2011 00:00:00,"6440546",2500,"ASCOT & CRANBOURNE PRE-SCHOOL"
"Bracknell Forest Council","http://opendatacommunities.org/id/unitary-authority/bracknell-forest","Bracknell Forest Council","00MA","Non-School Funding","Pre-School Education","SSEYCG Graduate leader Fund","Grants and Donations",18/03/2011 00:00:00,"6441761",3000,"ASCOT & CRANBOURNE PRE-SCHOOL"
"Bracknell Forest Council","http://opendatacommunities.org/id/unitary-authority/bracknell-forest","Bracknell Forest Council","00MA","Mental Health Needs (Under 65)","Nursing Home Placements","Nursing Home Placements-Mental Illness","Contracted Services",15/03/2011 00:00:00,"30169687",2500,"ASCOT NURSING HOME LTD"
"Bracknell Forest Council","http://opendatacommunities.org/id/unitary-authority/bracknell-forest","Bracknell Forest Council","00MA","Physical Disability/Sensory Impairment","Nursing Home Placements","Nursing Home Placements-Physical Disabty","Contracted Services",15/03/2011 00:00:00,"30169687",4246.48,"ASCOT NURSING HOME LTD"
"Bracknell Forest Council","http://opendatacommunities.org/id/unitary-authority/bracknell-forest","Bracknell Forest Council","00MA","Older People (Aged 65 or Over)","Nursing Home Placements","Nursing Home Placements MH 65 and Over","Contracted Services",15/03/2011 00:00:00,"30169687",7687.32,"ASCOT NURSING HOME LTD"
"Bracknell Forest Council","http://opendatacommunities.org/id/unitary-authority/bracknell-forest","Bracknell Forest Council","00MA","Older People (Aged 65 or Over)","Nursing Home Placements","Nursing Home Placements-Elderly","Contracted Services",15/03/2011 00:00:00,"30169687",4926.08,"ASCOT RESIDENTIAL HOMES LTD"
"Bracknell Forest Council","http://opendatacommunities.org/id/unitary-authority/bracknell-forest","Bracknell Forest Council","00MA","Older People (Aged 65 or Over)","Nursing Home Placements","Nursing Home Placements-Elderly","Contracted Services",15/03/2011 00:00:00,"30169687",2358.48,"ASCOT RESIDENTIAL HOMES LTD"
"Bracknell Forest Council","http://opendatacommunities.org/id/unitary-authority/bracknell-forest","Bracknell Forest Council","00MA","Older People (Aged 65 or Over)","Residential Care Home Placements","Residential Placements MH 65 and Over","Contracted Services",15/03/2011 00:00:00,"30169687",2800,"ASCOT RESIDENTIAL HOMES LTD"
"Bracknell Forest Council","http://opendatacommunities.org/id/unitary-authority/bracknell-forest","Bracknell Forest Council","00MA","Older People (Aged 65 or Over)","Residential Care Home Placements","Residential Placements-Elderly","Contracted Services",15/03/2011 00:00:00,"30169687",1923.68,"ASCOT RESIDENTIAL HOMES LTD"
"Bracknell Forest Council","http://opendatacommunities.org/id/unitary-authority/bracknell-forest","Bracknell Forest Council","00MA","Older People (Aged 65 or Over)","Residential Care Home Placements","Residential Placements-Elderly","Contracted Services",15/03/2011 00:00:00,"30169687",1819.12,"ASCOT RESIDENTIAL HOMES LTD"
"Bracknell Forest Council","http://opendatacommunities.org/id/unitary-authority/bracknell-forest","Bracknell Forest Council","00MA","Older People (Aged 65 or Over)","Nursing Home Placements","Nursing Home Placements-Elderly","Contracted Services",15/03/2011 00:00:00,"30169687",2358.48,"ASCOT RESIDENTIAL HOMES LTD"
"Bracknell Forest Council","http://opendatacommunities.org/id/unitary-authority/bracknell-forest","Bracknell Forest Council","00MA","Older People (Aged 65 or Over)","Nursing Home Placements","Nursing Home Placements-Elderly","Contracted Services",15/03/2011 00:00:00,"30169687",2897.05,"ASCOT RESIDENTIAL HOMES LTD"
"Bracknell Forest Council","http://opendatacommunities.org/id/unitary-authority/bracknell-forest","Bracknell Forest Council","00MA","Older People (Aged 65 or Over)","Nursing Home Placements","Nursing Home Placements-Elderly","Contracted Services",15/03/2011 00:00:00,"30169687",2358.48,"ASCOT RESIDENTIAL HOMES LTD"
"Bracknell Forest Council","http://opendatacommunities.org/id/unitary-authority/bracknell-forest","Bracknell Forest Council","00MA","Older People (Aged 65 or Over)","Nursing Home Placements","Nursing Home Placements-Elderly","Contracted Services",15/03/2011 00:00:00,"30169687",2358.48,"ASCOT RESIDENTIAL HOMES LTD"
"Bracknell Forest Council","http://opendatacommunities.org/id/unitary-authority/bracknell-forest","Bracknell Forest Council","00MA","Older People (Aged 65 or Over)","Nursing Home Placements","Nursing Home Placements-Elderly","Contracted Services",15/03/2011 00:00:00,"30169687",2358.48,"ASHBOURNE HOMES"
"Bracknell Forest Council","http://opendatacommunities.org/id/unitary-authority/bracknell-forest","Bracknell Forest Council","00MA","Older People (Aged 65 or Over)","Nursing Home Placements","Nursing Home Placements-Elderly","Contracted Services",15/03/2011 00:00:00,"30169687",-24679.81,"ASHBOURNE HOMES"
"Bracknell Forest Council","http://opendatacommunities.org/id/unitary-authority/bracknell-forest","Bracknell Forest Council","00MA","Older People (Aged 65 or Over)","Nursing Home Placements","Nursing Home Placements-Elderly","Contracted Services",15/03/2011 00:00:00,"30169687",2358.48,"ASHBOURNE HOMES"
"Bracknell Forest Council","http://opendatacommunities.org/id/unitary-authority/bracknell-forest","Bracknell Forest Council","00MA","Older People (Aged 65 or Over)","Nursing Home Placements","Nursing Home Placements-Elderly","Contracted Services",15/03/2011 00:00:00,"30169687",2336.84,"ASHBOURNE HOMES"
"Bracknell Forest Council","http://opendatacommunities.org/id/unitary-authority/bracknell-forest","Bracknell Forest Council","00MA","","","New Scotland Hill Primary-MTC","Construction - Contract Payments",04/03/2011 00:00:00,"6440256",1525,"S & S CARPENTRY"
"Bracknell Forest Council","http://opendatacommunities.org/id/unitary-authority/bracknell-forest","Bracknell Forest Council","00MA","","","Fire Safety","Construction - Contract Payments",04/03/2011 00:00:00,"6440258",1080,"S & S CARPENTRY"
"Bracknell Forest Council","http://opendatacommunities.org/id/unitary-authority/bracknell-forest","Bracknell Forest Council","00MA","","","Improvements & Capitalised Repairs (Council Wide)","Construction - Contract Payments",10/03/2011 00:00:00,"6441919",13000,"S & S CARPENTRY"
"Bracknell Forest Council","http://opendatacommunities.org/id/unitary-authority/bracknell-forest","Bracknell Forest Council","00MA","","","Cranbourne Extended Services","Construction - Contract Payments",28/03/2011 00:00:00,"6442866",10450,"S & S CARPENTRY"
"Bracknell Forest Council","http://opendatacommunities.org/id/unitary-authority/bracknell-forest","Bracknell Forest Council","00MA","","","Improvements & Capitalised Repairs (Council Wide)","Construction - Contract Payments",28/03/2011 00:00:00,"6443059",3850,"S & S CARPENTRY"
"Bracknell Forest Council","http://opendatacommunities.org/id/unitary-authority/bracknell-forest","Bracknell Forest Council","00MA","Recreation, Sports and Leisure","Indoor Sports & Recreation Facilities","Leisure DSO - Leisure Centre Maintenance","R&M - Service Contracts",10/03/2011 00:00:00,"6441775",1023.5,"S P E"
"Bracknell Forest Council","http://opendatacommunities.org/id/unitary-authority/bracknell-forest","Bracknell Forest Council","00MA","Recreation, Sports and Leisure","Indoor Sports & Recreation Facilities","Leisure DSO - Coral Reef Maintenance","R&M - Service Contracts",10/03/2011 00:00:00,"6442182",795,"S P E"
"Bracknell Forest Council","http://opendatacommunities.org/id/unitary-authority/bracknell-forest","Bracknell Forest Council","00MA","","","Improvements & Capitalised Repairs (Council Wide)","Construction - Contract Payments",10/03/2011 00:00:00,"6443046",16095,"S P E"
"Bracknell Forest Council","http://opendatacommunities.org/id/unitary-authority/bracknell-forest","Bracknell Forest Council","00MA","","","Water Hygiene","Construction - Contract Payments",28/02/2011 00:00:00,"6441209",2845,"S R INDUSTRIAL LTD"
"Bracknell Forest Council","http://opendatacommunities.org/id/unitary-authority/bracknell-forest","Bracknell Forest Council","00MA","","","Water Hygiene","Construction - Contract Payments",28/02/2011 00:00:00,"6441210",1975,"S R INDUSTRIAL LTD"
"Bracknell Forest Council","http://opendatacommunities.org/id/unitary-authority/bracknell-forest","Bracknell Forest Council","00MA","Recreation, Sports and Leisure","Indoor Sports & Recreation Facilities","Leisure DSO - Coral Reef Maintenance","Grounds Maintenance Costs",08/03/2011 00:00:00,"6440945",734.5,"S&S GARDEN SERVICES"
"Bracknell Forest Council","http://opendatacommunities.org/id/unitary-authority/bracknell-forest","Bracknell Forest Council","00MA","Family Support Services","Other Family Support Services","C&F Section 17 Over 11's Team","Other Support to Clients",04/03/2011 00:00:00,"6442905",975,"SAINSBURY'S SUPERMARKETS LIMITED"
"Bracknell Forest Council","http://opendatacommunities.org/id/unitary-authority/bracknell-forest","Bracknell Forest Council","00MA","Support Services & Management Costs","Management and Administration","Carers Programme","Consultants Fees",15/12/2010 00:00:00,"6439260",569.07,"SAND RESOURCES LIMITED"
"Bracknell Forest Council","http://opendatacommunities.org/id/unitary-authority/bracknell-forest","Bracknell Forest Council","00MA","Support Services & Management Costs","Management and Administration","Carers Programme","Consultants Fees",19/01/2011 00:00:00,"6439261",7372,"SAND RESOURCES LIMITED"
"Bracknell Forest Council","http://opendatacommunities.org/id/unitary-authority/bracknell-forest","Bracknell Forest Council","00MA","Support Services & Management Costs","Management and Administration","Carers Programme","Consultants Fees",31/01/2011 00:00:00,"6439263",6477.8,"SAND RESOURCES LIMITED"
"Bracknell Forest Council","http://opendatacommunities.org/id/unitary-authority/bracknell-forest","Bracknell Forest Council","00MA","Support Services & Management Costs","Management and Administration","Carers Programme","Consultants Fees",15/12/2010 00:00:00,"6439264",6208,"SAND RESOURCES LIMITED"
"Bracknell Forest Council","http://opendatacommunities.org/id/unitary-authority/bracknell-forest","Bracknell Forest Council","00MA","","","Social Care","Grants Paid",02/02/2011 00:00:00,"6439320",5432.5,"SANDHURST DAY CENTRE"
"Bracknell Forest Council","http://opendatacommunities.org/id/unitary-authority/bracknell-forest","Bracknell Forest Council","00MA","Older People (Aged 65 or Over)","Day Care","Day centre Placements-Elderly","Contracted Services",04/02/2011 00:00:00,"6439567",3775.2,"SANDHURST DAY CENTRE"
"Bracknell Forest Council","http://opendatacommunities.org/id/unitary-authority/bracknell-forest","Bracknell Forest Council","00MA","Non-School Funding","Pre-School Education","Early Years and Childcare","Grants and Donations",03/03/2011 00:00:00,"6439790",972,"SANDHURST NURSERY SCHOOL"
"Bracknell Forest Council","http://opendatacommunities.org/id/unitary-authority/bracknell-forest","Bracknell Forest Council","00MA","Non-School Funding","Pre-School Education","SSEYCG Graduate leader Fund","Grants and Donations",18/03/2011 00:00:00,"6441771",1500,"SANDHURST NURSERY SCHOOL"
"Bracknell Forest Council","http://opendatacommunities.org/id/unitary-authority/bracknell-forest","Bracknell Forest Council","00MA","Non-School Funding","Pre-School Education","SSEYCG - DCATCH","Grants and Donations",16/03/2011 00:00:00,"6441387",500,"SANDY LANE OOSC"
"Bracknell Forest Council","http://opendatacommunities.org/id/unitary-authority/bracknell-forest","Bracknell Forest Council","00MA","Service Management & Support Services","Service Management & Support Services","Training - Leisure & Culture","Training Costs",03/03/2011 00:00:00,"6440805",1585,"SANTIA TRAINING SERVICES LIMITED"
"Bracknell Forest Council","http://opendatacommunities.org/id/unitary-authority/bracknell-forest","Bracknell Forest Council","00MA","Learning Disability (under 65)","Direct Payments - LD","Direct Payments - LD","Direct Payments to Clients",29/03/2011 00:00:00,"30170467",799,"REDACTED PERSONAL DATA"
"Bracknell Forest Council","http://opendatacommunities.org/id/unitary-authority/bracknell-forest","Bracknell Forest Council","00MA","Recreation, Sports and Leisure","Indoor Sports & Recreation Facilities","Leisure DSO - Coral Reef","Clothing & Uniform - Staff",23/02/2011 00:00:00,"6439957",708.5,"SBH CLOTHING LTD"
"Bracknell Forest Council","http://opendatacommunities.org/id/unitary-authority/bracknell-forest","Bracknell Forest Council","00MA","Education Management & Support Service","School Related Expenditure","HTS Interim","Taxi Fares - Home/School Transport",10/03/2011 00:00:00,"6442306",6330,"SCHOOL TRANSPORT CONTRACT"
"Bracknell Forest Council","http://opendatacommunities.org/id/unitary-authority/bracknell-forest","Bracknell Forest Council","00MA","Education Management & Support Service","School Related Expenditure","HTS Interim","Taxi Fares - Home/School Transport",10/03/2011 00:00:00,"6442315",9130.4,"SCHOOL TRANSPORT CONTRACT"
"Bracknell Forest Council","http://opendatacommunities.org/id/unitary-authority/bracknell-forest","Bracknell Forest Council","00MA","Education Management & Support Service","School Related Expenditure","School Catering","Catering Equipment - R&M",28/02/2011 00:00:00,"6440337",550.93,"SCOTFORD & TEASDALE"
"Bracknell Forest Council","http://opendatacommunities.org/id/unitary-authority/bracknell-forest","Bracknell Forest Council","00MA","Regulatory Services","Animal & Public Health","Dog Control","Contracted Services",28/02/2011 00:00:00,"6439858",604.16,"SDK ENVIRONMENTAL LTD"
"Bracknell Forest Council","http://opendatacommunities.org/id/unitary-authority/bracknell-forest","Bracknell Forest Council","00MA","Regulatory Services","Animal & Public Health","Dog Control","Contracted Services",28/02/2011 00:00:00,"6440303",505,"SDK ENVIRONMENTAL LTD"
"Bracknell Forest Council","http://opendatacommunities.org/id/unitary-authority/bracknell-forest","Bracknell Forest Council","00MA","Regulatory Services","Animal & Public Health","Dog Control","Contracted Services",31/03/2011 00:00:00,"6443108",604.16,"SDK ENVIRONMENTAL LTD"
"Bracknell Forest Council","http://opendatacommunities.org/id/unitary-authority/bracknell-forest","Bracknell Forest Council","00MA","Interest & Investment Income","Interest & Investment Income","Investment Management Fees","Consultants Fees",17/02/2011 00:00:00,"6439345",9900,"SECTOR TREASURY SERVICES LTD"
